{"text_format":"1","workbook":"xlsx","n_sheets":2,"sheets":["CATALOGO","RESUMEN"],"not_rendered":{"charts":0,"images":3,"macros":1,"external_links":0,"defined_names":3,"comments":0,"pivot_tables":0},"unopened":[],"bounds":{"document_bytes":16777216,"sheet_cells":100000,"rows_first":2000,"rows_last":500,"rows_between":2000,"halvings":0,"cell_chars":16384,"cell_head_chars":4096},"cells_cut":0,"cells_raw":0,"read":"whole","date_system":"1900"}

{"sheet":"CATALOGO","index":0,"n_rows":276,"n_cols":6,"rows_kept":276,"cut":false,"hidden":false,"merged":[[8,0,8,5],[9,0,9,5],[2,0,2,5],[3,0,3,5],[4,0,4,5],[5,0,5,5],[7,0,7,5]]}
[]
[]
["GOBIERNO DEL ESTADO DE BAJA CALIFORNIA SUR"]
["SECRETARIA DE PLANEACIÓN URBANA, INFRAESTRUCTURA,                                                                                                                                                  MOVILIDAD, MEDIO AMBIENTE Y RECURSOS NATURALES"]
["DIRECCIÓN DE OBRAS PUBLICAS"]
["CATALOGO DE CONCEPTOS Y CANTIDADES DE OBRA"]
[]
["OBRA:  COMISARIA DE LA POLOICIA ESTATAL PREVENTIVA VIZCAINO"]
["UBICACIÓN: EL MARASAL, C.P. 23938, VILLA ALBERTO ANDRES ALVARADO ARAMBURO."]
["MUNICIPIO:  MULEGE, B.C.S."]
[]
["CLAVE","CONCEPTO","UNIDAD","CANTIDAD","PRECIO UNITARIO","IMPORTE"]
["A.-)","CONSTRUCCION  DE COMISARIA",null,null,null,{"$f":"ROUND(D13*E13,2)","v":0}]
["II.-","CIMENTACION",null,null,null,{"$f":"D14*E14","v":0}]
["01.-","TRAZO Y NIVELACIÓN, CON EQUIPO TOPOGRÁFICO,  INCLUYE: CARGO DIRECTO POR EL COSTO DE LOS MATERIALES Y MANO DE OBRA QUE INTERVENGAN, LOCALIZACIÓN GENERAL, LOCALIZACIÓN DE ENTRE EJES, SEÑALAMIENTOS, ESTACADO, BANCOS DE NIVEL, MOJONERAS, LIMPIEZA Y RETIRO DE SOBRANTES FUERA DE OBRA, AL BANCO DE  DESPERDICIO INDICADO POR EL LA DIRECCIÓN DE OBRAS PUBLICAS, EQUIPO DE SEGURIDAD, INSTALACIONES ESPECÍFICAS, DEPRECIACIÓN Y DEMÁS DERIVADOS DEL USO DE HERRAMIENTA Y EQUIP. ESTUDIOS TOPOGRAFICOS Y ESTUDIOS TOPO - HIDRAULICOS. A EJES EN DESPLANTE DE EDIFICIOS.","M2",548,0,{"$f":"D15*E15","v":0}]
["02.-","ZAPATA CORRIDA (Z-01) DE  DE 0.80 X 0.15 MTS. CONCRETO F'C=200 KG/CM2.  ARMADA CON  4 VARILLA DEL # 3 Y CONTRA TRABE DE 15 X 40 CMS. ARMADA CON 6 VARILLAS DEL # 3 Y ESTRIBOS DEL # 2 A CADA 20 CMS., INCLUYE: TRAZO, NIVELACION, EXCAVACION, PLANTILLA  F'C=100 KG/CM2, RELLENO, AFINE,COMPACTACION, IMPERMEABILIZANTE, PRUEBAS DE LABORATORIO DE (MECANICA DE SUELOS), HERRAMIENTA Y MANO DE OBRA QUE INTERVENGAN, ELABORACIÓN DEL CONCRETO, FLETE A OBRA, DESPERDICIO, VERTIDO, ACARREO HASTA EL LUGAR DE SU UTILIZACIÓN, HABILITADO DEL ACERO DE REFUERZO, ANCLAJES,  COLOCACIÓN, AMARRES, CIMBRADO, DESCIMBRADO, LIMPIEZA Y RETIRO DE SOBRANTES FUERA DE OBRA, EQUIPO DE SEGURIDAD, INSTALACIONES ESPECÍFICAS, DEPRECIACIÓN Y DEMÁS DERIVADOS DEL USO DE HERRAMIENTA Y EQUIPO EN CUALQUIER NIVEL, (VER DETALLE DE ZAPATA.) ","ML",299,0,{"$f":"D16*E16","v":0}]
["03.-","CONSTRUCCION DE MURO DE ENRASE A BASE A 3 HILADAS A BASE DE BLOCK HUECO DE CONCRETO DE 15x20x40, ASENTADO CON MORTERO CEMENTO ARENA  PROP 1:4 Y CELDAS RELLENAS DE CONCRETO F'C= 150KG/CM2, VARILLA DE REFUERZO  DE 3/8\" @ 3ER CELDA ANCLADA A CIMENTACION, INCLUYE PRECIO DIRECTO DE LOS MATERIALES, MANO DE OBRA, HERRAMIENTA Y EQUIPO.","M2",189,0,0]
["04.-","ANCLAJE DE CASTILLOS (K-A) DE 15 X 15 CMS MTS. HASTA 1.00 MTS. DE DESARROLLO, ARMADO CON 1 VARILLAS No.3 Y ESTRIBOS No.2 A/C 0.10 - 0.20 MTS. CONCRETO F' C=200 KG/CM2, INCLUYE; CARGO DIRECTO POR EL COSTO DE LOS MATERIALES, HERRAMIENTA Y MANO DE OBRA QUE INTERVENGAN, ELABORACIÓN DEL CONCRETO, FLETE A OBRA, DESPERDICIO, VERTIDO, ACARREO HASTA EL LUGAR DE SU UTILIZACIÓN, VIBRADO Y CURADO, PRUEBAS DE RESISTENCIA DEL CONCRETO, HABILITADO DEL ACERO DE REFUERZO, ANCLAJES,  COLOCACIÓN, AMARRES, CIMBRADO, DESCIMBRADO, LIMPIEZA Y RETIRO DE SOBRANTES FUERA DE OBRA, EQUIPO DE SEGURIDAD, INSTALACIONES ESPECÍFICAS, DEPRECIACIÓN Y DEMÁS DERIVADOS DEL USO DE HERRAMIENTA Y EQUIPO EN CUALQUIER NIVEL.","PZA",51,0,0]
["05.-","ANCLAJE DE CASTILLOS (K-01) DE 15 X 20 CMS MTS. HASTA 1.00 MTS. DE DESARROLLO, ARMADO CON 4 VARILLAS No.3 Y ESTRIBOS No.2 A/C 0.20 MTS. CONCRETO F' C=200 KG/CM2, INCLUYE; CARGO DIRECTO POR EL COSTO DE LOS MATERIALES, HERRAMIENTA Y MANO DE OBRA QUE INTERVENGAN, ELABORACIÓN DEL CONCRETO, FLETE A OBRA, DESPERDICIO, VERTIDO, ACARREO HASTA EL LUGAR DE SU UTILIZACIÓN, VIBRADO Y CURADO, PRUEBAS DE RESISTENCIA DEL CONCRETO, HABILITADO DEL ACERO DE REFUERZO, ANCLAJES,  COLOCACIÓN, AMARRES, CIMBRADO, DESCIMBRADO, LIMPIEZA Y RETIRO DE SOBRANTES FUERA DE OBRA, EQUIPO DE SEGURIDAD, INSTALACIONES ESPECÍFICAS, DEPRECIACIÓN Y DEMÁS DERIVADOS DEL USO DE HERRAMIENTA Y EQUIPO EN CUALQUIER NIVEL.","PZA",106,0,0]
["06.-","CADENA PARA DESPLANTE (CD-01) EN CIMENTACIÓN DE 0.15 X 0.20 MTS., ARMADA CON 4 VARILLAS No.3 Y ESTRIBOS No.2 A/C 0.20 MTS., CONCRETO F'C=200 KG/CM2, INCLUYE: INCLUYE; CARGO DIRECTO POR EL COSTO DE LOS MATERIALES, HERRAMIENTA Y MANO DE OBRA QUE INTERVENGAN, ELABORACIÓN DEL CONCRETO, FLETE A OBRA, DESPERDICIO, VERTIDO, ACARREO HASTA EL LUGAR DE SU UTILIZACIÓN, VIBRADO Y CURADO, PRUEBAS DE RESISTENCIA DEL CONCRETO,  HABILITADO DEL ACERO DE REFUERZO, ANCLAJES,  COLOCACIÓN, AMARRES, CIMBRADO, DESCIMBRADO, LIMPIEZA Y RETIRO DE SOBRANTES FUERA DE OBRA, EQUIPO DE SEGURIDAD, INSTALACIONES ESPECÍFICAS, DEPRECIACIÓN Y DEMÁS DERIVADOS DEL USO DE HERRAMIENTA Y EQUIPO EN CUALQUIER NIVEL.","ML",299,0,0]
["07.-","CADENA PARA DESPLANTE (CD-02) EN CIMENTACIÓN DE 0.15 X 0.30 MTS., ARMADA CON 4 VARILLAS No.3 Y ESTRIBOS No.2 A/C 0.20 MTS., CONCRETO F'C=200 KG/CM2, INCLUYE: INCLUYE; CARGO DIRECTO POR EL COSTO DE LOS MATERIALES, HERRAMIENTA Y MANO DE OBRA QUE INTERVENGAN, ELABORACIÓN DEL CONCRETO, FLETE A OBRA, DESPERDICIO, VERTIDO, ACARREO HASTA EL LUGAR DE SU UTILIZACIÓN, VIBRADO Y CURADO, PRUEBAS DE RESISTENCIA DEL CONCRETO,  HABILITADO DEL ACERO DE REFUERZO, ANCLAJES,  COLOCACIÓN, AMARRES, CIMBRADO, DESCIMBRADO, LIMPIEZA Y RETIRO DE SOBRANTES FUERA DE OBRA, EQUIPO DE SEGURIDAD, INSTALACIONES ESPECÍFICAS, DEPRECIACIÓN Y DEMÁS DERIVADOS DEL USO DE HERRAMIENTA Y EQUIPO EN CUALQUIER NIVEL.","ML",31,0,0]
["08.-","CONTRA-TRABE  (CT-03) DE  DE 0.20 X 0.30 MTS. CONCRETO F'C=200 KG/CM2.  ARMADA CON  6 VARILLA DEL # 3  ESTRIBOS DEL # 2 A CADA 20 CMS., INCLUYE: TRAZO, NIVELACION, EXCAVACION, PLANTILLA  F'C=100 KG/CM2, RELLENO, AFINE,COMPACTACION, IMPERMEABILIZANTE, HERRAMIENTA Y MANO DE OBRA QUE INTERVENGAN, ELABORACIÓN DEL CONCRETO, FLETE A OBRA, DESPERDICIO, VERTIDO, ACARREO HASTA EL LUGAR DE SU UTILIZACIÓN, HABILITADO DEL ACERO DE REFUERZO, ANCLAJES,  COLOCACIÓN, AMARRES, CIMBRADO, DESCIMBRADO, LIMPIEZA Y RETIRO DE SOBRANTES FUERA DE OBRA, EQUIPO DE SEGURIDAD, INSTALACIONES ESPECÍFICAS, DEPRECIACIÓN Y DEMÁS DERIVADOS DEL USO DE HERRAMIENTA Y EQUIPO EN CUALQUIER NIVEL, (VER DETALLE DE EN PLANO.)","ML",30,0,0]
[null,"SUBTOTAL DE CIMENTACIÓN",null,null,null,{"$f":"SUM(F15:F22)","v":0}]
["III.-","ALBAÑILERÍA Y ACABADOS",null,null,null,0]
["01.-","MUROS Y PRETILES DE BLOCK  DE HUECO DE CONCRETO DE 15X20X40 CMS. PEGADO CON MORTERO CEMENTO - ARENA 1:5, INCLUYE: ALINEACIÓN, PLOMEO, ESCUADRAS, ANDAMIOS, ELEVACIÓN DE MATERIALES, RECORTES, CORTES, DESPERDICIOS, ACARREOS DENTRO DE LA OBRA, MANO DE OBRA, CUALQUIER ALTURA, LIMPIEZA GRUESA, EMBOQUILLADOS, CONCEPTO TERMINADO A SATISFACCIÓN DE SUPERVISIÓN.","M2",1226,0,{"$f":"D25*E25","v":0}]
["02.-","CASTILLO DE CONCRETO (K-A) DE 15 X 15 CMS., ARMADO CON 1 VARILLAS No.3  CONCRETO F' C=200 KG/CM2, INCLUYE; CARGO DIRECTO POR EL COSTO DE LOS MATERIALES, HERRAMIENTA Y MANO DE OBRA QUE INTERVENGAN, FLETE A OBRA, DESPERDICIO, ACARREO HASTA EL LUGAR DE SU UTILIZACIÓN, HABILITADO DEL ACERO DE REFUERZO, ANCLAJES,  CIMBRADO, DESCIMBRADO, ELABORACIÓN DEL CONCRETO,  VERTIDO, VIBRADO,  CURADO, PRUEBAS DE LABORATORIO, LIMPIEZA Y RETIRO DE SOBRANTES FUERA DE OBRA, EQUIPO DE SEGURIDAD, INSTALACIONES ESPECIFICAS, DEPRECIACIÓN Y DEMÁS DERIVADOS DEL USO DE HERRAMIENTA Y EQUIPO, EN CUALQUIER NIVEL.","ML",179,0,{"$f":"D26*E26","v":0}]
["03.-","CASTILLO DE CONCRETO (K-1) DE 15 X 15 CMS., ARMADO CON 1 VARILLAS No.3  Y ESTRIBOS DEL # 2 A CADA 10 - 20 CMS., CONCRETO F' C=200 KG/CM2, INCLUYE; CARGO DIRECTO POR EL COSTO DE LOS MATERIALES, HERRAMIENTA Y MANO DE OBRA QUE INTERVENGAN, FLETE A OBRA, DESPERDICIO, ACARREO HASTA EL LUGAR DE SU UTILIZACIÓN, HABILITADO DEL ACERO DE REFUERZO, ANCLAJES,  CIMBRADO, DESCIMBRADO, ELABORACIÓN DEL CONCRETO,  VERTIDO, VIBRADO,  CURADO, PRUEBAS DE LABORATORIO, LIMPIEZA Y RETIRO DE SOBRANTES FUERA DE OBRA, EQUIPO DE SEGURIDAD, INSTALACIONES ESPECIFICAS, DEPRECIACIÓN Y DEMÁS DERIVADOS DEL USO DE HERRAMIENTA Y EQUIPO, EN CUALQUIER NIVEL.","ML",371,0,0]
["04.-","CADENA DE CERRAMIENTO (CE-01) DE CONCRETO F'C=200KG/CM2 DE 15 x 20 CMS, ARMADA CON 4 VARILLAS DE 3/8\" Y ESTRIBOS DE 1/4\" @ 20 CMS,  INCLUYE; CARGO DIRECTO POR EL COSTO DE LOS MATERIALES, HERRAMIENTA Y MANO DE OBRA QUE INTERVENGAN, ELABORACIÓN DEL CONCRETO, FLETE A OBRA, DESPERDICIO, VERTIDO, ACARREO HASTA EL LUGAR DE SU UTILIZACIÓN, HABILITADO DEL ACERO DE REFUERZO, ANCLAJES,  COLOCACIÓN, AMARRES, CIMBRADO, DESCIMBRADO, LIMPIEZA Y RETIRO DE SOBRANTES FUERA DE OBRA, EQUIPO DE SEGURIDAD, INSTALACIONES ESPECÍFICAS, DEPRECIACIÓN Y DEMÁS DERIVADOS DEL USO DE HERRAMIENTA Y EQUIPO EN CUALQUIER NIVEL.","ML",299,0,0]
["05.-","TRABE AHOGADA (TA-01) DE CONCRETO F'C=200KG/CM2 DE 15 x 20 CMS, ARMADA CON 4 VARILLAS DE 3/8\" Y ESTRIBOS DE 1/4\" @ 20 CMS,  INCLUYE; CARGO DIRECTO POR EL COSTO DE LOS MATERIALES, HERRAMIENTA Y MANO DE OBRA QUE INTERVENGAN, ELABORACIÓN DEL CONCRETO, FLETE A OBRA, DESPERDICIO, VERTIDO, ACARREO HASTA EL LUGAR DE SU UTILIZACIÓN, HABILITADO DEL ACERO DE REFUERZO, ANCLAJES,  COLOCACIÓN, AMARRES, CIMBRADO, DESCIMBRADO, LIMPIEZA Y RETIRO DE SOBRANTES FUERA DE OBRA, EQUIPO DE SEGURIDAD, INSTALACIONES ESPECÍFICAS, DEPRECIACIÓN Y DEMÁS DERIVADOS DEL USO DE HERRAMIENTA Y EQUIPO EN CUALQUIER NIVEL.","ML",299,0,0]
["06.-","ENTORTADO EN AZOTEA A BASE DE MORTERO CEMENTO - ARENA 1:5, DE ESPESOR PROMEDIO DE 10 CM., INCLUYE: DISTRIBUCIÓN Y FORMACIÓN DE DIAMANTES Y PENDIENTES DE ACUERDO A PLANOS,  ELEVACIÓN DE MATERIALES, LIMPIEZA, PRUEBAS DE ESCURRIMIENTO, ACARREOS DENTRO DE LA OBRA, ANDAMIOS, ACABADO CON PLANA DE MADERA Y SIN IMPERFECCIONES, REMATE ESCOBILLADO CON LECHADA DE CEMENTO GRIS Y PEGACRETO,TODOS LOS MATERIALES NECESARIOS Y LA MANO DE OBRA, CONCEPTO TERMINADO A SATISFACCIÓN DE SUPERVISIÓN.","M2",548,0,0]
["07.-","SUMINISTRO Y COLOCACIÓN DE IMPERMEABILIZANTE SOBRE ENTORTADO DE AZOTEA, A BASE DE MATERIAL ELASTOMERICO BLANCO, 5 AÑOS DE GARANTÍA POR ESCRITO, INCLUYE: PRUEBAS DE HUEMDAD (SATURACUON DE LOSA), LIMPIEZA, BARRIDO, MALLA REFORZADA, RECORTES, TRASLAPES, ELEVACIÓN DEL MATERIAL, MANO DE OBRA, ANDAMIOS, SELLADO DE COLADERAS Y PUNTOS CRÍTICOS CON CEMENTO PLÁSTICO, CONCEPTO TERMINADO A SATISFACCIÓN DE SUPERVISIÓN. ","M2",594,0,0]
["08.-","FIRME DE CONCRETO PRECOLADO F'C=200 KG/CM2 DE 10 CMS., DE ESPESOR, CON REFUERZO DE MALLA ELECTROSOLDADA 6.6-10X10, INCLUYE: ACARREOS INTERNOS, VIBRADO, CURADO, NIVELADO A DETALLE Y VERIFICADOS SUS NIVELES, REGLEADO,  ACABADO CON PLANA DE MADERA LISTO PARA RECIBIR CUALQUIER ACABDO, MATERIALES, MANO DE OBRA, CONCEPTO A SATISFACCIÓN Y VERIFICACIÓN DE SUPERVISIÓN.","M2",490,0,0]
["09.-","PISO DE CONCRETO PRECOLADO DE F'C=200 KG/CM2 DE 10 CMS. DE ESPESOR, ACABADO PULIDO FINO INTEGRAL O RAYADO CON BROCHA DE PELO, INCLUYE:  MATERIALES NECESARIOS, MANO DE OBRA, MALLALAC 6.6-10X10, CIMBRA, DECIMBRA, BOLTEADOR, JUNTAS FRIAS,  ACARREOS INTERNOS, NIVELADO, REGLEADO,  CONCEPTO A SATISFACCIÓN DE SUPERVISIÓN.","M2",80,0,0]
["10.-","SUMINISTRO Y COLOCACIÓN DE PISO VITRIFICADO DE PRIMERA CALIDAD MARCA INTERCERAMIC DE 60X60 CMS. MODELO SUSSEX PORCELINATO RECTIFICADO, COLOR OXFORD WHITE , COLOCACIÓN CON VERIFICACIÓN, COLOCADO A HUESO, SOBRE FIRME, NIVELADO Y VERIFICADO, INCLUYE: TRAZO, RECORTES, DESPERDICIOS, PEGAPISO, ACARREOS DENTRO DE LA OBRA, ALMACENAMIENTO, EMBOQUILLADOR SIN ARENA, LIMPIEZA GRUESA Y FINA, CONCEPTO A SATISFACCIÓN DE SUPERVISIÓN.","M2",528,0,0]
["11.-","SUMINISTRO Y COLOCACIÓN DE ZOCLO VITRIFICADO  MISMO COLOR Y CALIDAD DE PISO A COLOCAR, INCLUYE: NIVELACIÓN, RECORTES, CORTES A MAQUINA Y A 45°, DESPERDICIOS, ACARREOS DENTRO DE LA OBRA, ALMACENAJE, PEGAPISO, EMBOQUILLADOR SIN ARENA, CHAFLÁN SUPERIOR TRIANGULAR DE PASTA Y/O CEMENTO BLANCO, LIMPIEZA GRUESA Y FINA, PEGADO A HUESO, MISMAS LÍNEAS Y CORTES DE PISO, CONCEPTO TERMINADO A SATISFACCIÓN DE SUPERVISIÓN. 'DE 60X10 CMS. MODELO SUSSEX PORCELINATO RECTIFICADO, COLOR OXFORD WHITE","ML",230,0,0]
["12.-","SUMINISTRO Y COLOCACIÓN DE AZULEJO  MARCA INTERCERAMIC DE 60X460CMS. MODELO SUSSEX PORCELINATO RECTIFICADO, COLOR OXFORD WHITE DE PRIMERA CALIDAD HASTA  UNA ALTURA DE 2.10 MTS. SNPT, PEGADO A HUESO, INCLUYE: PEGAZULEJO, EMBOQUILLADOR SIN ARENA ANTIBACTERIAL, RECORTES, CORTES 45°, SEPARADORES, ESQUINEROS, ACARREOS DE MATERIALES DENTRO DE LA OBRA, ELEVACIÓN, ANDAMIOS, DESPERDICIOS, LIMPIEZA GRUESA Y FINA, MATERIALES, MANO DE OBRA Y TODO LO NECESARIO PARA SU CORRECTA TERMINACIÓN, CONCEPTO A SATISFACCIÓN DE SUPERVISIÓN.","M2",250,0,0]
["13.-","APLANADOS SOBRE MUROS DE BLOCK, Y A CUALQUIER SUPERFICIE, A BASE DE MORTERO CEMENTO - ARENA 1:5, ACABADO FLOTEADO FINO, INCLUYE: RESANES, PREPARACIÓN DE LA SUPERFICIE, REBABEOS, PLOMEO, FILOS, BOQUILLAS, A REGLA Y NIVEL, REPELLADOS, CURADOS, ANDAMIOS, ELEVACIÓN, ACARREOS DE MATERIALES, DENTRO DE LA OBRA, LIMPIEZA GRUESA Y FINA, MATERIALES NECESARIOS, MANO DE OBRA, CONCEPTO TERMINADO A SATISFACCIÓN DE SUPERVISIÓN.","M2",2150,0,0]
["14.-","APLANADO DE YESO EN PLAFOND  A PLOMO, REGLA Y NIVEL INCLUYE; CARGO DIRECTO POR EL COSTO DE LOS MATERIALES Y MANO DE OBRA  QUE INTERVENGAN, FLETE A OBRA, DESPERDICIO, ACARREO HASTA EL LUGAR DE SU UTILIZACIÓN, ELABORACIÓN DE MEZCLA HECHA EN OBRA, PREPARACIÓN DE LA SUPERFICIE,  PICADO EN SU CASO, PERFILAR HUECOS PARA INSTALACIONES, BOQUILLAS, REMATES, CORTES DE DIAMANTE EN JUNTAS, MAESTREADO, LIMPIEZA Y RETIRO DE SOBRANTES FUERA DE OBRA, EQUIPO DE SEGURIDAD, INSTALACIONES ESPECÍFICAS, DEPRECIACIÓN Y DEMÁS DERIVADOS DEL USO DE HERRAMIENTA Y EQUIPO, EN  CUALQUIER  NIVEL.","M2",516,0,0]
["15.-","SUMINISTRO Y APLICACIÓN DE PINTURA VINÍLICA, MARCA COMEX , APLICADA A DOS MANOS COMO  MINIMO ,DE PRIMERA CALIDAD, APLICADA EN MUROS (INTERIORES, EXTERIORES, PLAFOND, TRABES, COLUMNAS, DALAS Y SOBRE CUALQUIER ELEMENTO ETC.. ), SOBRE CUALQUIER SUPERFICIE Y/O APLANADOS DE MORTERO, ACABADO FLOTEADO FINO, INCLUYE: ANDAMIOS, ALTURAS  HASTA 4.50 M.  S.N.P.T., RECORTES, ACARREOS DENTRO DE LA OBRA, DESPERDICIOS, SELLADOR, RESANES, PROTECCIÓN A PISOS, MUEBLES, VENTANAS Y PUERTAS, REBABEOS, ADITAMENTOS DE APLICACIÓN, LIMPIEZA FINA Y GRUESA, MANO DE OBRA , MATERIALES Y TODO LO NECESARIO PARA SU CORRECTA APLICACIÓN, COLORES AUTORIZADOS POR SUPERVISIÓN.","M2",2450,0,0]
["16.-","BAJADA PLUVIAL DE AZOTEA  CON  TUBO PVC SANITARIO DE 4\" Ø REFORZADO, INCLUYE: PREPARACION EN LOSA, COLADERA HELVEX MOD. 444X, FIJACIÓN A MUROS Y COLUMNAS CON CINTA GALVANIZADA A CADA METRO, CODOS PVC DE 4\"Ø 45°, PEGAMENTO, ENCOFRADO TIPO COLUMNA , A BASE DE: HERRAJES, POSTE CANAL, CANAL, TABLAROCA, PERFACINTA, REDIMIX, RANURAS, RESANES, ELEVACIÓN, FIJACIÓN, ACARREOS, RECORTES, DESPERDICIOS, CONCEPTO ACORDE A PLANO DE PROYECTO  Y A SATISFACCIÓN DE SUPERVISIÓN.","SAL",7,0,0]
["17.-","CHAFLÁN DE MORTERO 'SECCIÓN TRIANGULAR CON 10 CM. CADA CATETO, MORTERO CEMENTO-CAL-ARENA EN PROPORCIÓN 1-1.5-6 INCLUYE; CARGO DIRECTO POR EL COSTO DE LOS MATERIALES QUE INTERVENGAN, FLETE A OBRA, DESPERDICIO, ACARREO HASTA EL LUGAR DE SU UTILIZACIÓN, ELEVACIÓN, PICADO EN ÁREAS DE CONCRETO, ELABORACIÓN,  LECHAREADO, LIMPIEZA Y RETIRO DE SOBRANTES FUERA DE OBRA, EQUIPO DE SEGURIDAD, INSTALACIONES ESPECÍFICAS, DEPRECIACIÓN Y DEMÁS DERIVADOS DEL USO DE HERRAMIENTA Y EQUIPO, EN CUALQUIER NIVEL. ","ML",113,0,0]
["18.-","FALSO PLAFOND DE TABLA-ROCA, INCLUYE; CARGO DIRECTO POR EL COSTO DE LOS MATERIALES Y MANO DE OBRA QUE INTERVENGAN, FLETE A OBRA, DESPERDICIO, ACARREO HASTA EL LUGAR DE SU UTILIZACIÓN, TRAZO Y NIVELACIÓN CON PLACAS FIJADAS, CON TORNILLOS AUTORROSCANTES A CADA 30 CM. PERIMETRALMENTE Y A CADA 60 CM. DE SEPARACIÓN EN REFUERZOS INTERMEDIOS A UN BASTIDOR CONSTRUIDO A BASE DE CANALES Y POSTES DE LAMINA GALVANIZADA CAL. NO.26 Y ANCHOS DE ACUERDO A LO INDICADO, COLOCADOS A CADA 60 CM. FIJADOS A LA ESTRUCTURA Y UNIDOS SEGÚN PROCEDIMIENTO DEL FABRICANTE, ESQUINEROS, REBORDES, ALMACENAJE, ESTIBA, COLOCACIÓN, EMPLASTECIDO, CORTES, PERFILAR Y ABRIR HUECOS PARA INSTALACIONES, EMBOQUILLADOS, REFUERZOS PARA SALIDAS, JUNTAS DE CONTROL Y/O JUNTAS CONSTRUCTIVAS DONDE INDIQUE LA SUPERVISIÓN SEGÚN PROCEDIMIENTO DEL FABRICANTE, OBRAS DE PROTECCIÓN, LIMPIEZA Y RETIRO DE SOBRANTES FUERA DE OBRA, EQUIPO DE SEGURIDAD, INSTALACIONES ESPECÍFICAS, DEPRECIACIÓN Y DEMÁS DERIVADOS DEL USO DE HERRAMIENTA Y EQUIPO, EN CUALQUIER NIVEL.  DE TABLAROCA DE 13 MM DE ESPESOR, TERMINADO CON REDIMIX CALAFATEADO, PREPARACIÓN TERMINADA PARA APLICACIÓN DE PINTURA.","M2",33,0,0]
["19.-","ELABORACION DE JARDINERAS  DE 0.15 CMS DE ANCHO X 0.65 CMS DE ALTURA CON CELDAS RELLENAS DE CONCRETO @ 3ER. CELDA (60 CMS,  CASTILLO AHOGADO KA-01) CON UNA VARILLA DE 3/8\", INCLUYE; TRAZO, NIVELACION, EXCAVACION,  ZAPATA CORRIDA (ZC-1) DE  DE 0.60 X 0.15 MTS. CONCRETO F'C=200 KG/CM2.  ARMADA CON   VARILLA DEL # 3 2 A CADA 15 CMS., PLANTILLA  F'C=100 KG/CM2, RELLENO,CADENA DE DESPLANTE DE 15X20 CMS.,  ARMADA CON 4 VARILLAS DEL #3 Y EST. #2 @ 15 CMS RESPECTIVAMENTE, MUERETE DE ENRASE DE BLOCK A BASE DE 1 HILADA, RELLENO CON MATERIAL INERTE, INCLUYE; APLANADO CON MORTERO CEM-ARENA 1:4, PINTURA VINILICA A DOS MANOS COLOR INDICADO POR LA DIRECCION DE OBRAS PUBLICAS, IMPERMEABILIZANTE A BASE DE 2 CAPAS DE SELLOTEK, HERRAMIENTA Y MANO DE OBRA QUE INTERVENGAN, ELABORACIÓN DEL CONCRETO, FLETE A OBRA, DESPERDICIO, VERTIDO, ACARREO HASTA EL LUGAR DE SU UTILIZACIÓN, HABILITADO DEL ACERO DE REFUERZO, ANCLAJES,  COLOCACIÓN, AMARRES, CIMBRADO, DESCIMBRADO, LIMPIEZA Y RETIRO DE SOBRANTES FUERA DE OBRA, EQUIPO DE SEGURIDAD, INSTALACIONES ESPECÍFICAS, DEPRECIACIÓN Y DEMÁS DERIVADOS DEL USO DE HERRAMIENT,  EQUIPO EN CUALQUIER NIVEL Y TODO LO NECESARIO PARA SU CORRECTA EJECUCION, CONCEPTO TERMINADO A SATISFACCION DE LA SUPERVISION DE OBRAS. ( VER DETALLE EN PLANOS )","ML",37,0,0]
["18.-","CONSTRUCCIÓN DE SARDINEL DE CONCRETO F'C=150 KG/CM2 DE 0.10X0.10 MTS., REFORZADO CON DOS VARILLA DEL No.2  EN FORMA LONGITUDINAL Y ANCLADAS AL FIRME  Y MUROS  INCLUYE: CIMBRA, DESCIMBRA, ANCLAJES, NIVELACIÓN, ACARREOS DE MATERIALES DENTRO DE LA OBRA, ENTRE ZONA DE DUCHA Y SERVICIO EN BAÑOS, CONCEPTO TERMINADO A SATISFACCIÓN DE SUPERVISIÓN.","ML",14,0,0]
[null,"SUBTOTAL DE ALBAÑILERÍA Y ACABADOS",null,null,null,{"$f":"SUM(F25:F44)","v":0}]
["IV.-","ESTRUCTURA",null,null,null,0]
["01.-","ELABORACION DE LOSA NERVADA DE CONCRETO F'C=200KG/CM2 DE 20 CMS DE ESPESOR Y CASETON DE POLIESTIRENO DE 60x60x15 CMS  CAPA DE COMPRESION DE 5 CMS DE ESPESOR Y MALLA 6-6/10/10, NERVADURAS (N-1)  DE 15 x 20 CMS REFORZADA CON 2 VARILLAS DE 3/8\"  Y ESTRIBOS CON ALAMBRON 1/4\" @ 40 CMS;   AMBOS SENTIDOS, CARGO DIRECTO POR EL COSTO DE LOS MATERIALES, HERRAMIENTA Y MANO DE OBRA QUE INTERVENGAN, ELABORACIÓN DEL CONCRETO, FLETE A OBRA, DESPERDICIO, VERTIDO, ACARREO HASTA EL LUGAR DE SU UTILIZACIÓN, ANCLAJES,  COLOCACIÓN,  HABILITADO DEL ACERO DE REFUERZO, AMARRES, CIMBRADO, DESCIMBRADO, LIMPIEZA Y RETIRO DE SOBRANTES FUERA DE OBRA, EQUIPO DE SEGURIDAD, INSTALACIONES ESPECÍFICAS, DEPRECIACIÓN Y DEMÁS DERIVADOS DEL USO DE HERRAMIENTA Y EQUIPO EN CUALQUIER NIVEL. (VER DETALLE EN PLANO)","M2",805,0,{"$f":"D47*E47","v":0}]
[null,"SUBTOTAL DE ESTRUCTURA",null,null,null,{"$f":"F47","v":0}]
["V.-","CANCELERIA Y HERRERIA",null,null,null,0]
["01.-","SUMINISTRO Y COLOCACIÓN DE VENTANA DE PERFIL DE ALUMINIO ANODIZADO NATURAL  SERIE 3000 CON VIDRIO DE 6 MM COLOR NATURAL, COLOCADO A HUESO, INCLUYE: FIJACIÓN SUPERIOR E INFERIOR, SILICÓN, REFUERZO VERTICAL EN JUNTAS Y ADITAMENTO DE FIJACIÓN Y EQUILIBRIO, MANEJO, ELEVACIÓN, PLOMO, ALINEACIÓN, ALUMINIO COLOR BRONCE LINEA 3000, VER DETALLE EN PLANO, CONCEPTO A SATISFACCIÓN DE SUPERVISIÓN.",null,null,null,0]
[null,"V-1 DE 2.05 X 0.60 M. EN AREA DE  COCINA","PZA",4,0,{"$f":"D51*E51","v":0}]
[null,"V-2 DE 0.60 X 0.40 M. EN AREA DE  BAÑO Y SALA DE JUNTAS","PZA",10,0,0]
["02.-","SUMINISTRO Y COLOCACIÓN DE PUERTA DE ALTA SEGURIDAD MARCA XE MODELO (3L-S1) EN COLOR CHOCOLATE  DE 5 CMS. DE ESPESOR, BLINDADA CON 11 PASADORES EN 4 NIVELES,  INCLUYE: PANELES Y MARCOS DE ACERO  100% PLACA DE ACERO BALISTICO DE 6 MM DE ESPESOR, CHAMBRANAS,3 BISAGRAS DE USO RUDO OCULTAS EN MARCO, 2 LLAVES DE PUNTOS, SOLERA INFERIOR, CERRADURA TRADICIONAL, MIRILLA TELESCOPICA, KIT DE ANCLAJE, MANIJA (X-LED) BISAGRAS DE 180 GRADOS, PERNOS REDONDOS DE CIERRE SUPERIOR, MEDIO E INFERIOR, MANIJA, CERRADURA DE PASADOR, GARANTIAS, MANUAL DE INTALACION, COLOCACIÓN ACORDE INSTRUCTIVO DE FABRICANTE, CONCEPTO A SATISFACCIÓN DE SUPERVISIÓN.",null,null,null,0]
[null,"DEL TIPO (P-2) DE MEDIDAS 1.00 X 2.10 MTS.  EN PAÑOL DE ARMAS","PZA",1,0,0]
["03.-","SUMINISTRO Y COLOCACIÓN DE PUERTAS Y FIJOS EN MAMPARAS PARA SANITARIO, MARCA MODUMEX, MODELO LEEDER IMPERIAL, REALIZADO EN SOLIDO FENÓLICO ESTRUCTURADO ANTIGRAFITI, COLOR SEGÚN MUESTRA APROBADA Y HERRAJES SEGÚN FABRICANTE EN ACERO INOXIDABLE O SU EQUIVALENTE EN CALIDAD. EL PRECIO INCLUYE: SUMINISTRO DE MATERIALES, COLOCACIÓN, MANO DE OBRA, EQUIPO DE SEGURIDAD, FIJACIÓN, CORTES, DESPERDICIOS, APLICACIÓN DE SELLOS, FLETES, ACARREOS VERTICALES Y HORIZONTALES A CUALQUIER NIVEL, HERRAMIENTA, LIMPIEZA GRUESA DIARIA DEL ÁREA DE TRABAJO Y TODO LO NECESARIO PARA SU CORRECTA EJECUCIÓN. (U.O.T.) ) COLOCADO A 30 CMS. DEL N.P.T.","M2",60,0,0]
["04.-","SUMINISTRO Y COLOCACIÓN DE CANCEL CORREDIZO DE ACRÍLICO BLANCO Y PERFIL DE ALUMINIO L-200 COLOR BLANCO EN AREA DE REGADERA INCLUYE: PASADOR, FIJACIÓN A PISO Y MUROS, HERRAJES, RECORTES, DESPERDICIOS, PERFILES,  JALADERAS, AMACICE, ALTURA DE 1.80 MTS., SELLADO CON SILICON,  CARGO DIRECTO POR EL COSTO DE LOS MATERIALES  Y MANO DE OBRA QUE INTERVENGAN, FLETE A OBRA, DESPERDICIO, ACARREO HASTA EL LUGAR DE SU UTILIZACIÓN, TRAZO, CORTE, HABILITADO, ARMADO, ANCLAJE Y SOPORTERIA, AJUSTES, LIMPIEZA Y RETIRO DE SOBRANTES FUERA DE OBRA, EQUIPO DE SEGURIDAD, INSTALACIONES ESPECÍFICAS, DEPRECIACIÓN Y DEMÁS DERIVADOS DEL USO DE HERRAMIENTA Y EQUIPO, EN CUALQUIER NIVEL, LIMPIEZA GRUESA Y FINA, CONCEPTO A SATISFACCIÓN DE SUPERVISIÓN","ML",2,0,{"$f":"D56*E56","v":0}]
["05.-","SUMINISTRO Y COLOCACIÓN DE PUERTA DE HERRERÍA TUBULAR  PERFIL COMERCIAL A BASE DE LAMINA LISA CAL. #18 .INCLUYE: CHAPA DE PARCHE CON LLAVE Y SEGURO, JALADERA AMBOS LADOS, MARCO METÁLICO Y CONTRAMARCO DE PTR ROJO DE 2\"X2\", PRIMER ANTICORROSIVO, ESMALTE INDUSTRIAL A DOS MANOS, ACABADO, RECEPCION Y COLOR A SATISFACCION DE   SUPERVISIÓN (VER PLANOS EN DETALLES). ",null,null,null,0]
[null,"DEL TIPO (P-12) EN MEDIDAS DE 1.000 X 2.10 MTS. (EN AREA DE DESCARGA) (BAÑO EXTERIOR)","PZA",1,0,{"$f":"D58*E58","v":0}]
[null,"DEL TIPO (P-2) EN MEDIDAS DE 0.80 X 2.10 MTS. (BAÑO EXTERIOR)","PZA",1,0,{"$f":"D59*E59","v":0}]
["06.-","SUMINISTRO, FABRICACIÓN Y COLOCACIÓN  DE PUERTA DE MADERA TIPO TAMBOR CON BASTIDOR, MARCO PERIMETRAL DE MADERA  CON BARROTE DE 2 X4\" POR UN ANCHO SEGUN SEA EL CASO SI ES MURO DE TABLAROCA O DE BLOCK EN TODO EL PERIMETRO, TOPO, CHAMBRANAS AMBOS LADOS, UNIÓN ESPIGA Y CAJA CON PEGAMENTO Y CLAVO SIN CABEZA DE 19 MM. FORRO TRIPLAY DE MADERA TIPO CAOBILLA DE 3/4\". DE ESPESOR POR 2 LADOS, CLAVADO Y PEGADO, EL BASTIDOR ESTARÁ ATORNILLADO, INCLUYE; CHAPA MARCA PHILLIPS, BISAGRA, CARGO DIRECTO POR EL COSTO DE LOS MATERIALES Y MANO DE OBRA QUE INTERVENGAN, FLETE A OBRA, DESPERDICIO, ACARREO HASTA EL LUGAR DE SU UTILIZACIÓN, TRAZO, PICAPORTE ARRIBA Y ABAJO SEGUN SEA EL CASO, CORTES, HABILITADO, ARMADO, AJUSTE, LIMPIEZA Y RETIRO DE SOBRANTES FUERA DE OBRA, EQUIPO DE SEGURIDAD, INSTALACIONES ESPECÍFICAS, DEPRECIACIÓN Y DEMÁS DERIVADOS DEL USO DE HERRAMIENTA Y EQUIPO, EN CUALQUIER NIVEL.",null,null,null,0]
[null,"DEL TIPO (P-3) DE 0.90  X 2.10 MTS.","PZA",11,0,0]
[null,"DEL TIPO (P-4) DE 0.80 X 2.10 MTS. ","PZA",2,0,0]
["07.-","SUMINISTRO, FABRICACION Y COLOCACION DE PUERTA COREDIZA DE ALUMINIO COLOR NATURAL MARCA CUPRUM  3000  SERIEDE 3\" DE ESPESOR, VIDRIO TEMPLADO NATURAL INCLUYE: HERRAJES, BISAGRA HIDRAULICA DE PISO DE DOBLE ACCION, CHAPA PARA PUERTA, JALADOR TIPO UÑERO CARGO DIRECTO POR EL COSTO DE LOS MATERIALES Y MANO DE OBRA QUE INTERVENGAN, FLETE A OBRA, DESPERDICIO, ACARREO HASTA EL LUGAR DE SU UTILIZACION, TRAZO, ARMADO, LIMPIEZA Y RETIRO DE SOBRANTES FUERA DE LA OBRA, EQUIPO DE SEGURIDAD, INSTALACIONES ESPECIFICAS, DEPRECIACION Y DEMAS DERIVADOS DEL USO DE HERRAMIENTA Y EQUIPO EN CUALQUIER."]
[null,"DEL TIPO (P-5) DE 2.50 X 2.10 MTS ","PZA",5,0,{"$f":"D64*E64","v":0}]
[null,"DEL TIPO (P-6) DE 1.20 X 2.10  MTS (ACCESO A COCINA)","PZA",1,0,0]
[null,"DEL TIPO (P-7) DE 1.00 X 2.10  MTS (AREA DE DESCARGA)","PZA",1,0,0]
["08.-","SUMINISTRO Y COLOCACIÓN DE PUERTA PARA CUARTO FRIO (CAMARA FRIA) DE FABRICADA EN LAMINA DE ACERO INOXIDABLE E INYECTADA CON AISLAMIENTO TERMICO DE  POLIURETANO  DE ALTA DENSIDAD, INCLUYE: BOTADOR DE SEGURIDAD, SARDINEL Y MARCO DE MADERA. DEL TIPO (P-8 EN MEDIDAS DE 1.30. X 2.10 MTS. (VER DETALLE EN PLANO) INDICAR CORRECTAMENTE EN PLANO","PZA",2,0,0]
["09.-","SUMINISTRO Y COLOCACIÓN DE PUERTA PEATONAL DE MALLA CICLONICA,  A BASE DE POSTE DE ARRANQUE Y DE TERMINO DE 2 3/8\" Ø, POSTE INTERMEDIO DE  2 3/8\" Ø,, BARRA HORIZONTAL DE  3/8\" Ø,CAPUCHA CUPULA, CAPUCHA SIMPLE, ABRAZADERA DE TENSION, CAPUCHA OCHAVO, ESPADA SIMPLE, COPLE OREJA, CABLE TENSOR, ARMELLA ALAMBRE GALVANIZADO CAL. 16, MALLA CICLONICA DE ALAMBRE GALVANIZADO DE 10.5 MM CON APERTURA DE 5 CMS. CON CINTA DE PRIVACIDAD EN COLOR AZUL, INCLUYE; INCLUYE: TRAZO Y NIVELACION, LESEXCAVACION, MUERTO DE CONCRETO DE 0.35 X 0.50 MTS.,     CARGO DIRECTO POR EL COSTO DE LOS MATERIALES Y MANO DE OBRA QUE INTERVENGAN, FLETE A OBRA, DESPERDICIO, ACARREO HASTA EL LUGAR DE SU UTILIZACIÓN, TRASLAPES, NIVELACION, CORTES, DOBLECES, AMARRES CON ALAMBRE GALVANIZDO CAL 16, LIMPIEZA, RETIRO DE SOBRANTES, EQUIPO DE SEGURIDAD, INSTALACIONES ESPECÍFICAS, DEPRECIACIÓN Y DEMÁS CARGOS DERIVADOS DEL USO DE EQUIPO Y HERRAMIENTA EN CUALQUIER NIVEL.  CARGO DIRECTO POR EL COSTO DE LOS MATERIALES Y MANO DE OBRA QUE INTERVENGAN, FLETE A OBRA, DESPERDICIO, ACARREO HASTA EL LUGAR DE SU UTILIZACIÓN, TRAZO Y NIVELACIÓN, DOBLECES , CORTE, ENERGÍA ELÉCTRICA, RESANES, LIMPIEZA Y RETIRO DE SOBRANTES FUERA DE OBRA, EQUIPO DE SEGURIDAD, INSTALACIONES ESPECÍFICAS, DEPRECIACIÓN Y DEMÁS DERIVADOS DEL USO DE HERRAMIENTA Y EQUIPO. DEL TIPO (P-17)  DE 1.20 X 2.10 MTS., Y UN FIJO DE 1.20 X 0.70 MTS. (VER DETALLE EN PLANO) CON CERROJO TIPO PASADOR Y CANDADOS, PICAPORTES ESPECIAL PARA USO EXTERIOR, BISAGRAS CLASE REFORZADA DE ACERO GALVANIZADO EN CALIENTE Y SOLDADOS ANTES DE PINTAR., (VER DETALLE EN PLANO)","PZA",1,0,0]
["10.-","SUMINISTRO, INSTALACION Y COLOCACION DE PORTON METALICO VEHICULAR DE DOS HOJAS DEL TIPO (P-15)  4.00 LARGO X 3.30 MTS  DE ALTURA  A BASE DE TUBO DE NEGRO 4\" CEDULA 40 A CADA 15 CMS  A EJE EN MODO VERTICAL Y PTR ROJO DE 4X4 EN HORIZONTALES EN PARTE SUPERIOR E INFERIOR, POSTES LATERALES DE TUBO NEGRO CEDULA 400 DE 6\" A LOS EXTREMOS ANCLAJE CON BISAGRAS, INCLUYE: EXCAVACION, RELLENO, HERRAJES, PINTURA Y PRYMER A DOS MANOS, DOS ZAPATAS AISLADAS DE CONCRETO ARMADAO CON UNA REISTENCIA DE F´C= 250G/CM2 DE SECCION 0.80X0.80 MTS Y 0.20 DE PERALTE ARMADA CON 5 VARILLAS DEL #3 COLOCADAS A CADA 15 CMS Y DADO DE CONCRETO DE F´C= 250 KG/CM2 DE SECCION DE 0.35X035 Y 0.95 MTS DE ALTURA ARMADO CON 4 VARILLAS DEL #5 Y 4 VARILLAS DEL #4 Y DOS ESTRIBOS #3 COLOCADOS A CADA 15 CMS, DESPLANTADA SOBRE UNA PLANTILLA DE 0.80X0.80 MTS Y 5 CMS DE ALTURA DE CONCRETO RESISTENCIA F´C= 100 KG/CM2 PLACA BASE DE 12\"X12\"X12\" CON 4 ANCLAS DE 3/4,  AHOGADO EN MURO DE BLOCK 15X20X40CMS. DE 60 CMS. DE ALTURA, SOSTENIDA CON 4 CARTABONES DE 4\" DE ALTURA, MATERIAL, MANO DE OBRA, SOLDADURA, TEJUELOS, CERROJO TIPO MAUSER, PORTA CANDADO, PICAPORTE REDONDE DE 1\", Y TODO LO NECESARIO PARA SU CORRECTA EJECUCION. (P.U.O.T.)","PZA",1,0,{"$f":"D69*E69","v":0}]
["11.-","SUMINISTRO, INSTALACION Y COLOCACION DE PORTON METALICO PEATONAL DE UNA HOJAS DEL TIPO (P-16)  1.50 LARGO X 3.10 MTS  DE ALTURA A BASE DE TUBO DE NEGRO 4\" CEDULA 40 A CADA 15 CMS  A EJE EN MODO VERTICAL Y PTR ROJO DE 4X4 EN HORIZONTALES EN PARTE SUPERIOR E INFERIOR, POSTES LATERALES DE TUBO NEGRO CEDULA 400 DE 6\" A LOS EXTREMOS ANCLAJE CON BISAGRAS, INCLUYE: EXCAVACION, RELLENO, HERRAJES, PINTURA Y PRYMER A DOS MANOS, DOS ZAPATAS AISLADAS DE CONCRETO ARMADAO CON UNA REISTENCIA DE F´C= 250G/CM2 DE SECCION 0.80X0.80 MTS Y 0.20 DE PERALTE ARMADA CON 5 VARILLAS DEL #3 COLOCADAS A CADA 15 CMS Y DADO DE CONCRETO DE F´C= 250 KG/CM2 DE SECCION DE 0.35X035 Y 0.95 MTS DE ALTURA ARMADO CON 4 VARILLAS DEL #5 Y 4 VARILLAS DEL #4 Y DOS ESTRIBOS #3 COLOCADOS A CADA 15 CMS, DESPLANTADA SOBRE UNA PLANTILLA DE 0.80X0.80 MTS Y 5 CMS DE ALTURA DE CONCRETO RESISTENCIA F´C= 100 KG/CM2 PLACA BASE DE 12\"X12\"X12\" CON 4 ANCLAS DE 3/4, SOSTENIDA CON 4 CARTABONES DE 4\" DE ALTURA, MATERIAL, MANO DE OBRA, SOLDADURA, TEJUELOS, CERROJO TIPO MAUSER, PORTA CANDADO, PICAPORTE REDONDE DE 1\", Y TODO LO NECESARIO PARA SU CORRECTA EJECUCION. (P.U.O.T.)","PZA",1,0,0]
["12.-","SUMINISTRO, INSTALACION Y COLOCACION DE PORTON METALICO PEATONAL DE DOS HOJAS DEL TIPO (P-1)  2.00 LARGO X 2.80 MTS  DE ALTURA A BASE DE TUBO DE NEGRO 4\" CEDULA 40 A CADA 15 CMS  A EJE EN MODO VERTICAL Y PTR ROJO DE 4X4 EN HORIZONTALES EN PARTE SUPERIOR E INFERIOR, POSTES LATERALES DE TUBO NEGRO CEDULA 400 DE 6\" A LOS EXTREMOS ANCLAJE CON BISAGRAS, INCLUYE: EXCAVACION, RELLENO, HERRAJES, PINTURA Y PRYMER A DOS MANOS, DOS ZAPATAS AISLADAS DE CONCRETO ARMADAO CON UNA REISTENCIA DE F´C= 250G/CM2 DE SECCION 0.80X0.80 MTS Y 0.20 DE PERALTE ARMADA CON 5 VARILLAS DEL #3 COLOCADAS A CADA 15 CMS Y DADO DE CONCRETO DE F´C= 250 KG/CM2 DE SECCION DE 0.35X035 Y 0.95 MTS DE ALTURA ARMADO CON 4 VARILLAS DEL #5 Y 4 VARILLAS DEL #4 Y DOS ESTRIBOS #3 COLOCADOS A CADA 15 CMS, DESPLANTADA SOBRE UNA PLANTILLA DE 0.80X0.80 MTS Y 5 CMS DE ALTURA DE CONCRETO RESISTENCIA F´C= 100 KG/CM2 PLACA BASE DE 12\"X12\"X12\" CON 4 ANCLAS DE 3/4, SOSTENIDA CON 4 CARTABONES DE 4\" DE ALTURA, MATERIAL, MANO DE OBRA, SOLDADURA, TEJUELOS, CERROJO TIPO MAUSER, PORTA CANDADO, PICAPORTE REDONDE DE 1\", Y TODO LO NECESARIO PARA SU CORRECTA EJECUCION. (P.U.O.T.)","PZA",1,0,0]
[null,"SUBTOTAL DE CANCELERÍA Y HERRERÍA",null,null,null,{"$f":"SUM(F51:F71)","v":0}]
["VI.-","INSTALACIONES HIDROSANITARIAS ",null,null,null,{"$f":"D73*E73","v":0}]
["01.-","CONSTRUCCION DE MESETA PARA LAVABOS DE CONCRETO F'C=200 KG/CM2 DE 0.60 MTS. DE  ANCHO  POR  8 CMS. DE ESPESOR, ARMADA CON ACERO No.3 A/C 15 CMS. AMBOS LADOS, INCLUYE: EN SU CASO MUROS DE APOYO DE BLOCK DE 15X20X40 CMS. DE ESPESOR, CON APLANADO PULIDO, CIMBRA, DESCIMBRA, ARMADO, COLADO, VIBRADO, CURADO, RANURAS EN MURO PARA AMARRES, PREPARACIÓN PARA LA COLOCACION DE LAVABO OVALIN, REVESTIDO CON AZULEJO IDÉNTICO AL DE MUROS, ESQUINEROS DE PVC TIRATRIN, EMBOQUILLADOR ANTIBACTERIAL, PEGADO A HUESO, CEMENTO BLANCO, PEGAPISO, DETALLES, RECORTES Y TODO LO NECESARIO PARA SU CORRECTO FUNCIONAMIENTO. CONCEPTO A SATISFACCION DE SUPERVISION.","ML",10,0,0]
["02.-","SALIDA HIDROSANITARIA PARA  MUEBLE,   A BASE DE TUBO HIDRÁULICO CPVC, AGUA FRÍA Y CALIENTE, Ø 3/4\" Y 1/2\" Y SANITARIO DE PVC DE DIÁMETROS 6\", 4\" Y 2\" CON CAMPANA ANGER LISO ,PARA CALENTADOR, W.C., MINGITORIO, LAVABO, TARJA, FREGADEROS, INCLUYE: MANGUERA ALIMENTADORA, LLAVE DE ANGULO, CONECTOR HEMBRA, CODOS DE 90° Y 45°, CODOS, TALÓN, REDUCCIONES, COPLES, YEES, PEGAMENTO PVC, DRENADO  HASTA PRIMER  REGISTRO, ACCESORIOS Y TODOS LOS MATERIALES NECESARIOS Y MANO DE OBRA PARA SU CORRECTO FUNCIONAMIENTO, HERRAMIENTA, EXCAVACIONES, RANURAS, RESANES, PASOS EN ESTRUCTURA, PROTECCIÓN CON PVC, PRUEBAS DE PRESIÓN Y ESCURRIMIENTO, RELLENOS COMPACTOS, CONCEPTO DE ACUERDO A PLANO DE PROYECTO Y A SATISFACCIÓN DE SUPERVISIÓN.","SAL",38,0,0]
["03.-","SALIDA PARA REGADERA CON TUBO CPVC Ø 3/4\" DE ALIMENTACIÓN GENERAL Y Ø 1/2\" EN ALIMENTACIÓN POR MUROS, LLAVE MEZCLADORA DE COBRE URREA, MANERALES Y REGADERA CROMADA PRIMERA CALIDAD DE 4\", CHAPETÓN, INCLUYE: RANURAS, ACCESORIOS, PEGAMENTO, CONECTORES, REDUCCIONES, CODOS, CESPOL DE BOTE, TUBO PARA DREN, RESANES, PRUEBAS, CONCEPTO A SATISFACCIÓN DE SUPERVISIÓN Y DE ACUERDO A PLANOS.","SAL",9,0,0]
["05.-","SUMINISTRO Y COLOCACIÓN DE LAVABO DE COLOR, PRIMERA CALIDAD, DE SOBREPONER EN MESETA DE CONCRETO, INCLUYE:  SELLADO PERIMETRAL, LLAVES DE METAL DE MEDIA VUELTA, MEZCLADORAS EN SU CASO, DE PRIMERA CALIDAD,CESPOL, CUELLO DE GANSO, CONTRA REJILLAS, EMPAQUE DE HULE EN DESCARGA, MATERIALES NECESARIOS Y MANO DE OBRA, ACARREOS, ELEVACIÓN, PRUEBAS DE FUNCIONAMIENTO, CONCEPTO TERMINADO A SATISFACCIÓN DE SUPERVISIÓN.","PZA",11,0,0]
["06.-","SUMINISTRO Y COLOCACIÓN DE MUEBLE SANITARIO W.C. MARCA IDEAL STANDAR O SIMILAR EN CALIDAD Y PRECIO DE COLOR, AHORRADOR DE AGUA DE 6 LITROS  DE DESCARGA,  PRIMERA CALIDAD CON TANQUE, TAPA, PIJAS, BRIDA DE PVC, HERRAJES, SELLADO PERIMETRAL, MANGUERA ALIMENTADORA, LLAVE DE ANGULO, TAQUETES, PRUEBAS DE FUNCIONAMIENTO, CONCEPTO TERMINADO A SATISFACCIÓN DE SUPERVISIÓN.","PZA",10,0,0]
["07.-","SUMINISTRO Y COLOCACIÓN DE MINGITORIO MARCA IDEAL ESTÁNDAR DE PRIMERA CALIDAD EN COLOR, MEDIANO EN TAMAÑO, SALIDA OCULTA,  INCLUYE: FIJACIÓN, TAQUETES, PIJAS, DREN, ALIMENTACIÓN CON LLAVE CROMADA, CONEXIONES, ALINEACIÓN, PRUEBAS DE ESCURRIMIENTO, CONCEPTO TERMINADO, MATERIALES, MANO DE OBRA, ELEVACIÓN, MOVIMIENTOS INTERNOS, ANDAMIOS (VER PLANO DE LOCALIZACIÓN).","PZA",4,0,0]
["08.-","SUMINISTRO, COLOCACIÓN Y CONEXIÓN DE EXTRACTOR MARCA VOLTECK MODELO EXA-6B SERIE 48532 DE 6\" DE DIAMETRO, EN MEDIDAS DE 21 X 21 CMS., 9.0 CMS. DE ANCHO, CON UN PESO DE 700 GRS,  TENSION DE 127 VOLLTS, FRECUENCIA DE 60 Hz POTENCIA DE 24 WATTS, VELOCIDAD DE 1600 RPM,CON UN FLUJO DE AIRE DE 325 M3/H, RUIDO DE 59 dB, DIAMETROS DE LAS ASPAS 14.88 MM, INCLUYE: RIN DE PRESION, CORTE Y RANURADO EN MURO Y/O PLAFON,  CONECTORES, CLAVIJA Y RECEPTACULO, TORNILLOS, TUERCAS, ARANDELAS Y DEMÁS ELEMENTOS DE FIJACIÓN Y CONEXIÓN, CARGO DIRECTO POR EL COSTO DE MANO DE OBRA Y MATERIALES REQUERIDOS, FLETE A OBRA, ACARREO, COLOCACIÓN, FIJACIÓN, LIMPIEZA Y RETIRO DE SOBRANTES FUERA DE OBRA, EQUIPO DE SEGURIDAD, INSTALACIONES ESPECIFICAS, DEPRECIACIÓN Y DEMÁS CARGOS DERIVADOS DEL USO DE HERRAMIENTA Y EQUIPO EN CUALQUIER NIVEL, ANEXAR COPIA DE CERTIFICADO DEL PRODUCTO.","PZA",3,0,0]
["09.-","SUMINISTRO Y COLOCACIÓN DE ELEMENTOS DE SOBREPONER, INCLUYE; CARGO DIRECTO POR EL COSTO DE LOS MATERIALES Y MANO DE OBRA QUE INTERVENGAN, FLETE A OBRA, DESPERDICIO, ACARREO HASTA EL LUGAR DE SU UTILIZACIÓN, TRAZO, NIVELACIÓN, FIJACIÓN, PRUEBAS, AJUSTES, RESANES, LIMPIEZA Y RETIRO DE SOBRANTES FUERA DE OBRA, EQUIPO DE SEGURIDAD, INSTALACIONES ESPECÍFICAS, DEPRECIACIÓN Y DEMÁS DERIVADOS DEL USO DE HERRAMIENTA Y EQUIPO, EN CUALQUIER NIVEL.",null,null,0,0]
[null,"DESPACHADOR DE JABÓN LIQUIDO, MARCA KIMBERLY CLARCK MOD. 94236 COLOR HUMO.","PZA.",8,0,0]
[null,"DESPACHADOR DE PAPEL SANITARIO JR, MARCA KIMBERLY CLARCK MOD. 94208 COLOR HUMO.","PZA.",10,0,0]
[null,"DESPACHADOR DE TOALLAS DE PAPEL, MARCA KIMBERLY CLARCK MOD. ELEMENT 92259, COLOR HUMO.","PZA.",8,0,0]
["10.-","SUMINISTRO Y COLOCACIÓN DE VIDRIO ESPEJO PLANO MONTADO EN BASTIDOR DE MADERA DE PINO DE 1ra, TRIPLAY DE 1/4\" Y MARCO DE ALUMINIO ANODIZADO COLOR BRONCE DE CRISTAL FLOTADO (ESPEJO) DE 6MM., INCLUYE: MATERIALES NECESARIOS, MANO DE OBRA, TAQUETES, PIJAS, RECORTES, DESPERDICIOS, ELEVACIÓN, ANDAMIOS, NIVELACIÓN, TRASLADOS, MANO DE OBRA, FIJACIÓN, CONCEPTO TERMINADO A SATISFACCIÓN DE SUPERVISIÓN. EN AREA DE BAÑOS ","M2",9.5,0,0]
["11.-","SUMINISTRO Y COLOCACION DE TARJA EN AREA DE COCINA A BASE  DE ACERO INOXIDABLE  TIPO 304 GRADO ALIMENTICIO DE ACUERDO A ESPECIFICACIONES DE LA DIRECCION DE OBRAS PUBLICAS, INCLUYE; LLAVE MONOMANDO MARCA HERLVEX MODELO E-34, CARGO DIRECTO POR EL COSTO DE MANO DE OBRA Y MATERIALES REQUERIDOS, FLETE A OBRA, ACARREOS, NIVELACIÓN, FIJACIÓN, TORNILLOS, TAQUETES, PRUEBAS, LIMPIEZA Y RETIRO DE SOBRANTES FUERA DE OBRA, EQUIPO DE SEGURIDAD, DEPRECIACIÓN Y DEMÁS CARGOS DERIVADOS DEL USO DE EQUIPO Y HERRAMIENTA, EN CUALQUIER NIVEL. ",null,null,0,0]
[null,"DOBLE 140X70X90 CON 2 TINAS 41X51X25 FRD-140T (COCCION, SERVICIO Y DESCARGA)","PZA",2,0,0]
[null,"TRIPLE 260X70X90 CON 3 TINAS 50X50X30 FRT-260T (PREPARACION)","PZA",1,0,0]
[null,"SENCILLA 0.70X70X90 CON 1 TINAS 50X55X30  (COCCION Y SERVICIO)","PZA",2,0,0]
["13.-","SUMINISTRO Y COLOCACIÓN DE LAVADERO COMERCIAL DE SOBREPONER TAMAÑO GRANDE CON PILETA, INCLUYE: MURETES LATERALES DE BLOCK Y APLANADO, REGISTRO PARA DREN, TUBO, LLAVE DE LLENADO DE  MEDIA VUELTA, ELEVACIÓN, ACARREOS INTERNOS, ANDAMIOS, FIJACIÓN, SELLADO PERIMETRAL, Y TODO LO NECESARIO PARA SU CORRECTO FUNCIONAMIENTO, CONCEPTO TERMINADO A SATISFACCION DE SUPERVISION.","PZA",2,0,0]
["14.-","SUMINISTRO E INSTALACIONES DE TANQUE PARA GAS CON ACCESORIOS. INCLUYE; LINEA Y LLAVE E LLENADO TUBERIA  DE COBRE DE DIFERENTES DIAMETROS (1\",3/4\" Y 1/2\"), CARGO DIRECTO POR EL COSTO DE MANO DE OBRA Y MATERIALES REQUERIDOS, FLETE A OBRA, TRAZO, FIJACIÓN, NIVELACIÓN, PRUEBAS DE FUNCIONAMIENTO LIMPIEZA Y RETIRO DE SOBRANTES FUERA DE OBRA, EQUIPO DE SEGURIDAD, INSTALACIONES ESPECÍFICAS, DEPRECIACIÓN Y DEMÁS CARGOS DERIVADOS DEL USO DE EQUIPO Y HERRAMIENTA EN CUALQUIER NIVEL Y TODO LO NEVCESARIO PARA SU CORRECTA INSTALACION Y FUNCIONAMIENTO, PRUEBAS DE FUNCIONAMIENTO. 'ESTACIONARIO DE 2, 800 LTS. DE CAPACIDAD, MARCA TATSA","PZA.",1,0,0]
["15.-","SUMINISTRO Y COLOCACIÓN DE TINACO TRICAPA VERTICAL DE 1,100 LTS., DE CAPACIDAD, INCLUYE: BASE DE CONCRETO DE 10 CMS. DE ESPESOR POR 1.50X1.50 MTS., CON MURETE EN FORMA DE \"ELE\", BLOCK DE 15X20X40 CMS. JUNTEADO CON MORTERO CEMENTO - ARENA 1:4, APLANADO COMPLETO DENTRO Y FUERA, ACABADO FLOTEADO FINO, FILOS Y BOQUILLAS, ELEVACIÓN, COLOCACIÓN, CONEXIÓN, TUBO VENTILA, VÁLVULA DE CIERRE AUTOMÁTICO, FLOTADOR, CONECTOR, TAPA, PRUEBAS Y TODO EL MATERIAL NECESARIO PARA SU CORRECTO FUNCIONAMIENTO, MANO DE OBRA (VER PLANO HIDRÁULICO DE UBICACIÓN)","PZA",6,0,0]
["16.-","SUMINISTRO Y COLOCACIÓN DE CISTERNA ROTOPLAS O SIMILAR TRICAPA, VERTICAL DE 10,000 LTS. DE CAPACIDAD CON TAPA, INCLUYE: EXCAVACION, PLANTILLA PARA DESPLANTE CON CONCRETO F'C=  100 KG/CM2, ARMADA CON VARILLA DEL No.- 3 @ 20 CMS. EN AMBOS SENTIDOS, ADEMADA CON BLOCK 15X20X40CS., CON CELDAS RELLENAS DE CONCRETO F'C= 100 KG/CM2  Y VARILLAS AHOGADAS A CADA TERCER CELDA DE 3/8\", CATILLOS DE 15 X 15 CMS. EN LAS ESQUINAS,  REMATE SUPERIOR EN MURO CON CADENA PERIMETRAL DE CONCRETO ARMADO DE 15 X 15 CM. ARMADA CON 4 VARILLAS DEL No.3 A.R. Y ESTRIBOS DEL No.2 A CADA 20 CM. F´C= 100 KG/CM2. LOSA DE CONCRETO  DE 10 CMS DE 2,80X2,80 MTS. ARMADA  CON VARILLA No. 3 @ 20 CMS EN AMBOS SENTIDOS, CIMBRA  AHOGADA, CONCRETO F`C=250 KG/CM2 CON IMPERMEABILIZANTE INTEGRAL, APLANADO  DE MURETE INTERIOR Y EXTERIOR ACABADO FLOTEADO FINO Y PINTURA VINILICA.,  REGISTRO PASA HOMBRE, TAPA DE CONCRETO DE 7 CM. DE ESPESOR. F´C= 150 KG/CM2, ARMADA CON 4 VARILLAS DEL No.3 A.R. EN AMBOS SENTIDOS.,  TAPA DE 0,70X0,70 MTS.,MARCO Y CONTRAMARCO, A BASE DE ÁNGULOS DE 1 1/4\" X 1/8\" Y 1 1/2\" X 1/8\" CON AGARRADERA TIPO LLAVE, DE 70 X 70 CMS., RELLENO CON MATERIAL PRODUCTO DE EXCAVACION, COLOCACIÓN, MANEJO, BAJADA, CONEXIÓN DE TUBERÍA DE LLENADO, PICHANCHA, FLOTADOR, LLAVE DE CIERRE AUTOMÁTICO, TUBO NECESARIO DE COBRE, DIVERSOS DIÁMETROS, ACCESORIOS NECESARIOS, Y TODO LO NECESARIO PARA SU PERFECTO LLENADO Y DRENADO, BOMBA ELÉCTRICA, BOMBA,  CONCEPTO A SATISFACCIÓN DE SUPERVISIÓN Y TERMINADO, LUGAR Y PROFUNDIDAD INDICADA EN PLANOS DE PROYECTO Y/O POR SUPERVISIÓN.","PZA",2,0,0]
["17.-","SUMINISTRO Y COLOCACIÓN DE CALENTADOR PARA AGUA DE DEPOSITO MARCA RHEEM DE 72 GLS. DE GAS NATURALPARA 9.5 SERVICIOS, INCLUYE: BASE METÁLICA DE ANGULO DE 2\", CONEXIONES HIDRAULICAS Y ELECTRICAS, VALVULA  DE ALIVIO, DOS LLAVES DE CONTROL DE SALIDA, PRUEBAS, ELEVACIÓN, ANDAMIOS, ACARREOS, Y TODO LO NECESARIO PARA SU CORRECTO FUNCIONAMIENTO, CONCEPTO TERMINADO A SATISFACCION DE SUPERVISION.","PZA",3,0,0]
["18.-","SUMINISTRO E INSTALACIÓN DE TUBO DE COBRE RÍGIDO  PARA INSTLACIONES DE GAS MCA. NACOBRE Ó SIMILAR, INCLUYE; (TEE, CODOS, YEE, COPLES, CONECTOR DE ROSCA, TUERCAS UNION,  TAPONES, CRUZ, ADAPTADORES ETC) LAVADO PREVIAMENTE CON TRIFOSFATO DE SODIO Y AGUA CALIENTE EN UNA PORCIÓN 3%, POR EL MÉTODO DE INMERSIÓN, SE USARÁ SOLDADURA DE PLATA AL 50% EN AMBIENTE DE NITRÓGENO, Y PRUEBAS DE HERMETICIDAD DE LÍNEAS CON NITRÓGENO; CARGO DIRECTO POR EL COSTO DE MANO DE OBRA Y MATERIALES REQUERIDO, FLETE A OBRA, ACARREO, TRAZO, LIJADO, FIJACIÓN, NIVELACIÓN Y PRUEBA, LIMPIEZA Y RETIRO DE SOBRANTES FUERA DE OBRA, EQUIPO DE SEGURIDAD, INSTALACIONES ESPECIFICAS, DEPRECIACIÓN Y DEMÁS CARGOS DERIVADOS DEL USO DE EQUIPO DE OXIACETILENO  Y HERRAMIENTA EN CUALQUIER NIVEL.  DE 3/4\"","ML",85,0,0]
[null,"SUBTOTAL DE HIDROSANITARIAS",null,null,0,{"$f":"SUM(F74:F95)","v":0}]
["VII.-","RED EXTERIOR",null,null,0]
["01.-","CONDUCCIÓN SANITARIA CON TUBO ANGER PVC SANITARIO REFORZADO DE 4\" Y 2\" DESDE DESAGÜES HASTA REGISTROS DE PASO, INCLUYE: TRAZO, EXCAVACIÓN DE 0.00 HASTA 0.80 M. DE PROFUNDIDAD,, NIVELACIÓN, CAMA DE ARENA, COLOCACIÓN, RELLENO COMPACTO, PRUEBAS DE ESCURRIMIENTO, LIMPIEZA GRUESA Y FINA, CONCEPTO DE ACUERDO A PLANO DE PROYECTO Y A SATISFACCIÓN DE SUPERVISIÓN (CONDUCCIÓN HASTA BATERÍA DE REGISTROS DE CONDUCCIÓN).","ML",180,0,{"$f":"D98*E98","v":0}]
["02.-","CONSTRUCCIÓN DE REGISTRO SANITARIO DE DIMENSIONES DE 40X60X80 CMS., A BASE DE BLOCK DE 15X20X40 CMS., ASENTADO CON MORTERO CEMENTO - ARENA 1:3, APLANADO INTERIOR, PULIDO FINO Y EXTERIOR VISIBLE CON FLOTA DE HULE, MEDIA CAÑA, EXCAVACIÓN, PLANTILLA, RELLENO COMPACTO, NIVELACIÓN, MARCO Y CONTRAMARCO CON ANGULO DE 1 1/2\"X1/8\", TAPA DE CONCRETO FC 150 K/CM2 , JALADERAS, SUPERFICIE RAYADA CON BROCHA DE PELO, CADENA, ENRASE SIN ARMAR DE 15X15 CMS., LIMPIEZA GRUESA, ACARREOS INTERNOS DE MATERIALES, CARGA Y RETIRO DE SOBRANTES FUERA DE LA OBRA, CONCEPTO TERMINADO (PLANO DE RED EXTERIOR).","PZA",8,0,0]
["03.-","ALIMENTACIÓN A CISTERNA CON TUBO CPVC TIPO ANGER DE 3/4\"  O 1/2\" Ø, INCLUYE: EXCAVACIÓN DE 0.40X0.50 M. DE PROFUNDIDAD, RELLENO COMPACTO, CODOS, COPLES, PEGAMENTO, PASOS EN MUROS Y ELEMENTOS ESTRUCTURALES, RESANES, CONEXIÓN, LLAVE DE CONTROL DE Ø 3/4\" DE MEDIA VUELTA PVC, CONECTOR HEMBRA, ACCESORIOS Y MATERIALES NECESARIOS PARA SU CORRECTO FUNCIONAMIENTO, MANO DE OBRA, ANDAMIOS, ELEVACIÓN, PRUEBAS DE PRESION, CONCEPTO TERMINADO DE ACUERDO A PLANO DE PROYECTO Y SUPERVISIÓN (DE REGISTRO DE PVC DE BANQUETA A CISTERNAS).","ML",30,0,0]
["04.-","CONSTRUCCIÓN DE CUADRO MEDIDOR A BASE DE TUBO DE CPVC HIDRÁULICO DE Ø 3/4\", INCLUYE: CODOS, PEGAMENTO, EXCAVACION, CORTES, CONECTORES HEMBRAS, PREPARACIÓN PARA RECIBIR MEDIDOR, FIJACIÓN CON BASE DE CONCRETO DE 50X30X30 CMS. F'C=100 KG/CM2, VARILLA DE Ø 1/2\" DE APOYO VERTICAL, RELLENOS, DESPERDICIOS, CONCEPTO TERMINADO A SATISFACCIÓN DE SUPERVISIÓN.","PZA",1,0,0]
["05.-","SUMINISTRO Y COLOCACIÓN DE REGISTRO HIDRÁULICO DE PVC (CAJA DE PROTECCIÓN) DE 0.50X0.30X0.50 MTS. CON TAPA, INCLUYE: EXCAVACIÓN, COLOCACIÓN, FIJACIÓN  A BANQUETA  MUNICIPAL, CORTES AL CONCRETO CON DISCO, DEMOLICIÓN, RETIRO DE ESCOMBRO, LLAVE DE PASO DE PVC MEDIA VUELTA, CONECTOR DE PVC A COBRE, CONCEPTO TERMINADO A SATISFACCIÓN DE SUPERVISIÓN. (VER PLANO DE RED EXTERIOR).","PZA",1,0,0]
["06.-","CONDUCCIÓN A TINACOS DESDE CISTERNA CON TUBO DE CPVC Y ALIMENTACIÓN A MUEBLES SANITARIOS, INCLUYE: CONEXIONES, SOLDADURA, PASOS EN MUROS, RANURAS, RESANES, PROTECCIÓN CON PVC EN CONTACTO CON ACERO ESTRUCTURAL, ACCESORIOS, CODOS, TEES, LLAVES DE CONTROL, CONECTORES, TRAZO, PRUEBAS DE PRESIÓN, MATERIALES NECESARIOS, MANO DE OBRA, ELEVACIÓN, ACARREOS, CORTES, DESPERDICIOS, LIMPIEZA, CONCEPTO DE ACUERDO A PLANO DE PROYECTO Y A SATISFACCIÓN DE SUPERVISIÓN.",null,null,0,0]
[null,"TUBO DE 1\"","ML",54,0,0]
[null,"TUBO DE 3/4\"","ML",135,0,0]
[null,"TUBO DE 1/2\"","ML",90,0,0]
[null,"SUBTOTAL DE RED EXTERIOR",null,null,0,{"$f":"SUM(F98:F106)","v":0}]
[null,"SUBTOTAL DE CONSTRUCCION  DE COMISARIA",null,null,0,{"$f":"SUM(F107+F96+F72+F48+F45+F23)","v":0}]
["B.-)","CASETA DE VIGILANCIA",null,null,0,{"$f":"ROUND(D109*E109,2)","v":0}]
["I.-","CIMENTACION",null,null,0,{"$f":"D110*E110","v":0}]
["01.-","TRAZO Y NIVELACIÓN, CON EQUIPO TOPOGRÁFICO,  INCLUYE: CARGO DIRECTO POR EL COSTO DE LOS MATERIALES Y MANO DE OBRA QUE INTERVENGAN, LOCALIZACIÓN GENERAL, LOCALIZACIÓN DE ENTRE EJES, SEÑALAMIENTOS, ESTACADO, BANCOS DE NIVEL, MOJONERAS, LIMPIEZA Y RETIRO DE SOBRANTES FUERA DE OBRA, AL BANCO DE  DESPERDICIO INDICADO POR EL LA DIRECCIÓN DE OBRAS PUBLICAS, EQUIPO DE SEGURIDAD, INSTALACIONES ESPECÍFICAS, DEPRECIACIÓN Y DEMÁS DERIVADOS DEL USO DE HERRAMIENTA Y EQUIPO. A EJES EN DESPLANTE DE EDIFICIOS.","M2",10,0,0]
["02.-","ZAPATA CORRIDA (Z-01) DE  DE 0.80 X 0.15 MTS. CONCRETO F'C=200 KG/CM2.  ARMADA CON  4 VARILLA DEL # 3 Y CONTRA TRABE DE 15 X 40 CMS. ARMADA CON 6 VARILLAS DEL # 4 Y ESTRIBOS DEL # 2 A CADA 20 CMS., INCLUYE: TRAZO, NIVELACION, EXCAVACION, PLANTILLA  F'C=100 KG/CM2, RELLENO, AFINE,COMPACTACION, IMPERMEABILIZANTE, HERRAMIENTA Y MANO DE OBRA QUE INTERVENGAN, ELABORACIÓN DEL CONCRETO, FLETE A OBRA, DESPERDICIO, VERTIDO, ACARREO HASTA EL LUGAR DE SU UTILIZACIÓN, HABILITADO DEL ACERO DE REFUERZO, ANCLAJES,  COLOCACIÓN, AMARRES, CIMBRADO, DESCIMBRADO, LIMPIEZA Y RETIRO DE SOBRANTES FUERA DE OBRA, EQUIPO DE SEGURIDAD, INSTALACIONES ESPECÍFICAS, DEPRECIACIÓN Y DEMÁS DERIVADOS DEL USO DE HERRAMIENTA Y EQUIPO EN CUALQUIER NIVEL, (VER DETALLE DE ZAPATA.)","ML",14.65,0,0]
["03.-","CONSTRUCCION DE MURO DE ENRASE A BASE A 3 HILADAS A BASE DE BLOCK HUECO DE CONCRETO DE 15x20x40, ASENTADO CON MORTERO CEMENTO ARENA  PROP 1:4 Y CELDAS RELLENAS DE CONCRETO F'C= 150KG/CM2, VARILLA DE REFUERZO  DE 3/8\" @ 3ER CELDA ANCLADA A CIMENTACION, INCLUYE PRECIO DIRECTO DE LOS MATERIALES, MANO DE OBRA, HERRAMIENTA Y EQUIPO.","M2",9.67,0,0]
["04.-","ANCLAJE DE CASTILLOS (K-A) DE 15 X 15 CMS MTS. HASTA 1.00 MTS. DE DESARROLLO, ARMADO CON 1 VARILLAS No.3 Y ESTRIBOS No.2 A/C 0.10 - 0.20 MTS. CONCRETO F' C=200 KG/CM2, INCLUYE; CARGO DIRECTO POR EL COSTO DE LOS MATERIALES, HERRAMIENTA Y MANO DE OBRA QUE INTERVENGAN, ELABORACIÓN DEL CONCRETO, FLETE A OBRA, DESPERDICIO, VERTIDO, ACARREO HASTA EL LUGAR DE SU UTILIZACIÓN, VIBRADO Y CURADO, PRUEBAS DE RESISTENCIA DEL CONCRETO, HABILITADO DEL ACERO DE REFUERZO, ANCLAJES,  COLOCACIÓN, AMARRES, CIMBRADO, DESCIMBRADO, LIMPIEZA Y RETIRO DE SOBRANTES FUERA DE OBRA, EQUIPO DE SEGURIDAD, INSTALACIONES ESPECÍFICAS, DEPRECIACIÓN Y DEMÁS DERIVADOS DEL USO DE HERRAMIENTA Y EQUIPO EN CUALQUIER NIVEL.","PZA",4,0,0]
["05.-","ANCLAJE DE CASTILLOS (K-01) DE 15 X 20 CMS MTS. HASTA 1.00 MTS. DE DESARROLLO, ARMADO CON 4 VARILLAS No.3 Y ESTRIBOS No.2 A/C 0.10 - 0.20 MTS. CONCRETO F' C=200 KG/CM2, INCLUYE; CARGO DIRECTO POR EL COSTO DE LOS MATERIALES, HERRAMIENTA Y MANO DE OBRA QUE INTERVENGAN, ELABORACIÓN DEL CONCRETO, FLETE A OBRA, DESPERDICIO, VERTIDO, ACARREO HASTA EL LUGAR DE SU UTILIZACIÓN, VIBRADO Y CURADO, PRUEBAS DE RESISTENCIA DEL CONCRETO, HABILITADO DEL ACERO DE REFUERZO, ANCLAJES,  COLOCACIÓN, AMARRES, CIMBRADO, DESCIMBRADO, LIMPIEZA Y RETIRO DE SOBRANTES FUERA DE OBRA, EQUIPO DE SEGURIDAD, INSTALACIONES ESPECÍFICAS, DEPRECIACIÓN Y DEMÁS DERIVADOS DEL USO DE HERRAMIENTA Y EQUIPO EN CUALQUIER NIVEL.","PZA",5,0,0]
["06.-","ANCLAJE DE CASTILLOS (K-02) DE 15 X 20 CMS MTS. HASTA 1.00 MTS. DE DESARROLLO, ARMADO CON 4 VARILLAS No.3 Y ESTRIBOS No.2 A/C 0.10 - 0.20 MTS. CONCRETO F' C=200 KG/CM2, INCLUYE; CARGO DIRECTO POR EL COSTO DE LOS MATERIALES, HERRAMIENTA Y MANO DE OBRA QUE INTERVENGAN, ELABORACIÓN DEL CONCRETO, FLETE A OBRA, DESPERDICIO, VERTIDO, ACARREO HASTA EL LUGAR DE SU UTILIZACIÓN, VIBRADO Y CURADO, PRUEBAS DE RESISTENCIA DEL CONCRETO, HABILITADO DEL ACERO DE REFUERZO, ANCLAJES,  COLOCACIÓN, AMARRES, CIMBRADO, DESCIMBRADO, LIMPIEZA Y RETIRO DE SOBRANTES FUERA DE OBRA, EQUIPO DE SEGURIDAD, INSTALACIONES ESPECÍFICAS, DEPRECIACIÓN Y DEMÁS DERIVADOS DEL USO DE HERRAMIENTA Y EQUIPO EN CUALQUIER NIVEL.","PZA",2,0,0]
["07.-","CADENA PARA DESPLANTE (CD-01) EN CIMENTACIÓN DE 0.15 X 0.20 MTS., ARMADA CON 4 VARILLAS No.3 Y ESTRIBOS No.2 A/C 0.20 MTS., CONCRETO F'C=200 KG/CM2, INCLUYE: INCLUYE; CARGO DIRECTO POR EL COSTO DE LOS MATERIALES, HERRAMIENTA Y MANO DE OBRA QUE INTERVENGAN, ELABORACIÓN DEL CONCRETO, FLETE A OBRA, DESPERDICIO, VERTIDO, ACARREO HASTA EL LUGAR DE SU UTILIZACIÓN, VIBRADO Y CURADO, PRUEBAS DE RESISTENCIA DEL CONCRETO,  HABILITADO DEL ACERO DE REFUERZO, ANCLAJES,  COLOCACIÓN, AMARRES, CIMBRADO, DESCIMBRADO, LIMPIEZA Y RETIRO DE SOBRANTES FUERA DE OBRA, EQUIPO DE SEGURIDAD, INSTALACIONES ESPECÍFICAS, DEPRECIACIÓN Y DEMÁS DERIVADOS DEL USO DE HERRAMIENTA Y EQUIPO EN CUALQUIER NIVEL.","ML",14.65,0,{"$f":"D117*E117","v":0}]
[null,"SUBTOTAL DE CIMENTACIÓN",null,null,0,{"$f":"SUM(F111:F117)","v":0}]
["III.-","ALBAÑILERÍA Y ACABADOS",null,null,0,0]
["01.-","MUROS Y PRETILES DE BLOCK  DE HUECO DE CONCRETO DE 15X20X40 CMS. PEGADO CON MORTERO CEMENTO - ARENA 1:5, INCLUYE: ALINEACIÓN, PLOMEO, ESCUADRAS, ANDAMIOS, ELEVACIÓN DE MATERIALES, RECORTES, CORTES, DESPERDICIOS, ACARREOS DENTRO DE LA OBRA, MANO DE OBRA, CUALQUIER ALTURA, LIMPIEZA GRUESA, EMBOQUILLADOS, CONCEPTO TERMINADO A SATISFACCIÓN DE SUPERVISIÓN.","M2",58.6,0,0]
["02.-","CASTILLO DE CONCRETO (K-A) DE 15 X 15 CMS., ARMADO CON 1 VARILLAS No.3  CONCRETO F' C=200 KG/CM2, INCLUYE; CARGO DIRECTO POR EL COSTO DE LOS MATERIALES, HERRAMIENTA Y MANO DE OBRA QUE INTERVENGAN, FLETE A OBRA, DESPERDICIO, ACARREO HASTA EL LUGAR DE SU UTILIZACIÓN, HABILITADO DEL ACERO DE REFUERZO, ANCLAJES,  CIMBRADO, DESCIMBRADO, ELABORACIÓN DEL CONCRETO,  VERTIDO, VIBRADO,  CURADO, PRUEBAS DE LABORATORIO, LIMPIEZA Y RETIRO DE SOBRANTES FUERA DE OBRA, EQUIPO DE SEGURIDAD, INSTALACIONES ESPECIFICAS, DEPRECIACIÓN Y DEMÁS DERIVADOS DEL USO DE HERRAMIENTA Y EQUIPO, EN CUALQUIER NIVEL.","ML",11.2,0,0]
["02.-","CASTILLO DE CONCRETO (K-01) DE 15 X 20 CMS., ARMADO CON 4 VARILLAS No.3  Y ESTRIBOS DEL # 2 A CADA 10 - 20 CMS., CONCRETO F' C=200 KG/CM2, INCLUYE; CARGO DIRECTO POR EL COSTO DE LOS MATERIALES, HERRAMIENTA Y MANO DE OBRA QUE INTERVENGAN, FLETE A OBRA, DESPERDICIO, ACARREO HASTA EL LUGAR DE SU UTILIZACIÓN, HABILITADO DEL ACERO DE REFUERZO, ANCLAJES,  CIMBRADO, DESCIMBRADO, ELABORACIÓN DEL CONCRETO,  VERTIDO, VIBRADO,  CURADO, PRUEBAS DE LABORATORIO, LIMPIEZA Y RETIRO DE SOBRANTES FUERA DE OBRA, EQUIPO DE SEGURIDAD, INSTALACIONES ESPECIFICAS, DEPRECIACIÓN Y DEMÁS DERIVADOS DEL USO DE HERRAMIENTA Y EQUIPO, EN CUALQUIER NIVEL.","ML",17.5,0,0]
["03.-","CASTILLO DE CONCRETO (K-02) DE 15 X 20 CMS., ARMADO CON 4 VARILLAS No.3  Y ESTRIBOS DEL # 2 A CADA 10 - 20 CMS., CONCRETO F' C=200 KG/CM2, INCLUYE; CARGO DIRECTO POR EL COSTO DE LOS MATERIALES, HERRAMIENTA Y MANO DE OBRA QUE INTERVENGAN, FLETE A OBRA, DESPERDICIO, ACARREO HASTA EL LUGAR DE SU UTILIZACIÓN, HABILITADO DEL ACERO DE REFUERZO, ANCLAJES,  CIMBRADO, DESCIMBRADO, ELABORACIÓN DEL CONCRETO,  VERTIDO, VIBRADO,  CURADO, PRUEBAS DE LABORATORIO, LIMPIEZA Y RETIRO DE SOBRANTES FUERA DE OBRA, EQUIPO DE SEGURIDAD, INSTALACIONES ESPECIFICAS, DEPRECIACIÓN Y DEMÁS DERIVADOS DEL USO DE HERRAMIENTA Y EQUIPO, EN CUALQUIER NIVEL.","ML",9,0,0]
["04.-","CADENA DE CERRAMIENTO (CE-01) DE CONCRETO F'C=200KG/CM2 DE 15 x 20 CMS, ARMADA CON 4 VARILLAS DE 3/8\" Y ESTRIBOS DE 1/4\" @ 20 CMS,  INCLUYE; CARGO DIRECTO POR EL COSTO DE LOS MATERIALES, HERRAMIENTA Y MANO DE OBRA QUE INTERVENGAN, ELABORACIÓN DEL CONCRETO, FLETE A OBRA, DESPERDICIO, VERTIDO, ACARREO HASTA EL LUGAR DE SU UTILIZACIÓN, HABILITADO DEL ACERO DE REFUERZO, ANCLAJES,  COLOCACIÓN, AMARRES, CIMBRADO, DESCIMBRADO, LIMPIEZA Y RETIRO DE SOBRANTES FUERA DE OBRA, EQUIPO DE SEGURIDAD, INSTALACIONES ESPECÍFICAS, DEPRECIACIÓN Y DEMÁS DERIVADOS DEL USO DE HERRAMIENTA Y EQUIPO EN CUALQUIER NIVEL.","ML",14.65,0,0]
["05.-","ENTORTADO EN AZOTEA A BASE DE MORTERO CEMENTO - ARENA 1:5, DE ESPESOR PROMEDIO DE 10 CM., INCLUYE: DISTRIBUCIÓN Y FORMACIÓN DE DIAMANTES Y PENDIENTES DE ACUERDO A PLANOS,  ELEVACIÓN DE MATERIALES, LIMPIEZA, PRUEBAS DE ESCURRIMIENTO, ACARREOS DENTRO DE LA OBRA, ANDAMIOS, ACABADO CON PLANA DE MADERA Y SIN IMPERFECCIONES, REMATE ESCOBILLADO CON LECHADA DE CEMENTO GRIS Y PEGACRETO,TODOS LOS MATERIALES NECESARIOS Y LA MANO DE OBRA, CONCEPTO TERMINADO A SATISFACCIÓN DE SUPERVISIÓN.","M2",10,0,0]
["06.-","SUMINISTRO Y COLOCACIÓN DE IMPERMEABILIZANTE SOBRE ENTORTADO DE AZOTEA, A BASE DE MATERIAL ELASTOMERICO BLANCO, 5 AÑOS DE GARANTÍA POR ESCRITO, INCLUYE: LIMPIEZA, BARRIDO, MALLA REFORZADA, RECORTES, TRASLAPES, ELEVACIÓN DEL MATERIAL, MANO DE OBRA, ANDAMIOS, SELLADO DE COLADERAS Y PUNTOS CRÍTICOS CON CEMENTO PLÁSTICO, CONCEPTO TERMINADO A SATISFACCIÓN DE SUPERVISIÓN.","M2",14.84,0,0]
["07.-","FIRME DE CONCRETO PRECOLADO F'C=200 KG/CM2 DE 10 CMS., DE ESPESOR, CON REFUERZO DE MALLA ELECTROSOLDADA 6.6-10X10, INCLUYE: ACARREOS INTERNOS, VIBRADO, CURADO, NIVELADO A DETALLE Y VERIFICADOS SUS NIVELES, REGLEADO,  ACABADO CON PLANA DE MADERA LISTO PARA RECIBIR CUALQUIER ACABDO, MATERIALES, MANO DE OBRA, CONCEPTO A SATISFACCIÓN Y VERIFICACIÓN DE SUPERVISIÓN.","M2",8.1,0,0]
["08.-","SUMINISTRO Y COLOCACIÓN DE PISO VITRIFICADO DE PRIMERA CALIDAD MARCA INTERCERAMIC DE 60X60 CMS. MODELO BRUENI PORCELINATO RECTIFICADO, COLOR GRIS , COLOCACIÓN CON VERIFICACIÓN, COLOCADO A HUESO, SOBRE FIRME, NIVELADO Y VERIFICADO, INCLUYE: TRAZO, RECORTES, DESPERDICIOS, PEGAPISO, ACARREOS DENTRO DE LA OBRA, ALMACENAMIENTO, EMBOQUILLADOR SIN ARENA, LIMPIEZA GRUESA Y FINA, CONCEPTO A SATISFACCIÓN DE SUPERVISIÓN.","M2",8.1,0,0]
["09.-","SUMINISTRO Y COLOCACIÓN DE ZOCLO VITRIFICADO  MISMO COLOR Y CALIDAD DE PISO A COLOCAR, INCLUYE: NIVELACIÓN, RECORTES, CORTES A MAQUINA Y A 45°, DESPERDICIOS, ACARREOS DENTRO DE LA OBRA, ALMACENAJE, PEGAPISO, EMBOQUILLADOR SIN ARENA, CHAFLÁN SUPERIOR TRIANGULAR DE PASTA Y/O CEMENTO BLANCO, LIMPIEZA GRUESA Y FINA, PEGADO A HUESO, MISMAS LÍNEAS Y CORTES DE PISO, CONCEPTO TERMINADO A SATISFACCIÓN DE SUPERVISIÓN. 'DE 60X10 CMS. MODELOBRUNEICOLOR GRIS PORCELINATO RECTIFICADO","ML",14.7,0,0]
["10.-","APLANADOS SOBRE MUROS DE BLOCK, Y A CUALQUIER SUPERFICIE, A BASE DE MORTERO CEMENTO - ARENA 1:5, ACABADO FLOTEADO FINO, INCLUYE: RESANES, PREPARACIÓN DE LA SUPERFICIE, REBABEOS, PLOMEO, FILOS, BOQUILLAS, A REGLA Y NIVEL, REPELLADOS, CURADOS, ANDAMIOS, ELEVACIÓN, ACARREOS DE MATERIALES, DENTRO DE LA OBRA, LIMPIEZA GRUESA Y FINA, MATERIALES NECESARIOS, MANO DE OBRA, CONCEPTO TERMINADO A SATISFACCIÓN DE SUPERVISIÓN.","M2",96.6,0,0]
["11.-","APLANADO DE YESO EN PLAFOND  A PLOMO, REGLA Y NIVEL INCLUYE; CARGO DIRECTO POR EL COSTO DE LOS MATERIALES Y MANO DE OBRA  QUE INTERVENGAN, FLETE A OBRA, DESPERDICIO, ACARREO HASTA EL LUGAR DE SU UTILIZACIÓN, ELABORACIÓN DE MEZCLA HECHA EN OBRA, PREPARACIÓN DE LA SUPERFICIE,  PICADO EN SU CASO, PERFILAR HUECOS PARA INSTALACIONES, BOQUILLAS, REMATES, CORTES DE DIAMANTE EN JUNTAS, MAESTREADO, LIMPIEZA Y RETIRO DE SOBRANTES FUERA DE OBRA, EQUIPO DE SEGURIDAD, INSTALACIONES ESPECÍFICAS, DEPRECIACIÓN Y DEMÁS DERIVADOS DEL USO DE HERRAMIENTA Y EQUIPO, EN  CUALQUIER  NIVEL.","M2",8.1,0,0]
["12.-","SUMINISTRO Y APLICACIÓN DE PINTURA VINÍLICA, MARCA COMEX, APLICADA A DOS MANOS COMO  MINIMO ,DE PRIMERA CALIDAD, APLICADA EN MUROS (INTERIORES, EXTERIORES, PLAFOND, TRABES, COLUMNAS, DALAS Y SOBRE CUALQUIER ELEMENTO ETC.. ), SOBRE CUALQUIER SUPERFICIE Y/O APLANADOS DE MORTERO, ACABADO FLOTEADO FINO, INCLUYE: ANDAMIOS, ALTURAS  HASTA 4.50 M.  S.N.P.T., RECORTES, ACARREOS DENTRO DE LA OBRA, DESPERDICIOS, SELLADOR, RESANES, PROTECCIÓN A PISOS, MUEBLES, VENTANAS Y PUERTAS, REBABEOS, ADITAMENTOS DE APLICACIÓN, LIMPIEZA FINA Y GRUESA, MANO DE OBRA , MATERIALES Y TODO LO NECESARIO PARA SU CORRECTA APLICACIÓN, COLORES AUTORIZADOS POR SUPERVISIÓN.","M2",105,0,0]
["13.-","SUMINISTRO Y COLOCACIÓN DE GÁRGOLA DE CEMENTO SEGÚN DISEÑO DE PROYECTO EN COLOR INDICADO POR SUPERVISIÓN, INCLUYE: RANURAS, FIJACIÓN, ALINEACIÓN, PLOMEO, HERRAMIENTA, RESANES, EQUIPO, ANDAMIOS, ELEVACIÓN, MATERIALES NECESARIOS, MANO DE OBRA, ACARREOS INTERNOS, CONCEPTO TERMINADO A SATISFACCIÓN DE SUPERVISIÓN","PZA",1,0,{"$f":"D133*E133","v":0}]
["14.-","CHAFLÁN DE MORTERO 'SECCIÓN TRIANGULAR CON 10 CM. CADA CATETO, MORTERO CEMENTO-CAL-ARENA EN PROPORCIÓN 1-1.5-6 INCLUYE; CARGO DIRECTO POR EL COSTO DE LOS MATERIALES QUE INTERVENGAN, FLETE A OBRA, DESPERDICIO, ACARREO HASTA EL LUGAR DE SU UTILIZACIÓN, ELEVACIÓN, PICADO EN ÁREAS DE CONCRETO, ELABORACIÓN,  LECHAREADO, LIMPIEZA Y RETIRO DE SOBRANTES FUERA DE OBRA, EQUIPO DE SEGURIDAD, INSTALACIONES ESPECÍFICAS, DEPRECIACIÓN Y DEMÁS DERIVADOS DEL USO DE HERRAMIENTA Y EQUIPO, EN CUALQUIER NIVEL. ","ML",12.1,0,0]
[null,"SUBTOTAL DE ALBAÑILERÍA Y ACABADOS",null,null,0,{"$f":"SUM(F120:F134)","v":0}]
["IV.-","ESTRUCTURA",null,null,0,{"$f":"D136*E136","v":0}]
["01.-","CONSTRUCCIÓN DE LOSA MACIZA DE 10 CMS. DE ESPESOR, ARMADA CON VARILLA No.3 A/C 25 CMS. AMBOS SENTIDOS, BALLONETEADO, BASTONES,  POLLOS, CIMBRA APARENTE CON TRIPLAY 5/8\" Ø, DESCIMBRA, PUNTALES, CARGADORES, MADRINAS, ARRASTRES, CURADO DE MADERA, CONCRETO PRECOLADO, F'C=250 KG/CM2, VIBRADO, CURADO, REGLEADO, BOMBEADO, CUALQUIER ALTURA, MANO DE OBRA, MATERIALES, ANDAMIOS, ELEVACIÓN, DESPERDICIOS, LIMPIEZA, PRUEBAS DE RESISTENCIA DE 7, 14 Y 28 DÍAS, CONCEPTO TERMINADO A SATISFACCIÓN DE SUPERVISIÓN.","M2",10,0,0]
[null,"SUBTOTAL DE ESTRUCTURA",null,null,0,{"$f":"SUM(F137)","v":0}]
["V.-","CANCELERIA Y HERRERIA",null,null,null,{"$f":"D139*E139","v":0}]
["01.-","SUMINISTRO Y COLOCACIÓN DE VENTANA DE ALUMINIO COLOR NATURAL LÍNEA 3000 CON VIDRIO DE 6 MM. NATURAL, INCLUYE: CORTES, TORNILLERÍA, EMPAQUES, MANEJO, ELEVACIÓN, DESPERDICIOS, SELLADO PERIMETRAL AMBOS LADOS CON SILIKON, PLOMEO, ALINEACIÓN, CONCEPTO A SATISFACCIÓN DE SUPERVISIÓN.",null,null,0,0]
[null,"V-3 DE 2.05 X 1.20 MTS. ","PZA",1,0,0]
[null,"V-4 DE 2.40 X 1.20 MTS.","PZA",1,0,0]
[null,"V-5 DE 0.60 X 0.40 MTS.","PZA",1,0,0]
[null,"V-6 DE 1.00 X 1.20 MTS.","PZA",1,0,0]
["02.-","SUMINISTRO, FABRICACIÓN Y COLOCACIÓN  DE PUERTA DE MADERA TIPO TAMBOR CON BASTIDOR, MARCO PERIMETRAL DE MADERA  CON BARROTE DE 2 X4\" POR UN ANCHO SEGUN SEA EL CASO SI ES MURO DE TABLAROCA O DE BLOCK EN TODO EL PERIMETRO, TOPO, CHAMBRANAS AMBOS LADOS, UNIÓN ESPIGA Y CAJA CON PEGAMENTO Y CLAVO SIN CABEZA DE 19 MM. FORRO TRIPLAY DE MADERA TIPO CAOBILLA DE 3/4\". DE ESPESOR POR 2 LADOS, CLAVADO Y PEGADO, EL BASTIDOR ESTARÁ ATORNILLADO, INCLUYE; CHAPA MARCA PHILLIPS, BISAGRA, CARGO DIRECTO POR EL COSTO DE LOS MATERIALES Y MANO DE OBRA QUE INTERVENGAN, FLETE A OBRA, DESPERDICIO, ACARREO HASTA EL LUGAR DE SU UTILIZACIÓN, TRAZO, PICAPORTE ARRIBA Y ABAJO SEGUN SEA EL CASO, CORTES, HABILITADO, ARMADO, AJUSTE, LIMPIEZA Y RETIRO DE SOBRANTES FUERA DE OBRA, EQUIPO DE SEGURIDAD, INSTALACIONES ESPECÍFICAS, DEPRECIACIÓN Y DEMÁS DERIVADOS DEL USO DE HERRAMIENTA Y EQUIPO, EN CUALQUIER NIVEL.",null,null,null,0]
[null,"DEL TIPO (P-14) DE 0.80  X 2.10 MTS.  ","PZA",1,0,0]
["03.-","SUMINISTRO Y COLOCACIÓN DE PUERTA DE HERRERÍA TUBULAR  PERFIL COMERCIAL A BASE DE LAMINA LISACAL. #18, INCLUYE: CHAPA DE PARCHE CON LLAVE Y SEGURO, JALADERA AMBOS LADOS, MARCO METÁLICO Y CONTRAMARCO DE PTR ROJO DE 2\"X2\", PRIMER ANTICORROSIVO, ESMALTE INDUSTRIAL A DOS MANOS, ACABADO, RECEPCION Y COLOR A SATISFACCION DE   SUPERVISIÓN (VER PLANOS EN DETALLES). DEL TIPO (P-13) EN MEDIDAS DE 0.90 X 2.10 MTS. ","PZA",1,0,0]
[null,"SUBTOTAL DE CANCELERÍA Y HERRERÍA",null,null,0,{"$f":"SUM(F141:F147)","v":0}]
["VI.-","INSTALACIONES HIDROSANITARIAS ",null,null,null,{"$f":"D149*E149","v":0}]
["01.-","CONSTRUCCION DE MESETA PARA LAVABOS DE CONCRETO F'C=200 KG/CM2 DE 0.60 MTS. DE  ANCHO  POR  8 CMS. DE ESPESOR, ARMADA CON ACERO No.3 A/C 15 CMS. AMBOS LADOS, INCLUYE: EN SU CASO MUROS DE APOYO DE BLOCK DE 15X20X40 CMS. DE ESPESOR, CON APLANADO PULIDO, CIMBRA, DESCIMBRA, ARMADO, COLADO, VIBRADO, CURADO, RANURAS EN MURO PARA AMARRES, PREPARACIÓN PARA LA COLOCACION DE LAVABO OVALIN, REVESTIDO CON AZULEJO IDÉNTICO AL DE MUROS, ESQUINEROS DE PVC TIRATRIN, EMBOQUILLADOR ANTIBACTERIAL, PEGADO A HUESO, CEMENTO BLANCO, PEGAPISO, DETALLES, RECORTES Y TODO LO NECESARIO PARA SU CORRECTO FUNCIONAMIENTO. CONCEPTO A SATISFACCION DE SUPERVISION.","ML",0.9,0,0]
["02.-","SALIDA HIDROSANITARIA PARA  MUEBLE,   A BASE DE TUBO HIDRÁULICO CPVC, AGUA FRÍA Y CALIENTE, Ø 3/4\" Y 1/2\" Y SANITARIO DE PVC DE DIÁMETROS 6\", 4\" Y 2\" CON CAMPANA ANGER LISO ,PARA CALENTADOR, W.C., MINGITORIO, LAVABO, TARJA, FREGADEROS, INCLUYE: MANGUERA ALIMENTADORA, LLAVE DE ANGULO, CONECTOR HEMBRA, CODOS DE 90° Y 45°, CODOS, TALÓN, REDUCCIONES, COPLES, YEES, PEGAMENTO PVC, DRENADO  HASTA PRIMER  REGISTRO, ACCESORIOS Y TODOS LOS MATERIALES NECESARIOS Y MANO DE OBRA PARA SU CORRECTO FUNCIONAMIENTO, HERRAMIENTA, EXCAVACIONES, RANURAS, RESANES, PASOS EN ESTRUCTURA, PROTECCIÓN CON PVC, PRUEBAS DE PRESIÓN Y ESCURRIMIENTO, RELLENOS COMPACTOS, CONCEPTO DE ACUERDO A PLANO DE PROYECTO Y A SATISFACCIÓN DE SUPERVISIÓN.","SAL",2,0,0]
["03.-","SUMINISTRO Y COLOCACIÓN DE LAVABO DE COLOR, PRIMERA CALIDAD, DE SOBRE PONER EN MESETA DE CONCRETO, INCLUYE:  SELLADO PERIMETRAL, LLAVES DE METAL DE MEDIA VUELTA, MEZCLADORAS EN SU CASO, DE PRIMERA CALIDAD, CESPOL, CUELLO DE GANSO, CONTRA REJILLAS, EMPAQUE DE HULE EN DESCARGA, MATERIALES NECESARIOS Y MANO DE OBRA, ACARREOS, ELEVACIÓN, PRUEBAS DE FUNCIONAMIENTO, CONCEPTO TERMINADO A SATISFACCIÓN DE SUPERVISIÓN.","PZA",1,0,0]
["04.-","SUMINISTRO Y COLOCACIÓN DE MUEBLE SANITARIO W.C. DE COLOR, AHORRADOR DE AGUA DE 6 LITROS  DE DESCARGA,  PRIMERA CALIDAD CON TANQUE, TAPA, PIJAS, BRIDA DE PVC, HERRAJES, SELLADO PERIMETRAL, MANGUERA ALIMENTADORA, LLAVE DE ANGULO, TAQUETES, PRUEBAS DE FUNCIONAMIENTO, CONCEPTO TERMINADO A SATISFACCIÓN DE SUPERVISIÓN.","PZA",1,0,0]
["05.-","SUMINISTRO Y COLOCACIÓN DE ELEMENTOS DE SOBREPONER, INCLUYE; CARGO DIRECTO POR EL COSTO DE LOS MATERIALES Y MANO DE OBRA QUE INTERVENGAN, FLETE A OBRA, DESPERDICIO, ACARREO HASTA EL LUGAR DE SU UTILIZACIÓN, TRAZO, NIVELACIÓN, FIJACIÓN, PRUEBAS, AJUSTES, RESANES, LIMPIEZA Y RETIRO DE SOBRANTES FUERA DE OBRA, EQUIPO DE SEGURIDAD, INSTALACIONES ESPECÍFICAS, DEPRECIACIÓN Y DEMÁS DERIVADOS DEL USO DE HERRAMIENTA Y EQUIPO, EN CUALQUIER NIVEL.",null,null,0,0]
[null,"DESPACHADOR DE JABÓN LIQUIDO, MARCA KIMBERLY CLARCK MOD. 94236 COLOR HUMO.","PZA.",1,0,0]
[null,"DESPACHADOR DE PAPEL SANITARIO JR, MARCA KIMBERLY CLARCK MOD. 94208 COLOR HUMO.","PZA.",1,0,0]
[null,"DESPACHADOR DE TOALLAS DE PAPEL, MARCA KIMBERLY CLARCK MOD. ELEMENT 92259, COLOR HUMO.","PZA.",1,0,0]
["06.-","SUMINISTRO Y COLOCACIÓN DE VIDRIO ESPEJO PLANO MONTADO EN BASTIDOR DE MADERA DE PINO DE 1ra, TRIPLAY DE 1/4\" Y MARCO DE ALUMINIO ANODIZADO COLOR BRONCE DE CRISTAL FLOTADO (ESPEJO) DE 6MM., INCLUYE: MATERIALES NECESARIOS, MANO DE OBRA, TAQUETES, PIJAS, RECORTES, DESPERDICIOS, ELEVACIÓN, ANDAMIOS, NIVELACIÓN, TRASLADOS, MANO DE OBRA, FIJACIÓN, CONCEPTO TERMINADO A SATISFACCIÓN DE SUPERVISIÓN. EN AREA DE BAÑOS Y COCINA","M2",0.9,0,0]
["07.-","SUMINISTRO Y COLOCACIÓN DE TINACO TRICAPA VERTICAL DE 1,100 LTS., DE CAPACIDAD, INCLUYE: BASE DE CONCRETO DE 10 CMS. DE ESPESOR POR 1.50X1.50 MTS., CON MURETE EN FORMA DE \"ELE\", BLOCK DE 15X20X40 CMS. JUNTEADO CON MORTERO CEMENTO - ARENA 1:4, APLANADO COMPLETO DENTRO Y FUERA, ACABADO FLOTEADO FINO, FILOS Y BOQUILLAS, ELEVACIÓN, COLOCACIÓN, CONEXIÓN, TUBO VENTILA, VÁLVULA DE CIERRE AUTOMÁTICO, FLOTADOR, CONECTOR, TAPA, PRUEBAS Y TODO EL MATERIAL NECESARIO PARA SU CORRECTO FUNCIONAMIENTO, MANO DE OBRA (VER PLANO HIDRÁULICO DE UBICACIÓN)","PZA",1,0,0]
[null,"SUBTOTAL DE HIDROSANITARIAS",null,null,0,{"$f":"SUM(F150:F159)","v":0}]
[null,"SUBTOTAL DE CASETA DE VIGILANCIA",null,null,0,{"$f":"SUM(F160+F148+F138+F135+F118)","v":0}]
["C.-)","BARDA PERIMETRAL",null,null,0,{"$f":"ROUND(D162*E162,2)","v":0}]
["I.-","CIMENTACION",null,null,0,{"$f":"D163*E163","v":0}]
["01.-","TRAZO Y NIVELACIÓN, CON EQUIPO TOPOGRÁFICO,  INCLUYE: CARGO DIRECTO POR EL COSTO DE LOS MATERIALES Y MANO DE OBRA QUE INTERVENGAN, LOCALIZACIÓN GENERAL, LOCALIZACIÓN DE ENTRE EJES, SEÑALAMIENTOS, ESTACADO, BANCOS DE NIVEL, MOJONERAS, LIMPIEZA Y RETIRO DE SOBRANTES FUERA DE OBRA, AL BANCO DE  DESPERDICIO INDICADO POR EL LA DIRECCIÓN DE OBRAS PUBLICAS, EQUIPO DE SEGURIDAD, INSTALACIONES ESPECÍFICAS, DEPRECIACIÓN Y DEMÁS DERIVADOS DEL USO DE HERRAMIENTA Y EQUIPO. A EJES EN DESPLANTE DE EDIFICIOS.","ML",163.30000000000001,0,0]
["02.-","ZAPATA CORRIDA (Z-03) DE  DE 0.80 X 0.20 MTS. CONCRETO F'C=200 KG/CM2.  ARMADA CON  4 VARILLA DEL # 3 Y CONTRA TRABE DE 15 X 40 CMS. ARMADA CON 6 VARILLAS DEL # 4 Y ESTRIBOS DEL # 2 A CADA 20 CMS., INCLUYE: TRAZO, NIVELACION, EXCAVACION, PLANTILLA  F'C=100 KG/CM2, RELLENO, AFINE,COMPACTACION, IMPERMEABILIZANTE, HERRAMIENTA Y MANO DE OBRA QUE INTERVENGAN, ELABORACIÓN DEL CONCRETO, FLETE A OBRA, DESPERDICIO, VERTIDO, ACARREO HASTA EL LUGAR DE SU UTILIZACIÓN, HABILITADO DEL ACERO DE REFUERZO, ANCLAJES,  COLOCACIÓN, AMARRES, CIMBRADO, DESCIMBRADO, LIMPIEZA Y RETIRO DE SOBRANTES FUERA DE OBRA, EQUIPO DE SEGURIDAD, INSTALACIONES ESPECÍFICAS, DEPRECIACIÓN Y DEMÁS DERIVADOS DEL USO DE HERRAMIENTA Y EQUIPO EN CUALQUIER NIVEL, (VER DETALLE DE ZAPATA.)","ML",159,0,0]
["03.-","CONSTRUCCION DE MURO DE ENRASE A BASE A 2 HILADAS A BASE DE BLOCK HUECO DE CONCRETO DE 15x20x40, ASENTADO CON MORTERO CEMENTO ARENA  PROP 1:4 Y CELDAS RELLENAS DE CONCRETO F'C= 150KG/CM2, VARILLA DE REFUERZO  DE 3/8\" @ 3ER CELDA ANCLADA A CIMENTACION, INCLUYE PRECIO DIRECTO DE LOS MATERIALES, MANO DE OBRA, HERRAMIENTA Y EQUIPO.","M2",63.6,0,0]
["04.-","ANCLAJE DE CASTILLOS (K-1) DE 15 X 20 CMS MTS. HASTA 1.00 MTS. DE DESARROLLO, ARMADO CON 4 VARILLAS No.3 Y ESTRIBOS No.2 A/C 0.20 MTS. CONCRETO F' C=200 KG/CM2, INCLUYE; CARGO DIRECTO POR EL COSTO DE LOS MATERIALES, HERRAMIENTA Y MANO DE OBRA QUE INTERVENGAN, ELABORACIÓN DEL CONCRETO, FLETE A OBRA, DESPERDICIO, VERTIDO, ACARREO HASTA EL LUGAR DE SU UTILIZACIÓN, VIBRADO Y CURADO, PRUEBAS DE RESISTENCIA DEL CONCRETO, HABILITADO DEL ACERO DE REFUERZO, ANCLAJES,  COLOCACIÓN, AMARRES, CIMBRADO, DESCIMBRADO, LIMPIEZA Y RETIRO DE SOBRANTES FUERA DE OBRA, EQUIPO DE SEGURIDAD, INSTALACIONES ESPECÍFICAS, DEPRECIACIÓN Y DEMÁS DERIVADOS DEL USO DE HERRAMIENTA Y EQUIPO EN CUALQUIER NIVEL.","PZA",54,0,0]
["05.-","CADENA PARA DESPLANTE (CD-01) EN CIMENTACIÓN DE 0.15 X 0.20 MTS., ARMADA CON 4 VARILLAS No.3 Y ESTRIBOS No.2 A/C 0.20 MTS., CONCRETO F'C=200 KG/CM2, INCLUYE: INCLUYE; CARGO DIRECTO POR EL COSTO DE LOS MATERIALES, HERRAMIENTA Y MANO DE OBRA QUE INTERVENGAN, ELABORACIÓN DEL CONCRETO, FLETE A OBRA, DESPERDICIO, VERTIDO, ACARREO HASTA EL LUGAR DE SU UTILIZACIÓN, VIBRADO Y CURADO, PRUEBAS DE RESISTENCIA DEL CONCRETO,  HABILITADO DEL ACERO DE REFUERZO, ANCLAJES,  COLOCACIÓN, AMARRES, CIMBRADO, DESCIMBRADO, LIMPIEZA Y RETIRO DE SOBRANTES FUERA DE OBRA, EQUIPO DE SEGURIDAD, INSTALACIONES ESPECÍFICAS, DEPRECIACIÓN Y DEMÁS DERIVADOS DEL USO DE HERRAMIENTA Y EQUIPO EN CUALQUIER NIVEL.","ML",159,0,0]
["05.-","CADENA PARA DESPLANTE (CD-02) EN CIMENTACIÓN DE 0.20 X 0.20 MTS., ARMADA CON 4 VARILLAS No.3 Y ESTRIBOS No.2 A/C 0.20 MTS., CONCRETO F'C=200 KG/CM2, INCLUYE: INCLUYE; CARGO DIRECTO POR EL COSTO DE LOS MATERIALES, HERRAMIENTA Y MANO DE OBRA QUE INTERVENGAN, ELABORACIÓN DEL CONCRETO, FLETE A OBRA, DESPERDICIO, VERTIDO, ACARREO HASTA EL LUGAR DE SU UTILIZACIÓN, VIBRADO Y CURADO, PRUEBAS DE RESISTENCIA DEL CONCRETO,  HABILITADO DEL ACERO DE REFUERZO, ANCLAJES,  COLOCACIÓN, AMARRES, CIMBRADO, DESCIMBRADO, LIMPIEZA Y RETIRO DE SOBRANTES FUERA DE OBRA, EQUIPO DE SEGURIDAD, INSTALACIONES ESPECÍFICAS, DEPRECIACIÓN Y DEMÁS DERIVADOS DEL USO DE HERRAMIENTA Y EQUIPO EN CUALQUIER NIVEL.","ML",4.3,0,{"$f":"D169*E169","v":0}]
["06.-","CONTRA TRABE (CT-05) EN CIMENTACIÓN DE 0.20X0.40 MTS., ARMADA CON 6 VARILLAS No.3 Y ESTRIBOS No.2 A/C  0.20 CMS., CONCRETO F'C=200 KG/CM2, INCLUYE: INCLUYE; CARGO DIRECTO POR EL COSTO DE LOS MATERIALES, HERRAMIENTA Y MANO DE OBRA QUE INTERVENGAN, ELABORACIÓN DEL CONCRETO, FLETE A OBRA, DESPERDICIO, VERTIDO, ACARREO HASTA EL LUGAR DE SU UTILIZACIÓN, VIBRADO Y CURADO, PRUEBAS DE RESISTENCIA DEL CONCRETO,  HABILITADO DEL ACERO DE REFUERZO, ANCLAJES,  COLOCACIÓN, AMARRES, CIMBRADO, DESCIMBRADO, LIMPIEZA Y RETIRO DE SOBRANTES FUERA DE OBRA, EQUIPO DE SEGURIDAD, INSTALACIONES ESPECÍFICAS, DEPRECIACIÓN Y DEMÁS DERIVADOS DEL USO DE HERRAMIENTA Y EQUIPO EN CUALQUIER NIVEL.","ML",4.3,null,{"$f":"ROUND(D170*E170,2)","v":0}]
[null,"SUBTOTAL DE CIMENTACIÓN",null,null,0,{"$f":"SUM(F164:F170)","v":0}]
["III.-","ALBAÑILERÍA Y ACABADOS",null,null,0,{"$f":"D172*E172","v":0}]
["01.-","MUROS Y PRETILES DE BLOCK  DE HUECO DE CONCRETO DE 15X20X40 CMS. PEGADO CON MORTERO CEMENTO - ARENA 1:5, INCLUYE: ALINEACIÓN, PLOMEO, ESCUADRAS, ANDAMIOS, ELEVACIÓN DE MATERIALES, RECORTES, CORTES, DESPERDICIOS, ACARREOS DENTRO DE LA OBRA, MANO DE OBRA, CUALQUIER ALTURA, LIMPIEZA GRUESA, EMBOQUILLADOS, CONCEPTO TERMINADO A SATISFACCIÓN DE SUPERVISIÓN.","M2",445.2,0,0]
["02.-","CASTILLO DE CONCRETO (K-01) DE 15 X 20 CMS., ARMADO CON 4 VARILLAS No.3  Y ESTRIBOS DEL # 2 A CADA 10 - 20 CMS., CONCRETO F' C=200 KG/CM2, INCLUYE; CARGO DIRECTO POR EL COSTO DE LOS MATERIALES, HERRAMIENTA Y MANO DE OBRA QUE INTERVENGAN, FLETE A OBRA, DESPERDICIO, ACARREO HASTA EL LUGAR DE SU UTILIZACIÓN, HABILITADO DEL ACERO DE REFUERZO, ANCLAJES,  CIMBRADO, DESCIMBRADO, ELABORACIÓN DEL CONCRETO,  VERTIDO, VIBRADO,  CURADO, PRUEBAS DE LABORATORIO, LIMPIEZA Y RETIRO DE SOBRANTES FUERA DE OBRA, EQUIPO DE SEGURIDAD, INSTALACIONES ESPECIFICAS, DEPRECIACIÓN Y DEMÁS DERIVADOS DEL USO DE HERRAMIENTA Y EQUIPO, EN CUALQUIER NIVEL.","ML",151.19999999999999,0,0]
["03.-","CADENA DE CERRAMIENTO (CE-01) DE CONCRETO F'C=200KG/CM2 DE 15 x 20 CMS, ARMADA CON 4 VARILLAS DE 3/8\" Y ESTRIBOS DE 1/4\" @ 20 CMS,  INCLUYE; CARGO DIRECTO POR EL COSTO DE LOS MATERIALES, HERRAMIENTA Y MANO DE OBRA QUE INTERVENGAN, ELABORACIÓN DEL CONCRETO, FLETE A OBRA, DESPERDICIO, VERTIDO, ACARREO HASTA EL LUGAR DE SU UTILIZACIÓN, HABILITADO DEL ACERO DE REFUERZO, ANCLAJES,  COLOCACIÓN, AMARRES, CIMBRADO, DESCIMBRADO, LIMPIEZA Y RETIRO DE SOBRANTES FUERA DE OBRA, EQUIPO DE SEGURIDAD, INSTALACIONES ESPECÍFICAS, DEPRECIACIÓN Y DEMÁS DERIVADOS DEL USO DE HERRAMIENTA Y EQUIPO EN CUALQUIER NIVEL.","ML",318,0,0]
["04.-","APLANADOS SOBRE MUROS DE BLOCK, Y A CUALQUIER SUPERFICIE, A BASE DE MORTERO CEMENTO - ARENA 1:5, ACABADO FLOTEADO FINO, INCLUYE: RESANES, PREPARACIÓN DE LA SUPERFICIE, REBABEOS, PLOMEO, FILOS, BOQUILLAS, A REGLA Y NIVEL, REPELLADOS, CURADOS, ANDAMIOS, ELEVACIÓN, ACARREOS DE MATERIALES, DENTRO DE LA OBRA, LIMPIEZA GRUESA Y FINA, MATERIALES NECESARIOS, MANO DE OBRA, CONCEPTO TERMINADO A SATISFACCIÓN DE SUPERVISIÓN.","M2",890.4,0,0]
["05.-","SUMINISTRO Y APLICACIÓN DE PINTURA VINÍLICA, MARCA COMEX, APLICADA A DOS MANOS COMO  MINIMO DE PRIMERA CALIDAD, APLICADA EN MUROS (INTERIORES, EXTERIORES, PLAFOND, TRABES, COLUMNAS, DALAS Y SOBRE CUALQUIER ELEMENTO ETC.. ), SOBRE CUALQUIER SUPERFICIE Y/O APLANADOS DE MORTERO, ACABADO FLOTEADO FINO, INCLUYE: ANDAMIOS, ALTURAS  HASTA 4.50 M.  S.N.P.T., RECORTES, ACARREOS DENTRO DE LA OBRA, DESPERDICIOS, SELLADOR, RESANES, PROTECCIÓN A PISOS, MUEBLES, VENTANAS Y PUERTAS, REBABEOS, ADITAMENTOS DE APLICACIÓN, LIMPIEZA FINA Y GRUESA, MANO DE OBRA , MATERIALES Y TODO LO NECESARIO PARA SU CORRECTA APLICACIÓN, COLORES AUTORIZADOS POR SUPERVISIÓN.","M2",890.4,0,0]
["06.-","SUMINISTRO, INSTALACION Y COLOCACION DE CERCO PERIMETRAL   2.80 MTS.  DE ALTURA C/U A BASE DE TUBO DE NEGRO 4\" CEDULA 40 A CADA 15-20 CMS. CMS  A EJE EN MODO VERTICAL, AHOGADO EN UNA  CONTRA TRABE DE 20 X 40 CMS. ARMADA CON 6 VARILLAS DEL # 3 Y ESTRIBOS DEL # 2 A CADA 20 CMS.,  (VER DETALLE EN PLANO) MATERIAL, MANO DE OBRA, SOLDADURA,  PINTURA Y PRYMER ANTICORROSIVO A DOS MANOS Y TODO LO NECESARIO PARA SU CORRECTA EJECUCION. (P.U.O.T.)","ML",4.3,0,0]
[null,"SUBTOTAL DE ALBAÑILERÍA Y ACABADOS",null,null,null,{"$f":"SUM(F173:F178)","v":0}]
[null,"SUBTOTAL DE BARDA PERIMETRAL",null,null,null,{"$f":"SUM(F179+F171)","v":0}]
["D.-)","OBRA EXTERIOR",null,null,null,{"$f":"D181*E181","v":0}]
["01.-","TRAZO Y NIVELACIÓN PARA PAVIMENTACIÓN, INCLUYE: ELEMENTOS DE REFERENCIA, MATERIAL, MANO DE OBRA, HERRAMIENTA Y EQUIPO NECESARIO.","M2",480,0,0]
["02.-","CONSTRUCCIÓN DE BASE HIDRÁULICA CON MATERIAL PROVENIENTE DE BANCO, INCLUYE: INCORPORACIÓN DE HUMEDAD, HOMOGENIZACIÓN, TENDIDO Y COMPACTACIÓN (SOLO CON RODILLO) AL 100%, ESPESOR DE 15 CMS. COMPACTOS.","M2",480,0,0]
["03.-","RIEGO DE IMPREGNACIÓN CON ASFALTO FM-1, EN PROPORCIÓN DE 1.5 LTS/M2, INCLUYE: LIMPIEZA DE LA SUPERFICIE, CARGA, CALENTADO, ACARREOS, APLICACIÓN, ARENA PARA POREADO, MANO DE OBRA, HERRAMIENTA, EQUIPO Y EL COSTO DEL ASFALTO.","M2",480,0,0]
["04.-","RIEGO DE LIGA PARA CARPETA CON ASFALTO FR-3 EN PROPORCIÓN DE 0.5 LTS/M2, INCLUYE: LIMPIEZA DE LA SUPERFICIE, CARGA, CALENTADO, ACARREOS, APLICACIÓN, MANO DE OBRA, HERRAMIENTA, EQUIPO Y EL COSTO DEL ASFALTO.","M2",480,0,0]
["05.-","CONSTRUCCIÓN DE CARPETA DE CONCRETO ASFALTICO DE 5 CMS. DE ESPESOR COMPACTOS, ELABORADA EN CALIENTE CON PLANTA DE CONCRETO ASFALTICO CON MATERIAL PÉTREO Y CEMENTO ASFALTICO, INCLUYE: ADITIVO, ELABORACIÓN, MEZCLADO, TENDIDO Y COMPACTADO, MATERIALES, MANO DE OBRA Y EQUIPO NECESARIO (INCLUYE EL COSTO DEL CEMENTO ASFALTICO) CONCEPTO A SATISFACCION DE SUPERVISION.","M2",480,0,0]
["06.-","GUARNICIÓN DE CONCRETO F'C=150 KG/CM2 R.N. T.M.A. 19 MM. DE 15X20X40 CMS. DE SECCIÓN TRAPEZOIDAL, INCLUYE: EXCAVACION,  CONFINAMIENRO, CIMBRA METALICA, DESCIMBRADO, ELABORACIÓN, COLADO Y VIBRADO DEL CONCRETO, TRANSPORTE A LA SIGUIENTE POSICIÓN, ACABADO DEL LOMO PULIDO FINO, MATERIALES, MANO DE OBRA Y HERRAMIENTA, CONCEPTO A SATISFACCION DE SUPERVISION.","ML",105,0,0]
["07.-","CONSTRUCCIÓN DE PISO O CAMINAMIENTO DE 10 CMS. DE ESPESOR, DE CONCRETO F'C=150 KG/CM2, REFORZADA CON MALLA ELECTROSOLDADA 6X6 -10X10, INCLUYE: CIMBRA, DESCIMBRA, COLADO, VIBRADO, CURADO,  EN SECCIONES NO MAYORES A 6.00 M2, PREPARACIÓN DEL TERRENO Y COMPACTACIÓN, CORTE Y/O RELLENO HASTA 30 CMS. DE ESPESOR, RELLENO CON MATERIAL DE BANCO Y/O CORTE, NIVELACIÓN, ACABADO PULIDO FINO Y RALLADO CON BROCHA DE PELO, VOLTEADOR PERIMETRAL, CONCEPTO A SATISFACCIÓN DE SUPERVISIÓN, Y ÁREAS DE ACUERDO A PLANO DE PROYECTO.","M2",331.15,0,0]
["08.-","SUMINISTRO Y APLICACIÓN DE PINTURA REFLECTIVA PARA TRAFICO Y MICROESFERA EN RAYA CENTRAL SEPARADORA DE CARRILES Y ESTACIONAMIENTOS, CONTINUA Y DISCONTINUA DE 10 CMS. DE ANCHO EN COLOR BLANCO, AMARILLOMY AZUL PREVIAMENTE AUTORIZADO POR SUPERVISIÓN PARA PAVIMENTO, INCLUYE: PREPARACIÓN DE LA SUPERFICIE, TRAZO, EQUIPO PREVENTIVOS, EQUIPO PINTARAYAS, MANO DE OBRA,  HERRAMIENTA Y MATERIALES, CONCEPTO A SATISFACCION DE SUPERVISION Y SEGUN  PLANO DE PROYECTO. (VER DETALLE EN PLANO)","ML",65,0,0]
[null,"SUBTOTAL DE OBRA EXTERIOR",null,null,0,{"$f":"SUM(F182:F189)","v":0}]
["E.-)","INSTALACIONES ELECTRICAS",null,null,null,{"$f":"D191*E191","v":0}]
["01.-","SUMINISTRO Y COLOCACIÓN DE SALIDA ELÉCTRICA PARA LÁMPARA, EN CAJA DE LAMINA GALVANIZADA OCTAGONAL CON TAPA CIEGA, TUBO CONDUIT PVC CED. 40 DE 16 MM. (1/2\") DE DIÁMETRO. INCLUYE: CABLEADO CON CALIBRE 12 AWG THW-LS 90° PARA FASES Y NEUTRO Y 14 AWG DESNUDO PARA TIERRA FÍSICA, MATERIAL DIVERSO DE FIJACIÓN,  BAJADA DE APAGADOR, DE ACUERDO A PLANO, CONEXIÓN DEL CIRCUITO, RANURAS, PASOS Y RESANES NECESARIOS EN MURO, CARGO DIRECTO POR EL COSTO DE MANO DE OBRA Y MATERIALES REQUERIDOS, FLETE A OBRA, ACARREO, COPLE, TRAZO, CORTE, COLOCACIÓN, GUÍA DE ALAMBRE GALVANIZADO CALIBRE 14, FIJACIÓN, LIMPIEZA Y RETIRO DE SOBRANTES FUERA DE OBRA, EQUIPO DE SEGURIDAD, INSTALACIONES ESPECIFICAS, DEPRECIACIÓN Y DEMÁS CARGOS DERIVADOS DEL USO DE HERRAMIENTA Y EQUIPO EN CUALQUIER NIVEL.","SAL.",107,0,0]
["02.-","SUMINISTRO Y COLOCACIÓN DE SALIDA ELÉCTRICA PARA LÁMPARA, EN CAJA DE LAMINA GALVANIZADA OCTAGONAL CON TAPA CIEGA, TUBO CONDUIT GALVANIZADO PARED GRUESA DE 21 MM. (3/4\") DE DIÁMETRO. INCLUYE: CABLEADO CON CALIBRE 12 AWG THW-LS 90° PARA FASES Y NEUTRO Y 14 AWG DESNUDO PARA TIERRA FÍSICA, MATERIAL DIVERSO DE FIJACIÓN,  CONEXION CON FOTOCELDA, FIJACION CON ABRAZADERA OMEGA CADA 1.2 M. DE ACUERDO A PLANO, CONEXIÓN DEL CIRCUITO, RANURAS, PASOS Y RESANES NECESARIOS EN MURO, CARGO DIRECTO POR EL COSTO DE MANO DE OBRA Y MATERIALES REQUERIDOS, FLETE A OBRA, ACARREO, COPLE, TRAZO, CORTE, COLOCACIÓN, GUÍA DE ALAMBRE GALVANIZADO CALIBRE 14, FIJACIÓN, LIMPIEZA Y RETIRO DE SOBRANTES FUERA DE OBRA, EQUIPO DE SEGURIDAD, INSTALACIONES ESPECIFICAS, DEPRECIACIÓN Y DEMÁS CARGOS DERIVADOS DEL USO DE HERRAMIENTA Y EQUIPO EN CUALQUIER NIVEL.","SAL.",14,0,0]
["04.-","SUMINISTRO Y COLOCACIÓN DE SALIDA PARA APAGADOR, MARCA STEVEZ LINEA OFICINA EN CAJA DE LAMINA GALVANIZADA DE 2X4\", TUBO CONDUIT PVC CEDULA 40 DE 16 MM. (1/2\") DE DIÁMETRO. INCLUYE: CABLEADO CON CALIBRE 12 AWG THW-LS 90° PARA FASES Y REGRESOS Y 14 AWG DESNUDO PARA TIERRA FÍSICA, MATERIAL DIVERSO DE FIJACIÓN,  APAGADOR SEGUN PROYECTO, CONEXIÓN DEL CIRCUITO, RANURAS, PASOS Y RESANES NECESARIOS EN MURO, CARGO DIRECTO POR EL COSTO DE MANO DE OBRA Y MATERIALES REQUERIDOS, FLETE A OBRA, ACARREO, COPLE, TRAZO, CORTE, COLOCACIÓN, GUÍA DE ALAMBRE GALVANIZADO CALIBRE 14, FIJACIÓN, LIMPIEZA Y RETIRO DE SOBRANTES FUERA DE OBRA, EQUIPO DE SEGURIDAD, INSTALACIONES ESPECIFICAS, DEPRECIACIÓN Y DEMÁS CARGOS DERIVADOS DEL USO DE HERRAMIENTA Y EQUIPO EN CUALQUIER NIVEL.","SAL.",30,0,0]
["05.-","SUMINISTRO, COLOCACIÓN Y CONEXIÓN DE LÁMPARA TIPO LED DE EMPOTRAR  DE 10.3 W., 127 VOLTS., MARCA MAGG, MODELO LUNA 9 SSD, DRIVER INCLUIDO,  BAJO CONSUMO DE ENERGÍA, HECHO DE ALUMINIO,  COLOR BLANCO, LUZ COLOR BLANCO NEUTRO, CON DRIVER INCLUIDO DE BAJO CONSUMO DE ENERGÍA, ARRANQUE INSTANTÁNEO, ALTO FACTOR DE POTENCIA Y DISTORSIÓN ARMÓNICA TOTAL MENOR AL 10%;  SE INCLUYE: CORTE EN PLAFON, 1.6 M DE CABLE ARMAFLEX  CALIBRE 3x12 AWG Y CONECTORES CLAVIJA Y RECEPTACULO, TORNILLOS, TUERCAS, ARANDELAS Y DEMÁS ELEMENTOS DE FIJACIÓN Y CONEXIÓN, CARGO DIRECTO POR EL COSTO DE MANO DE OBRA Y MATERIALES REQUERIDOS, FLETE A OBRA, ACARREO, COLOCACIÓN, FIJACIÓN, LIMPIEZA Y RETIRO DE SOBRANTES FUERA DE OBRA, EQUIPO DE SEGURIDAD, INSTALACIONES ESPECIFICAS, DEPRECIACIÓN Y DEMÁS CARGOS DERIVADOS DEL USO DE HERRAMIENTA Y EQUIPO EN CUALQUIER NIVEL, ANEXAR COPIA DE CERTIFICADO DEL PRODUCTO.","PZA.",15,0,0]
["05.-","SUMINISTRO, COLOCACIÓN Y CONEXIÓN DE LÁMPARA TIPO LED DE SOBREPONER  DE 9 W., 127 VOLTS., MARCA MAGG, MODELO LUNA 9 FLAT S, DRIVER INCLUIDO,  BAJO CONSUMO DE ENERGÍA, HECHO DE ALUMINIO,  COLOR BLANCO, LUZ COLOR BLANCO NEUTRO, CON DRIVER INCLUIDO DE BAJO CONSUMO DE ENERGÍA, ARRANQUE INSTANTÁNEO, ALTO FACTOR DE POTENCIA Y DISTORSIÓN ARMÓNICA TOTAL MENOR AL 10%;  SE INCLUYE: CORTE EN PLAFON, 1.6 M DE CABLE ARMAFLEX  CALIBRE 3x12 AWG Y CONECTORES CLAVIJA Y RECEPTACULO, TORNILLOS, TUERCAS, ARANDELAS Y DEMÁS ELEMENTOS DE FIJACIÓN Y CONEXIÓN, CARGO DIRECTO POR EL COSTO DE MANO DE OBRA Y MATERIALES REQUERIDOS, FLETE A OBRA, ACARREO, COLOCACIÓN, FIJACIÓN, LIMPIEZA Y RETIRO DE SOBRANTES FUERA DE OBRA, EQUIPO DE SEGURIDAD, INSTALACIONES ESPECIFICAS, DEPRECIACIÓN Y DEMÁS CARGOS DERIVADOS DEL USO DE HERRAMIENTA Y EQUIPO EN CUALQUIER NIVEL, ANEXAR COPIA DE CERTIFICADO DEL PRODUCTO.","PZA.",13,0,0]
["06.-","SUMINISTRO, COLOCACIÓN Y CONEXIÓN DE LÁMPARA TIPO LED DE EMPOTRAR  DE 7 W., 127 VOLTS., MARCA MAGG, MODELO LUNA 6 SSD, DRIVER INCLUIDO,  BAJO CONSUMO DE ENERGÍA, HECHO DE ALUMINIO,  COLOR BLANCO, LUZ COLOR BLANCO NEUTRO, CON DRIVER INCLUIDO DE BAJO CONSUMO DE ENERGÍA, ARRANQUE INSTANTÁNEO, ALTO FACTOR DE POTENCIA Y DISTORSIÓN ARMÓNICA TOTAL MENOR AL 10%;  SE INCLUYE: CORTE EN PLAFON, 1.6 M DE CABLE ARMAFLEX  CALIBRE 3x12 AWG Y CONECTORES CLAVIJA Y RECEPTACULO, TORNILLOS, TUERCAS, ARANDELAS Y DEMÁS ELEMENTOS DE FIJACIÓN Y CONEXIÓN, CARGO DIRECTO POR EL COSTO DE MANO DE OBRA Y MATERIALES REQUERIDOS, FLETE A OBRA, ACARREO, COLOCACIÓN, FIJACIÓN, LIMPIEZA Y RETIRO DE SOBRANTES FUERA DE OBRA, EQUIPO DE SEGURIDAD, INSTALACIONES ESPECIFICAS, DEPRECIACIÓN Y DEMÁS CARGOS DERIVADOS DEL USO DE HERRAMIENTA Y EQUIPO EN CUALQUIER NIVEL, ANEXAR COPIA DE CERTIFICADO DEL PRODUCTO.","PZA.",8,0,0]
["07.-","SUMINISTRO, COLOCACIÓN Y CONEXIÓN DE LÁMPARA TIPO LED DE EMPOTRAR  DE 9 W., 127 VOLTS., MARCA MAGG, MODELO SERIE SQ 9 FLAT BASICO, DRIVER INCLUIDO,  BAJO CONSUMO DE ENERGÍA, HECHO DE ALUMINIO,  COLOR BLANCO, LUZ COLOR BLANCO NEUTRO, CON DRIVER INCLUIDO DE BAJO CONSUMO DE ENERGÍA, ARRANQUE INSTANTÁNEO, ALTO FACTOR DE POTENCIA Y DISTORSIÓN ARMÓNICA TOTAL MENOR AL 10%;  SE INCLUYE: CORTE EN PLAFON, 1.6 M DE CABLE ARMAFLEX  CALIBRE 3x12 AWG Y CONECTORES CLAVIJA Y RECEPTACULO, TORNILLOS, TUERCAS, ARANDELAS Y DEMÁS ELEMENTOS DE FIJACIÓN Y CONEXIÓN, CARGO DIRECTO POR EL COSTO DE MANO DE OBRA Y MATERIALES REQUERIDOS, FLETE A OBRA, ACARREO, COLOCACIÓN, FIJACIÓN, LIMPIEZA Y RETIRO DE SOBRANTES FUERA DE OBRA, EQUIPO DE SEGURIDAD, INSTALACIONES ESPECIFICAS, DEPRECIACIÓN Y DEMÁS CARGOS DERIVADOS DEL USO DE HERRAMIENTA Y EQUIPO EN CUALQUIER NIVEL, ANEXAR COPIA DE CERTIFICADO DEL PRODUCTO.","PZA.",1,0,0]
["07.-","SUMINISTRO, COLOCACIÓN Y CONEXIÓN DE LÁMPARA TIPO LED DE SOBREPONER  DE 9 W., 127 VOLTS., MARCA MAGG, MODELO SERIE SQ 9 FLAT S, DRIVER INCLUIDO,  BAJO CONSUMO DE ENERGÍA, HECHO DE ALUMINIO,  COLOR BLANCO, LUZ COLOR BLANCO NEUTRO, CON DRIVER INCLUIDO DE BAJO CONSUMO DE ENERGÍA, ARRANQUE INSTANTÁNEO, ALTO FACTOR DE POTENCIA Y DISTORSIÓN ARMÓNICA TOTAL MENOR AL 10%;  SE INCLUYE: CORTE EN PLAFON, 1.6 M DE CABLE ARMAFLEX  CALIBRE 3x12 AWG Y CONECTORES CLAVIJA Y RECEPTACULO, TORNILLOS, TUERCAS, ARANDELAS Y DEMÁS ELEMENTOS DE FIJACIÓN Y CONEXIÓN, CARGO DIRECTO POR EL COSTO DE MANO DE OBRA Y MATERIALES REQUERIDOS, FLETE A OBRA, ACARREO, COLOCACIÓN, FIJACIÓN, LIMPIEZA Y RETIRO DE SOBRANTES FUERA DE OBRA, EQUIPO DE SEGURIDAD, INSTALACIONES ESPECIFICAS, DEPRECIACIÓN Y DEMÁS CARGOS DERIVADOS DEL USO DE HERRAMIENTA Y EQUIPO EN CUALQUIER NIVEL, ANEXAR COPIA DE CERTIFICADO DEL PRODUCTO.","PZA.",16,0,0]
["08.-","SUMINISTRO, COLOCACIÓN Y CONEXIÓN DE LÁMPARA TIPO LED DE EMPOTRAR  DE 33 W., 127 VOLTS., MARCA MAGG, MODELO PANEL PRIME 60x60 CM, L6052-1I0, DRIVER INCLUIDO,  BAJO CONSUMO DE ENERGÍA, HECHO DE ALUMINIO,  COLOR BLANCO, LUZ COLOR BLANCO NEUTRO, CON DRIVER INCLUIDO DE BAJO CONSUMO DE ENERGÍA, ARRANQUE INSTANTÁNEO, ALTO FACTOR DE POTENCIA, SE INCLUYE: CORTE EN PLAFON, 1.6 M DE CABLE ARMAFLEX  CALIBRE 3x12 AWG Y CONECTORES CLAVIJA Y RECEPTACULO, TORNILLOS, TUERCAS, ARANDELAS Y DEMÁS ELEMENTOS DE FIJACIÓN Y CONEXIÓN, CARGO DIRECTO POR EL COSTO DE MANO DE OBRA Y MATERIALES REQUERIDOS, FLETE A OBRA, ACARREO, COLOCACIÓN, FIJACIÓN, LIMPIEZA Y RETIRO DE SOBRANTES FUERA DE OBRA, EQUIPO DE SEGURIDAD, INSTALACIONES ESPECIFICAS, DEPRECIACIÓN Y DEMÁS CARGOS DERIVADOS DEL USO DE HERRAMIENTA Y EQUIPO EN CUALQUIER NIVEL, ANEXAR COPIA DE CERTIFICADO DEL PRODUCTO.","PZA.",9,0,0]
["04.-","SUMINISTRO, COLOCACIÓN Y CONEXIÓN DE LÁMPARA TIPO LED DE SOBREPONER  DE 37.5 W., 127 VOLTS., MARCA LJ LED, MODELO  GEAG1-37.5-168LED-E3-AC, DE 60x60, DRIVER INCLUIDO,  BAJO CONSUMO DE ENERGÍA, HECHO DE ALUMINIO,  COLOR BLANCO, LUZ COLOR BLANCO NEUTRO, CON DRIVER INCLUIDO DE BAJO CONSUMO DE ENERGÍA, ARRANQUE INSTANTÁNEO, ALTO FACTOR DE POTENCIA, SE INCLUYE:  TORNILLOS, TUERCAS, ARANDELAS Y DEMÁS ELEMENTOS DE FIJACIÓN Y CONEXIÓN, CARGO DIRECTO POR EL COSTO DE MANO DE OBRA Y MATERIALES REQUERIDOS, FLETE A OBRA, ACARREO, COLOCACIÓN, FIJACIÓN, LIMPIEZA Y RETIRO DE SOBRANTES FUERA DE OBRA, EQUIPO DE SEGURIDAD, INSTALACIONES ESPECIFICAS, DEPRECIACIÓN Y DEMÁS CARGOS DERIVADOS DEL USO DE HERRAMIENTA Y EQUIPO EN CUALQUIER NIVEL, ANEXAR COPIA DE CERTIFICADO DEL PRODUCTO.","PZA.",37,0,0]
["10.-","SUMINISTRO, COLOCACIÓN Y CONEXIÓN DE LÁMPARA TIPO LED DE EMPOTRAR  DE 30 W., 127 VOLTS., MARCA MAGG, MODELO PANEL STD 20x120 CM, L5526-1I0, DRIVER INCLUIDO,  BAJO CONSUMO DE ENERGÍA, HECHO DE ALUMINIO,  COLOR BLANCO, LUZ COLOR BLANCO NEUTRO, CON DRIVER INCLUIDO DE BAJO CONSUMO DE ENERGÍA, ARRANQUE INSTANTÁNEO, ALTO FACTOR DE POTENCIA, SE INCLUYE: CORTE EN PLAFON, 1.6 M DE CABLE ARMAFLEX  CALIBRE 3x12 AWG Y CONECTORES CLAVIJA Y RECEPTACULO, TORNILLOS, TUERCAS, ARANDELAS Y DEMÁS ELEMENTOS DE FIJACIÓN Y CONEXIÓN, CARGO DIRECTO POR EL COSTO DE MANO DE OBRA Y MATERIALES REQUERIDOS, FLETE A OBRA, ACARREO, COLOCACIÓN, FIJACIÓN, LIMPIEZA Y RETIRO DE SOBRANTES FUERA DE OBRA, EQUIPO DE SEGURIDAD, INSTALACIONES ESPECIFICAS, DEPRECIACIÓN Y DEMÁS CARGOS DERIVADOS DEL USO DE HERRAMIENTA Y EQUIPO EN CUALQUIER NIVEL, ANEXAR COPIA DE CERTIFICADO DEL PRODUCTO.","PZA.",2,0,0]
["11.-","SUMINISTRO, COLOCACIÓN Y CONEXIÓN DE LÁMPARA TIPO LED DE SOBREPONER  DE 15 W., 127 VOLTS., MARCA MAGG, MODELO GAMMA LED 600 21x61 CM, L5411-5I0, DRIVER INCLUIDO,  BAJO CONSUMO DE ENERGÍA, HECHO DE ALUMINIO,  COLOR BLANCO, LUZ COLOR BLANCO NEUTRO, CON DRIVER INCLUIDO DE BAJO CONSUMO DE ENERGÍA, ARRANQUE INSTANTÁNEO, ALTO FACTOR DE POTENCIA, SE INCLUYE: CORTE EN PLAFON, 1.6 M DE CABLE ARMAFLEX  CALIBRE 3x12 AWG Y CONECTORES CLAVIJA Y RECEPTACULO, TORNILLOS, TUERCAS, ARANDELAS Y DEMÁS ELEMENTOS DE FIJACIÓN Y CONEXIÓN, CARGO DIRECTO POR EL COSTO DE MANO DE OBRA Y MATERIALES REQUERIDOS, FLETE A OBRA, ACARREO, COLOCACIÓN, FIJACIÓN, LIMPIEZA Y RETIRO DE SOBRANTES FUERA DE OBRA, EQUIPO DE SEGURIDAD, INSTALACIONES ESPECIFICAS, DEPRECIACIÓN Y DEMÁS CARGOS DERIVADOS DEL USO DE HERRAMIENTA Y EQUIPO EN CUALQUIER NIVEL, ANEXAR COPIA DE CERTIFICADO DEL PRODUCTO.","PZA.",4,0,0]
["13.-","SUMINISTRO, COLOCACIÓN Y CONEXIÓN DE LÁMPARA TIPO REFLECTOR  LED DE SOBREPONER  DE 35 W., 127 VOLTS., MARCA MAGG, MODELO SERIE KR 35, L7451-630, DRIVER INCLUIDO,  BAJO CONSUMO DE ENERGÍA, HECHO DE ALUMINIO,  COLOR BLANCO, LUZ COLOR BLANCO NEUTRO, CON DRIVER INCLUIDO DE BAJO CONSUMO DE ENERGÍA, ARRANQUE INSTANTÁNEO, ALTO FACTOR DE POTENCIA, SE INCLUYE: TORNILLOS, TUERCAS, ARANDELAS Y DEMÁS ELEMENTOS DE FIJACIÓN Y CONEXIÓN, CARGO DIRECTO POR EL COSTO DE MANO DE OBRA Y MATERIALES REQUERIDOS, FLETE A OBRA, ACARREO, COLOCACIÓN, FIJACIÓN, LIMPIEZA Y RETIRO DE SOBRANTES FUERA DE OBRA, EQUIPO DE SEGURIDAD, INSTALACIONES ESPECIFICAS, DEPRECIACIÓN Y DEMÁS CARGOS DERIVADOS DEL USO DE HERRAMIENTA Y EQUIPO EN CUALQUIER NIVEL, ANEXAR COPIA DE CERTIFICADO DEL PRODUCTO.","PZA.",14,0,0]
["14.-","SUMINISTRO Y COLOCACIÓN DE SALIDA PARA CONTACTO DOBLE POLARIZADO CON TAPA MARCA ESTEVEZ, BISEL METALICO, EN CAJA 4x2\", CANALIZACIÓN A BASE DE TUBERÍA TUBO CONDUIT PVC PARED GRUESA DE 16 MM. (1/2\") DE DIÁMETRO, CABLEADO CON CALIBRE 12 AWG THW-LS 90° PARA FASES Y NEUTRO Y 14 AWG DESNUDO PARA TIERRA FÍSICA, MATERIAL DIVERSO INCLUYE: PROTECTOR DE ENCHEFE CONTRA INFANTES, CONEXIÓN, RANURA Y RESANE EN MURO, ACCESORIO, TOMACORRIENTE,  CARGO DIRECTO POR EL COSTO DE MANO DE OBRA Y MATERIALES REQUERIDOS, FLETE A OBRA, ACARREO, COPLE, TRAZO, CORTE, GUÍA DE ALAMBRE GALVANIZADO CALIBRE 14, FIJACIÓN, LIMPIEZA Y RETIRO DE SOBRANTES FUERA DE OBRA, EQUIPO DE SEGURIDAD, INSTALACIONES ESPECÍFICAS, DEPRECIACIÓN Y DEMÁS CARGOS DERIVADOS DEL USO DE EQUIPO Y HERRAMIENTA, EN CUALQUIER NIVEL.","SAL.",79,0,0]
["15.-","SUMINISTRO Y COLOCACIÓN DE SALIDA PARA CONTACTO DOBLE POLARIZADO CON TAPA MARCA ESTEVEZ, BISEL METALICO, EN CAJA 4x2\",  PARA MONTAJE EN PISO CON PROTECCION METALICA EN SALIDAS, CANALIZACIÓN A BASE DE TUBERÍA TUBO CONDUIT PVC PARED GRUESA DE 16 MM. (1/2\") DE DIÁMETRO, CABLEADO CON CALIBRE 12 AWG THW-LS 90° PARA FASES Y NEUTRO Y 14 AWG DESNUDO PARA TIERRA FÍSICA, MATERIAL DIVERSO INCLUYE: PROTECTOR DE ENCHEFE CONTRA INFANTES, CONEXIÓN, RANURA Y RESANE EN MURO, ACCESORIO, TOMACORRIENTE,  CARGO DIRECTO POR EL COSTO DE MANO DE OBRA Y MATERIALES REQUERIDOS, FLETE A OBRA, ACARREO, COPLE, TRAZO, CORTE, GUÍA DE ALAMBRE GALVANIZADO CALIBRE 14, FIJACIÓN, LIMPIEZA Y RETIRO DE SOBRANTES FUERA DE OBRA, EQUIPO DE SEGURIDAD, INSTALACIONES ESPECÍFICAS, DEPRECIACIÓN Y DEMÁS CARGOS DERIVADOS DEL USO DE EQUIPO Y HERRAMIENTA, EN CUALQUIER NIVEL.","SAL.",5,0,0]
["16.-","SUMINISTRO Y COLOCACIÓN DE SALIDA PARA CONTACTO DOBLE POLARIZADO TIPO GFCI, CON TAPA MARCA ESTEVEZ, BISEL METALICO, EN CAJA 4x2\", CANALIZACIÓN A BASE DE TUBERÍA TUBO CONDUIT PVC PARED GRUESA DE 16 MM. (1/2\") DE DIÁMETRO, CABLEADO CON CALIBRE 12 AWG THW-LS 90° PARA FASES Y NEUTRO Y 14 AWG DESNUDO PARA TIERRA FÍSICA, MATERIAL DIVERSO INCLUYE: PROTECTOR DE ENCHEFE CONTRA INFANTES, CONEXIÓN, RANURA Y RESANE EN MURO, ACCESORIO, TOMACORRIENTE,  CARGO DIRECTO POR EL COSTO DE MANO DE OBRA Y MATERIALES REQUERIDOS, FLETE A OBRA, ACARREO, COPLE, TRAZO, CORTE, GUÍA DE ALAMBRE GALVANIZADO CALIBRE 14, FIJACIÓN, LIMPIEZA Y RETIRO DE SOBRANTES FUERA DE OBRA, EQUIPO DE SEGURIDAD, INSTALACIONES ESPECÍFICAS, DEPRECIACIÓN Y DEMÁS CARGOS DERIVADOS DEL USO DE EQUIPO Y HERRAMIENTA, EN CUALQUIER NIVEL.","SAL.",7,0,0]
["15.-","SUMINISTRO Y COLOCACIÓN DE SALIDA PARA CONTACTO POLARIZADO 127 V.  DE 30 A. CON TAPA ,EN CAJA 4x2\", CANALIZACIÓN A BASE DE TUBERÍA TUBO CONDUIT PVC PARED GRUESA DE 21 MM. (3/4\") DE DIÁMETRO, CABLEADO CON CALIBRE 8 AWG THW-LS 90° PARA FASES Y NEUTRO Y 12 AWG DESNUDO PARA TIERRA FÍSICA, MATERIAL DIVERSO INCLUYE: PROTECTOR DE ENCHEFE CONTRA INFANTES, CONEXIÓN, RANURA Y RESANE EN MURO, ACCESORIO, TOMACORRIENTE,  CARGO DIRECTO POR EL COSTO DE MANO DE OBRA Y MATERIALES REQUERIDOS, FLETE A OBRA, ACARREO, COPLE, TRAZO, CORTE, GUÍA DE ALAMBRE GALVANIZADO CALIBRE 14, FIJACIÓN, LIMPIEZA Y RETIRO DE SOBRANTES FUERA DE OBRA, EQUIPO DE SEGURIDAD, INSTALACIONES ESPECÍFICAS, DEPRECIACIÓN Y DEMÁS CARGOS DERIVADOS DEL USO DE EQUIPO Y HERRAMIENTA, EN CUALQUIER NIVEL.","SAL.",1,0,0]
["15.-","SUMINISTRO Y COLOCACIÓN DE SALIDA PARA CONTACTO  POLARIZADO 220 V.  DE 30 A. CON TAPA ,EN CAJA 4x2\",  CANALIZACIÓN A BASE DE TUBERÍA TUBO CONDUIT PVC PARED GRUESA DE 21 MM. (3/4\") DE DIÁMETRO, CABLEADO CON CALIBRE 8 AWG THW-LS 90° PARA FASES Y NEUTRO Y 12 AWG DESNUDO PARA TIERRA FÍSICA, MATERIAL DIVERSO INCLUYE: PROTECTOR DE ENCHEFE CONTRA INFANTES, CONEXIÓN, RANURA Y RESANE EN MURO, ACCESORIO, TOMACORRIENTE,  CARGO DIRECTO POR EL COSTO DE MANO DE OBRA Y MATERIALES REQUERIDOS, FLETE A OBRA, ACARREO, COPLE, TRAZO, CORTE, GUÍA DE ALAMBRE GALVANIZADO CALIBRE 14, FIJACIÓN, LIMPIEZA Y RETIRO DE SOBRANTES FUERA DE OBRA, EQUIPO DE SEGURIDAD, INSTALACIONES ESPECÍFICAS, DEPRECIACIÓN Y DEMÁS CARGOS DERIVADOS DEL USO DE EQUIPO Y HERRAMIENTA, EN CUALQUIER NIVEL.","SAL.",1,0,0]
["17.-","SUMINISTRO Y COLOCACIÓN DE SALIDA PARA CONTACTO 220 V. POLARIZADA A 15 A., EN CAJA 4x2\", CANALIZACIÓN A BASE DE TUBERÍA GALVANIZADA PARED GRUESA DE 21 MM. (3/4\") DE DIÁMETRO,  INCLUYE: CABLEADO CON CALIBRE 10 AWG THW-LS 90°C PARA FASE, 12 AWG DESNUDO TIERRA FISICA, SOPORTE EN UNICANAL CON ABRAZADERA OMEGA Y VARRILLA ROSCADA A UNA ALTURA DE 45 CM SOBRE NIVEL DE LOZA A CADA 1.3 M. CONEXIÓN, RANURA Y RESANE EN MURO, CARGO DIRECTO POR EL COSTO DE MANO DE OBRA Y MATERIALES REQUERIDOS, FLETE A OBRA, ACARREO, COPLE, TRAZO, CORTE, GUÍA DE ALAMBRE GALVANIZADO CALIBRE 14, FIJACIÓN, LIMPIEZA Y RETIRO DE SOBRANTES FUERA DE OBRA, EQUIPO DE SEGURIDAD, INSTALACIONES ESPECÍFICAS, DEPRECIACIÓN Y DEMÁS CARGOS DERIVADOS DEL USO DE EQUIPO Y HERRAMIENTA, EN CUALQUIER NIVEL.","SAL.",4,0,0]
["18.-","SUMINISTRO Y COLOCACIÓN DE SALIDA PARA CONTACTO 220 V. POLARIZADA A 20 A., EN CAJA 4x2\", CANALIZACIÓN A BASE DE TUBERÍA GALVANIZADA PARED GRUESA DE 21 MM. (3/4\") DE DIÁMETRO,  INCLUYE: CABLEADO CON CALIBRE 10 AWG THW-LS 90°C PARA FASE, 12 AWG DESNUDO TIERRA FISICA, SOPORTE EN UNICANAL CON ABRAZADERA OMEGA Y VARRILLA ROSCADA A UNA ALTURA DE 45 CM SOBRE NIVEL DE LOZA A CADA 1.3 M.  CONEXIÓN, RANURA Y RESANE EN MURO, CARGO DIRECTO POR EL COSTO DE MANO DE OBRA Y MATERIALES REQUERIDOS, FLETE A OBRA, ACARREO, COPLE, TRAZO, CORTE, GUÍA DE ALAMBRE GALVANIZADO CALIBRE 14, FIJACIÓN, LIMPIEZA Y RETIRO DE SOBRANTES FUERA DE OBRA, EQUIPO DE SEGURIDAD, INSTALACIONES ESPECÍFICAS, DEPRECIACIÓN Y DEMÁS CARGOS DERIVADOS DEL USO DE EQUIPO Y HERRAMIENTA, EN CUALQUIER NIVEL.","SAL.",1,0,0]
["19.-","SUMINISTRO Y COLOCACIÓN DE SALIDA PARA CONTACTO 220 V. POLARIZADA A 30 A., EN CAJA 4x2\", CANALIZACIÓN A BASE DE TUBERÍA GALVANIZADA PARED GRUESA DE 21 MM. (3/4\") DE DIÁMETRO,  INCLUYE: CABLEADO CON CALIBRE 8 AWG THW-LS 90°C PARA FASE, 10 AWG DESNUDO TIERRA FISICA, SOPORTE EN UNICANAL CON ABRAZADERA OMEGA Y VARRILLA ROSCADA A UNA ALTURA DE 45 CM SOBRE NIVEL DE LOZA A CADA 1.3 M.  CONEXIÓN, RANURA Y RESANE EN MURO, CARGO DIRECTO POR EL COSTO DE MANO DE OBRA Y MATERIALES REQUERIDOS, FLETE A OBRA, ACARREO, COPLE, TRAZO, CORTE, GUÍA DE ALAMBRE GALVANIZADO CALIBRE 14, FIJACIÓN, LIMPIEZA Y RETIRO DE SOBRANTES FUERA DE OBRA, EQUIPO DE SEGURIDAD, INSTALACIONES ESPECÍFICAS, DEPRECIACIÓN Y DEMÁS CARGOS DERIVADOS DEL USO DE EQUIPO Y HERRAMIENTA, EN CUALQUIER NIVEL.","SAL.",4,0,0]
["19.-","SUMINISTRO Y COLOCACIÓN DE SALIDA PARA CONTACTO 220 V. POLARIZADA A 40 A., EN CAJA 4x2\", CANALIZACIÓN A BASE DE TUBERÍA GALVANIZADA PARED GRUESA DE 21 MM. (3/4\") DE DIÁMETRO,  INCLUYE: CABLEADO CON CALIBRE 6 AWG THW-LS 90°C PARA FASE, 10 AWG DESNUDO TIERRA FISICA, SOPORTE EN UNICANAL CON ABRAZADERA OMEGA Y VARRILLA ROSCADA A UNA ALTURA DE 45 CM SOBRE NIVEL DE LOZA A CADA 1.3 M.  CONEXIÓN, RANURA Y RESANE EN MURO, CARGO DIRECTO POR EL COSTO DE MANO DE OBRA Y MATERIALES REQUERIDOS, FLETE A OBRA, ACARREO, COPLE, TRAZO, CORTE, GUÍA DE ALAMBRE GALVANIZADO CALIBRE 14, FIJACIÓN, LIMPIEZA Y RETIRO DE SOBRANTES FUERA DE OBRA, EQUIPO DE SEGURIDAD, INSTALACIONES ESPECÍFICAS, DEPRECIACIÓN Y DEMÁS CARGOS DERIVADOS DEL USO DE EQUIPO Y HERRAMIENTA, EN CUALQUIER NIVEL.","SAL.",2,0,0]
["20.-","SUMINISTRO E INSTALACION DE DESCONECTADOR DE EMERGENCIA, MARCA SQUARE D,TIPO SOBREPONER, MONOFASICO  220 VOLTS,  CAPACIDAD DE 15 A 60 AMPERES, .240/120 Vac., NEMA 3R, ZAPATAS PRINCIPALES. INCLUYE: CARGO DIRECTO POR EL COSTO DE MANO DE OBRA Y MATERIALES REQUERIDOS, RANURADO Y RESANES NECESARIOS, FLETE A OBRA, ACARREO, TRAZO, FIJACIÓN, CONEXIÓN MECÁNICA, CONEXIÓN ELÉCTRICA, PRUEBA, LIMPIEZA Y RETIRO DE SOBRANTES FUERA DE OBRA, EQUIPO DE SEGURIDAD, INSTALACIONES ESPECÍFICAS, DEPRECIACIÓN Y DEMÁS DERIVADOS DEL USO DE EQUIPO Y HERRAMIENTA, EN CUALQUIER NIVEL.","PZA.",11,0,0]
["21.-","CENTRO DE CARGA MARCA SQUARE D,TIPO EMPOTRAR, TRIFASICO  A CUATRO HILOS, 42 ESPACIOS, BARRAS DE 225 AMPERES, .240/120 Vac., NEMA 3R, ZAPATAS PRINCIPALES. INCLUYE: CARGO DIRECTO POR EL COSTO DE MANO DE OBRA Y MATERIALES REQUERIDOS, RANURADO Y RESANES NECESARIOS, FLETE A OBRA, ACARREO, TRAZO, FIJACIÓN, CONEXIÓN MECÁNICA, CONEXIÓN ELÉCTRICA, PRUEBA, LIMPIEZA Y RETIRO DE SOBRANTES FUERA DE OBRA, EQUIPO DE SEGURIDAD, INSTALACIONES ESPECÍFICAS, DEPRECIACIÓN Y DEMÁS DERIVADOS DEL USO DE EQUIPO Y HERRAMIENTA, EN CUALQUIER NIVEL.","PZA.",1,0,0]
["22.-","CENTRO DE CARGA MARCA SQUARE D,TIPO EMPOTRAR, TRIFASICO  A CUATRO HILOS, 30 ESPACIOS, BARRAS DE 200 AMPERES, .240/120 Vac., NEMA 3R, ZAPATAS PRINCIPALES. INCLUYE: CARGO DIRECTO POR EL COSTO DE MANO DE OBRA Y MATERIALES REQUERIDOS, RANURADO Y RESANES NECESARIOS, FLETE A OBRA, ACARREO, TRAZO, FIJACIÓN, CONEXIÓN MECÁNICA, CONEXIÓN ELÉCTRICA, PRUEBA, LIMPIEZA Y RETIRO DE SOBRANTES FUERA DE OBRA, EQUIPO DE SEGURIDAD, INSTALACIONES ESPECÍFICAS, DEPRECIACIÓN Y DEMÁS DERIVADOS DEL USO DE EQUIPO Y HERRAMIENTA, EN CUALQUIER NIVEL.","PZA.",1,0,0]
["23.-","CENTRO DE CARGA MARCA SQUARE D,TIPO EMPOTRAR, TRIFASICO  A CUATRO HILOS, 30 ESPACIOS, BARRAS DE 200 AMPERES, .240/120 Vac., ZAPATAS PRINCIPALES. INCLUYE: CARGO DIRECTO POR EL COSTO DE MANO DE OBRA Y MATERIALES REQUERIDOS, RANURADO Y RESANES NECESARIOS, FLETE A OBRA, ACARREO, TRAZO, FIJACIÓN, CONEXIÓN MECÁNICA, CONEXIÓN ELÉCTRICA, PRUEBA, LIMPIEZA Y RETIRO DE SOBRANTES FUERA DE OBRA, EQUIPO DE SEGURIDAD, INSTALACIONES ESPECÍFICAS, DEPRECIACIÓN Y DEMÁS DERIVADOS DEL USO DE EQUIPO Y HERRAMIENTA, EN CUALQUIER NIVEL.","PZA.",2,0,0]
["24.-","CENTRO DE CARGA MARCA SQUARE D,TIPO EMPOTRAR, TRIFASICO  A CUATRO HILOS, 12 ESPACIOS, BARRAS DE 125 AMPERES, .240/120 Vac., ZAPATAS PRINCIPALES. INCLUYE: CARGO DIRECTO POR EL COSTO DE MANO DE OBRA Y MATERIALES REQUERIDOS, RANURADO Y RESANES NECESARIOS, FLETE A OBRA, ACARREO, TRAZO, FIJACIÓN, CONEXIÓN MECÁNICA, CONEXIÓN ELÉCTRICA, PRUEBA, LIMPIEZA Y RETIRO DE SOBRANTES FUERA DE OBRA, EQUIPO DE SEGURIDAD, INSTALACIONES ESPECÍFICAS, DEPRECIACIÓN Y DEMÁS DERIVADOS DEL USO DE EQUIPO Y HERRAMIENTA, EN CUALQUIER NIVEL.","PZA.",2,0,0]
["24.-","CENTRO DE CARGA MARCA SQUARE D,TIPO I-LINE, TRIFASICO  A CUATRO HILOS, 6 ESPACIOS,  NEMA 3R, BARRAS DE 400 AMPERES, .240/120 Vac., ZAPATAS PRINCIPALES. INCLUYE: CARGO DIRECTO POR EL COSTO DE MANO DE OBRA Y MATERIALES REQUERIDOS, RANURADO Y RESANES NECESARIOS, FLETE A OBRA, ACARREO, TRAZO, FIJACIÓN, CONEXIÓN MECÁNICA, CONEXIÓN ELÉCTRICA, PRUEBA, LIMPIEZA Y RETIRO DE SOBRANTES FUERA DE OBRA, EQUIPO DE SEGURIDAD, INSTALACIONES ESPECÍFICAS, DEPRECIACIÓN Y DEMÁS DERIVADOS DEL USO DE EQUIPO Y HERRAMIENTA, EN CUALQUIER NIVEL.","PZA.",1,0,0]
["26.-","INTERRUPTOR TERMOMAGNÉTICO MARCA SQUARE D, INCLUYE: CARGO DIRECTO POR EL COSTO DE MANO DE OBRA Y MATERIALES REQUERIDOS, FLETE A OBRA, ACARREO, TRAZO, FIJACIÓN, CONEXIÓN MECÁNICA, CONEXIÓN ELÉCTRICA, PRUEBA, LIMPIEZA Y RETIRO DE SOBRANTES FUERA DE OBRA, EQUIPO DE SEGURIDAD, INSTALACIONES ESPECÍFICAS, DEPRECIACIÓN Y DEMÁS DERIVADOS DEL USO DE EQUIPO Y HERRAMIENTA, EN CUALQUIER NIVEL.",null,null,0,0]
[null,"DEL TIPO QO 1 POLOS DE 15 A 60 AMPERES","PZA.",32,0,0]
[null,"DEL TIPO QO 2 POLOS DE 15 AMPERES","PZA.",4,0,0]
[null,"DEL TIPO QO 2 POLOS DE 20 AMPERES","PZA.",2,0,0]
[null,"DEL TIPO QO 2 POLOS DE 30 AMPERES","PZA.",4,0,0]
[null,"DEL TIPO QO 2 POLOS DE 40 AMPERES","PZA.",2,0,0]
[null,"DEL TIPO I-LINE 3 POLOS DE 20 AMPERES","PZA.",1,0,0]
[null,"DEL TIPO I-LINE 3 POLOS DE 60 AMPERES","PZA.",1,0,0]
[null,"DEL TIPO I-LINE 3 POLOS DE 70 AMPERES","PZA.",1,0,0]
[null,"DEL TIPO I-LINE 3 POLOS DE 150 AMPERES","PZA.",1,0,0]
["27.-","SUMINISTRO Y COLOCACIÓN DE CABLE DE COBRE THHW-LS 90°C EN CANALIZACIÓN ELÉCTRICA, INCLUYE CARGO DIRECTO POR EL COSTO DE MANO DE OBRA Y MATERIALES REQUERIDOS, FLETE A OBRA, ACARREO, CORTE, COLOCACIÓN, CINTA AISLANTE, FIJACIÓN, LIMPIEZA Y RETIRO DE SOBRANTES FUERA DE OBRA, EQUIPO DE SEGURIDAD, INSTALACIONES ESPECÍFICAS, DEPRECIACIÓN Y DEMÁS CARGOS DERIVADOS DEL USO DE EQUIPO Y HERRAMIENTA, EN CUALQUIER NIVEL.",null,null,null,0]
[null,"DEL 10 AWG","ML",85,0,0]
[null,"DEL 8 AWG","ML",396,0,0]
[null,"DEL 6 AWG","ML",385,0,0]
[null,"DEL 4 AWG","ML",185,0,0]
[null,"DEL 2 AWG","ML",76,0,0]
[null,"DEL 1/0 AWG","ML",56,0,0]
[null,"DEL 3/0 AWG","ML",145,0,0]
[null,"DEL 4/0 AWG","ML",115,0,0]
["28.-","SUMINISTRO Y COLOCACIÓN DE CANALIZACIÓN ELÉCTRICA A BASE DE TUBERÍA CONDUIT PVC CED 40. PARED GRUESA, INCLUYE CARGO DIRECTO POR EL COSTO DE MANO DE OBRA Y MATERIALES REQUERIDOS, FLETE A OBRA, ACARREO, COPLE, TRAZO, CORTE, COLOCACIÓN,COPLES CODOS ACCESORIOS NECESARIOS, GUÍA DE ALAMBRE GALVANIZADO CALIBRE 14, FIJACIÓN, LIMPIEZA Y RETIRO DE SOBRANTES FUERA DE OBRA, EQUIPO DE SEGURIDAD, INSTALACIONES ESPECÍFICAS, DEPRECIACIÓN Y DEMÁS CARGOS DERIVADOS DEL USO DE EQUIPO Y HERRAMIENTA, EN CUALQUIER NIVEL.",null,null,0,0]
[null,"DE 21 mm Ø (3/4\")","ML",225,0,0]
[null,"DE 35 mm Ø (1-1/4\")","ML",130,0,0]
[null,"DE 53 mm Ø (2\")","ML",64,0,0]
[null,"DE 63 mm Ø (2-1/2\")","ML",75,0,0]
["29.-","SUMINISTRO Y COLOCACIÓN DE CANALIZACIÓN ELÉCTRICA A BASE DE TUBERÍA CONDUIT GALVANIZADA PARED GRUESA, INCLUYE CARGO DIRECTO POR EL COSTO DE MANO DE OBRA Y MATERIALES REQUERIDOS, FLETE A OBRA, ACARREO, COPLE, TRAZO, CORTE, COLOCACIÓN, MONITORES, CUERDA, COPLES CONDULETS NECESARIOS, GUÍA DE ALAMBRE GALVANIZADO CALIBRE 14, FIJACIÓN, LIMPIEZA Y RETIRO DE SOBRANTES FUERA DE OBRA, EQUIPO DE SEGURIDAD, INSTALACIONES ESPECÍFICAS, DEPRECIACIÓN Y DEMÁS CARGOS DERIVADOS DEL USO DE EQUIPO Y HERRAMIENTA, EN CUALQUIER NIVEL.",null,null,0,0]
[null,"DE 63 mm Ø (2-1/2\")","ML",15,0,0]
["30.-","SUMINISTRO Y COLOCACIÓN DE EQUIPO DE AIRE ACONDICIONADO TIPO MINI SPLIT,  DE 12,000 BTU/HR  (1 TONELADAS), OPERACIÓN MONOFÁSICA 220 Vac, 60 Hz, DE ALTA EFICIENCIA DE 16 SEERS, MARCA MCARRIER O SIMILAR EN CALIDAD Y PRECIO, INCLUYE: ESTRUCTURA ARMADA CON ANGULO DE 1/2\"  PARA MONTAJE EN MUROS DE EQUIPO CONDENSADOR, PASOS DE TUBERÍA AL INTERIOR DEL INMUEBLE, CONEXIONES ELÉCTRICAS Y MECÁNICAS, DRENES DE CONDENSADO A BASE  DE TUBERIA DE DE PVC DE 1/2\" HASTA JARDINERAS, TUBERÍAS DE GAS, ACCESORIOS DE INSTALACIÓN, PRUEBAS DE OPERACIÓN Y DEMÁS COSTOS DERIVADOS DEL USO DE HERRAMIENTA Y EQUIPO, EN CUALQUIER NIVEL, POR UNIDAD DE OBRA TERMINADA","PZA",2,0,0]
["31.-","SUMINISTRO Y COLOCACIÓN DE EQUIPO DE AIRE ACONDICIONADO TIPO MINI SPLIT,  DE 16,000 BTU/HR  (1.5 TONELADAS), OPERACIÓN MONOFÁSICA 220 Vac, 60 Hz, DE ALTA EFICIENCIA DE 16 SEERS, MARCA MCARRIERI O SIMILAR EN CALIDAD Y PRECIO, INCLUYE: ESTRUCTURA ARMADA CON ANGULO DE 1/2\"  PARA MONTAJE EN MUROS DE EQUIPO CONDENSADOR, PASOS DE TUBERÍA AL INTERIOR DEL INMUEBLE, CONEXIONES ELÉCTRICAS Y MECÁNICAS, DRENES DE CONDENSADO A BASE  DE TUBERIA DE DE PVC DE 1/2\" HASTA JARDINERAS, TUBERÍAS DE GAS, ACCESORIOS DE INSTALACIÓN, PRUEBAS DE OPERACIÓN Y DEMÁS COSTOS DERIVADOS DEL USO DE HERRAMIENTA Y EQUIPO, EN CUALQUIER NIVEL, POR UNIDAD DE OBRA TERMINADA","PZA",2,0,0]
["32.-","SUMINISTRO Y COLOCACIÓN DE EQUIPO DE AIRE ACONDICIONADO TIPO MINI SPLIT,  DE 24,000 BTU/HR  (2 TONELADAS), OPERACIÓN MONOFÁSICA 220 Vac, 60 Hz, DE ALTA EFICIENCIA DE 16 SEERS, MARCA CARRIER O SIMILAR EN CALIDAD Y PRECIO, INCLUYE: ESTRUCTURA ARMADA CON ANGULO DE 1/2\"  PARA MONTAJE EN MUROS DE EQUIPO CONDENSADOR, PASOS DE TUBERÍA AL INTERIOR DEL INMUEBLE, CONEXIONES ELÉCTRICAS Y MECÁNICAS, DRENES DE CONDENSADO A BASE  DE TUBERIA DE DE PVC DE 1/2\" HASTA JARDINERAS, TUBERÍAS DE GAS, ACCESORIOS DE INSTALACIÓN, PRUEBAS DE OPERACIÓN Y DEMÁS COSTOS DERIVADOS DEL USO DE HERRAMIENTA Y EQUIPO, EN CUALQUIER NIVEL, POR UNIDAD DE OBRA TERMINADA","PZA",2,0,0]
["34.-","SUMINISTRO Y COLOCACIÓN DE EQUIPO DE AIRE ACONDICIONADO TIPO MINI SPLIT , DE 36,000 BTU/HR  (3 TONELADAS), OPERACIÓN MONOFÁSICA 220 Vac, 60 Hz, DE ALTA EFICIENCIA DE 16 SEERS, MARCA CARRIER O SIMILAR EN CALIDAD Y PRECIO, INCLUYE: ESTRUCTURA ARMADA CON ANGULO DE 1/2\"  PARA MONTAJE EN MUROS, PASOS DE TUBERÍA AL INTERIOR DEL INMUEBLE, CONEXIONES ELÉCTRICAS Y MECÁNICAS, DRENES DE CONDENSADO A BASE  DE TUBERIA DE DE PVC DE 1/2\" HASTA JARDINERAS, TUBERÍAS DE GAS, ACCESORIOS DE INSTALACIÓN, PRUEBAS DE OPERACIÓN Y DEMÁS COSTOS DERIVADOS DEL USO DE HERRAMIENTA Y EQUIPO, EN CUALQUIER NIVEL, POR UNIDAD DE OBRA TERMINADA","PZA",3,0,0]
["34.-","SUMINISTRO Y COLOCACIÓN DE EQUIPO DE AIRE ACONDICIONADO TIPO MINI SPLIT , DE 48,000 BTU/HR  (4 TONELADAS), OPERACIÓN MONOFÁSICA 220 Vac, 60 Hz, DE ALTA EFICIENCIA DE 16 SEERS, MARCA CARRIER O SIMILAR EN CALIDAD Y PRECIO, INCLUYE: ESTRUCTURA ARMADA CON ANGULO DE 1/2\"  PARA MONTAJE EN MUROS, PASOS DE TUBERÍA AL INTERIOR DEL INMUEBLE, CONEXIONES ELÉCTRICAS Y MECÁNICAS, DRENES DE CONDENSADO A BASE  DE TUBERIA DE DE PVC DE 1/2\" HASTA JARDINERAS, TUBERÍAS DE GAS, ACCESORIOS DE INSTALACIÓN, PRUEBAS DE OPERACIÓN Y DEMÁS COSTOS DERIVADOS DEL USO DE HERRAMIENTA Y EQUIPO, EN CUALQUIER NIVEL, POR UNIDAD DE OBRA TERMINADA","PZA",1,0,0]
["34.-","SUMINISTRO Y COLOCACIÓN DE EQUIPO DE AIRE ACONDICIONADO TIPO MINI SPLIT , DE 60,000 BTU/HR  (5 TONELADAS), OPERACIÓN MONOFÁSICA 220 Vac, 60 Hz, DE ALTA EFICIENCIA DE 16 SEERS, MARCA CARRIER O SIMILAR EN CALIDAD Y PRECIO, INCLUYE: ESTRUCTURA ARMADA CON ANGULO DE 1/2\"  PARA MONTAJE EN MUROS, PASOS DE TUBERÍA AL INTERIOR DEL INMUEBLE, CONEXIONES ELÉCTRICAS Y MECÁNICAS, DRENES DE CONDENSADO A BASE  DE TUBERIA DE DE PVC DE 1/2\" HASTA JARDINERAS, TUBERÍAS DE GAS, ACCESORIOS DE INSTALACIÓN, PRUEBAS DE OPERACIÓN Y DEMÁS COSTOS DERIVADOS DEL USO DE HERRAMIENTA Y EQUIPO, EN CUALQUIER NIVEL, POR UNIDAD DE OBRA TERMINADA","PZA",2,0,0]
["35.-","SUMINISTRO Y COLOCACIÓN DE FOTOCELDA PARA ALUMBRADO MONOFÁSICO, 127 VOLTS., 20 AMPERES,  INCLUYE: CAJA 2X4, TAPA NEMA 3R, FOTOCELDA CON CABLEADO DE CONTROL Y CONEXIÓN A CIRCUITO DE ALUMBRADO, INCLUYE CARGO DIRECTO POR EL COSTO DE MANO DE OBRA Y MATERIALES REQUERIDOS, FLETE A OBRA, ACARREO, COPLE, TRAZO, CORTE, COLOCACIÓN, GUÍA DE ALAMBRE GALVANIZADO CALIBRE 14, FIJACIÓN, LIMPIEZA Y RETIRO DE SOBRANTES FUERA DE OBRA, EQUIPO DE SEGURIDAD, INSTALACIONES ESPECÍFICAS, DEPRECIACIÓN Y DEMÁS CARGOS DERIVADOS DEL USO DE EQUIPO Y HERRAMIENTA, EN CUALQUIER NIVEL..","PZA",1,0,0]
["36.-","SUMINISTRO Y COLOCACIÓN DE SALIDA PARA RED DE VOZ , DATOS, Y CIRCUITO CERRADO,  EN CAJA 4x2\" CON O-RING Y TAPA CIEGA, CANALIZACIÓN A BASE DE TUBERÍA CONDUIT PVC PARED GRUESA DE 21mm (3/4\"), INCLUYE: RANURAS Y RESANES EN PISO O MURO, CARGO DIRECTO POR EL COSTO DE MANO DE OBRA Y MATERIALES REQUERIDOS, FLETE A OBRA, ACARREO, COPLE, TRAZO, CORTES, COLOCACIÓN, GUÍA DE ALAMBRE GALVANIZADO CALIBRE 14, FIJACIÓN, LIMPIEZA Y RETIRO DE SOBRANTES FUERA DE OBRA, EQUIPO DE SEGURIDAD, INSTALACIONES ESPECÍFICAS, DEPRECIACIÓN Y DEMÁS CARGOS DERIVADOS DEL USO DE EQUIPO Y HERRAMIENTA, EN CUALQUIER NIVEL.","SAL.",20,0,0]
["37.-","SUMINISTRO  E INSTALACIÓN DE CHAROLA PORTACABLE TIPO MALLA, DE ALUMINIO DE 2\" DE ALTO x 10\" DE ANCHO, MARCA CABLOFIL, CON SOPORTERIA DE VARILLA ROSCADA, CON CLIP TIPO \"U\", TRAMOS DE 3 M.. INCLUYE: TORNILLOS, TAQUETES, FIJACION, NIVELACION, CONEXIONES, SOPORTERIA, COPLES, ANGULOS, UNIONES, (DETALLES EN PROYECTO) ,CARGO DIRECTO POR EL COSTO DE MANO DE OBRA Y MATERIALES REQUERIDOS, FLETE A OBRA , EQUIPO DE SEGURIDAD, INSTALACIONES ESPECÍFICAS, DEPRECIACIÓN Y DEMÁS CARGOS DERIVADOS DEL USO DE EQUIPO Y HERRAMIENTA, EN CUALQUIER NIVEL.","PZA",8,0,0]
["38.-","SUMINISTRO Y COLOCACIÓN DE REGISTRO ELÉCTRICO DE 40x40x60 Cm, A BASE DE BLOQUE DE CEMENTO DE 15x20x40 Cm, ASENTADO CON MORTERO CEMENTO ARENA 1:3, APLANADO INTERIOR PULIDO FINO CEMENTO ARENA 1:3, PISO DE GRAVA, MARCO Y CONTRAMARCO DE FIERRO ÁNGULO 1\" 1/2x 1/4\" Y TAPA DE CONCRETO F'c = 150 Kg/Cm2 POR UNIDAD DE OBRA TERMINADA.","PZA",4,0,{"$f":"D255*E255","v":0}]
["39.-","SUMINISTRO Y COLOCACIÓN DE REGISTRO ELÉCTRICO DE 60x60x80 Cm, A BASE DE BLOQUE DE CEMENTO DE 15x20x40 Cm, ASENTADO CON MORTERO CEMENTO ARENA 1:3, APLANADO INTERIOR PULIDO FINO CEMENTO ARENA 1:3, PISO DE GRAVA, MARCO Y CONTRAMARCO DE FIERRO ÁNGULO 1\" 1/2x 1/4\" Y TAPA DE CONCRETO F'c = 150 Kg/Cm2 POR UNIDAD DE OBRA TERMINADA.","PZA",2,0,0]
["40.-","SUMINISTRO Y COLOCACIÓN DE REGISTRO ELÉCTRICO DE 80x80x80 Cm, A BASE DE BLOQUE DE CEMENTO DE 15x20x40 Cm, ASENTADO CON MORTERO CEMENTO ARENA 1:3, APLANADO INTERIOR PULIDO FINO CEMENTO ARENA 1:3, PISO DE GRAVA, MARCO Y CONTRAMARCO DE FIERRO ÁNGULO 1\" 1/2x 1/4\" Y TAPA DE CONCRETO F'c = 150 Kg/Cm2 POR UNIDAD DE OBRA TERMINADA.","PZA",1,0,0]
["41.-","EXCAVACIÓN DE ZANJA DE 50 CM DE PROFUNDIDAD Y ANCHO VARIABLE DE 20 A 40 CMS. EN TERRENO INVESTIGADO EN SITIO, CAMA DE ARENA DE 10 CMS., TENDIDO DE TUBOS SEGÚN SE INDICA EN PLANOS, RELLENO DE LA ZANJA CON MATERIAL PRODUCTO DE EXCAVACIÓN COMPACTADO AL 90% MÍNIMO, INCLUYE: CARGO DIRECTO POR EL COSTO DE MANO DE OBRA Y MATERIALES Y EQUIPOS REQUERIDOS, FLETE A OBRA, ACARREO, TRAZO, LIMPIEZA Y RETIRO DE SOBRANTES FUERA DE OBRA, EQUIPO DE SEGURIDAD, INSTALACIONES ESPECIFICAS, DEPRECIACIÓN Y DEMÁS CARGOS DERIVADOS DEL USO DE EQUIPO Y HERRAMIENTA, EN CUALQUIER NIVEL.","ML",85,0,0]
["42.-","SUMINISTRO Y COLOCACION Y CONEXION DE TRANSFORMADOR TRIFASICO TIPO PEDESTAL.TRIFASICO DE 112.5 KVA.  DELTA ESTRELLA, 35,200-220/127 VOLTS, OPERACIÓN RADIAL, CON DOS DERIVACIONES ARRIBA Y DOS ABAJO DEL VOLTAJE NOMINAL.  INCLUYE CABLEADO, CANALIZACIONES, RED DE TIERRAS, HERRAJES, RETENIDA Y AISLADOR CARRETE, CARGO DIRECTO POR EL COSTO DE MANO DE OBRA Y MATERIALES REQUERIDOS, FLETE A OBRA, ACARREO,  CONEXIÓN,  Y PRUEBA, LIMPIEZA Y RETIRO DE SOBRANTES FUERA DE OBRA, EQUIPO DE SEGURIDAD, INSTALACIONES ESPECÍFICAS, DEPRECIACIÓN Y DEMÁS CARGOS DERIVADOS DEL USO DE EQUIPO Y HERRAMIENTA, EN CUALQUIER NIVEL, TODO LO NECESARIO PARA SU CORRECTO FUNCIONAMIENTO, BASE DE MONTAJE A BASE DE CONCRETO MEDIDAS CONFORME A DISEÑO DE TRANSFORMADOR. ","PZA",1,0,0]
["43.-","SUMINISTRO Y COLOCACION Y CONEXION DE SISTEMA DE TIERRAS, CON ACCESORIOS REQUERIDOS, VARILLAS DE COBRE, CONECTORES, SOLDADURA, TODO LO NECESARIO PAREA SU CORRECTA OPERACION.  INCLUYE CABLEADO, CANALIZACIONES, RED DE TIERRAS, CABLE CABLE DESNUDO CALIBRE 1/0, VARILLAS DE COBRE DE 2 METROS. SOLDADURA. HERRAJES, RETENIDA Y AISLADOR CARRETE, CARGO DIRECTO POR EL COSTO DE MANO DE OBRA Y MATERIALES REQUERIDOS, FLETE A OBRA, ACARREO,  CONEXIÓN,  Y PRUEBA, LIMPIEZA Y RETIRO DE SOBRANTES FUERA DE OBRA, EQUIPO DE SEGURIDAD, INSTALACIONES ESPECÍFICAS, DEPRECIACIÓN Y DEMÁS CARGOS DERIVADOS DEL USO DE EQUIPO Y HERRAMIENTA, EN CUALQUIER NIVEL.","PZA",1,0,0]
["44.-","SUMINISTRO Y COLOCACIÓN DE ESTRUCTURA  CFE-1TR3B AISLADA 13,2 KV DE  PENDIENDO DE VOLTAJE MANEJADO EN REGION), PARA SUBESTACIÓN TRIFÁSICA TIPO POSTE, A BASE DE SOPORTE, HERRAJE, ALAMBRE DE COBRE CAL 4 AWG PARA CONEXIONES Y AISLAMIENTO A 34.5 KV. INCLUYE CABLEADO, CANALIZACIONES, RED DE TIERRAS, HERRAJES, RETENIDA Y AISLADOR CARRETE, POSTES DE CONCRETO, CARGO DIRECTO POR EL COSTO DE MANO DE OBRA Y MATERIALES REQUERIDOS, FLETE A OBRA, ACARREO,  CONEXIÓN,  Y PRUEBA, LIMPIEZA Y RETIRO DE SOBRANTES FUERA DE OBRA, EQUIPO DE SEGURIDAD, INSTALACIONES ESPECÍFICAS, DEPRECIACIÓN Y DEMÁS CARGOS DERIVADOS DEL USO DE EQUIPO Y HERRAMIENTA, EN CUALQUIER NIVEL. ","PZA",1,0,0]
["45.-","SUMINISTRO Y COLOCACIÓN DE ESTRUCTURA 3CCF AISLADA 13,2 KV  DERIVACIÓN DE LÍNEA TRIFÁSICA AÉREA, A BASE DE SOPORTE, HERRAJE, CABLE PARA CONEXIONES, AISLAMIENTO A 34.5 KV, APATARRAYOS Y CORTACIRCUITOS FUSIBLE 34.5 KV A 100 AMPERES. INCLUYE CABLEADO, CANALIZACIONES, RED DE TIERRAS, HERRAJES, RETENIDA Y AISLADOR CARRETE, POSTES DE CONCRETO, CARGO DIRECTO POR EL COSTO DE MANO DE OBRA Y MATERIALES REQUERIDOS, FLETE A OBRA, ACARREO,  CONEXIÓN,  Y PRUEBA, LIMPIEZA Y RETIRO DE SOBRANTES FUERA DE OBRA, EQUIPO DE SEGURIDAD, INSTALACIONES ESPECÍFICAS, DEPRECIACIÓN Y DEMÁS CARGOS DERIVADOS DEL USO DE EQUIPO Y HERRAMIENTA, EN CUALQUIER NIVEL. ","PZA",1,0,0]
["46.-","SUMINISTRO Y COLOCACIÓN DE ESTRUCTURA RD3N AISLADA  13,2 KV , PARA REMATE DE LÍNEA AÉREA TRIFÁSICA, A BASE DE SOPORTE, HERRAJE, AMARRES, AISLAMIENTO A 27 KV.  INCLUYE CABLEADO, CANALIZACIONES, RED DE TIERRAS, HERRAJES, RETENIDA Y AISLADOR CARRETE, POSTES DE CONCRETO, CARGO DIRECTO POR EL COSTO DE MANO DE OBRA Y MATERIALES REQUERIDOS, FLETE A OBRA, ACARREO,  CONEXIÓN,  Y PRUEBA, LIMPIEZA Y RETIRO DE SOBRANTES FUERA DE OBRA, EQUIPO DE SEGURIDAD, INSTALACIONES ESPECÍFICAS, DEPRECIACIÓN Y DEMÁS CARGOS DERIVADOS DEL USO DE EQUIPO Y HERRAMIENTA, EN CUALQUIER NIVEL. ","PZA",1,0,0]
["47.-","SUMINISTRO Y COLOCACIÓN DE ZAPATA DE COBRE TIPO PONCHABLE PARA TERMINAL TIPO ESPADA, DE DOBLE PERNO, CALIBRE 4/0 AWG, INCLUYE TORNILLERIA DE COBRE.INCLUYE CABLEADO, CANALIZACIONES, RED DE TIERRAS, HERRAJES, RETENIDA Y AISLADOR CARRETE, POSTES DE CONCRETO, CARGO DIRECTO POR EL COSTO DE MANO DE OBRA Y MATERIALES REQUERIDOS, FLETE A OBRA, ACARREO,  CONEXIÓN,  Y PRUEBA, LIMPIEZA Y RETIRO DE SOBRANTES FUERA DE OBRA, EQUIPO DE SEGURIDAD, INSTALACIONES ESPECÍFICAS, DEPRECIACIÓN Y DEMÁS CARGOS DERIVADOS DEL USO DE EQUIPO Y HERRAMIENTA, EN CUALQUIER NIVEL. ","PZA",3,0,0]
["48.-","SUMINISTRO Y TENDIDO DE CABLE DE ALUMINIO  XLPE  AISLADO A 15 KV, CALIBRE 1/0 TIPO DISTRIBUCIÓN SUBTERRÁNEA; INCLUYE: CARGO DIRECTO POR EL COSTO DE MANO DE OBRA Y MATERIALES Y EQUIPOS REQUERIDOS, FLETE A OBRA, ACARREO, TRAZO, LIMPIEZA Y RETIRO DE SOBRANTES FUERA DE OBRA, EQUIPO DE SEGURIDAD, INSTALACIONES ESPECIFICAS, DEPRECIACIÓN Y DEMÁS CARGOS DERIVADOS DEL USO DE EQUIPO Y HERRAMIENTA, EN CUALQUIER NIVEL.","ML",50,0,0]
["49.-","SUMINISTRO Y COLOCACIÓN DE HERRAJE Y AISLAMIENTO PARA SOPORTE DE CONDUCTORES DE ALTA TENSIÓN EN INTERIOR DE REGISTRO PRIMARIO, INCLUYE MENSULA, CORREDERA, AISLADOR Y CINCHO DE PLÁSTICO.","RG",1,0,0]
["50.-","REGISTROS DE MEDIA TENSION DE 1.5X1.5X1.5M NORMA CFE RMTB-4TC A BASE DE CONCRETO INCLUYE: CONECTORES TIPO CODO , BOQUILLAS ESTACIONARIAS, TAPONES AISLADOS, APARTARRAYOS TIPO CODO, Y CAJA DERIVADORA DE 4 VIAS, ASI COMO TODO LO NECESARIO PARA SU CORRECTA OPERACION.","PZ",1,0,0]
["53.-","SUMINISTRO Y COLOCACION DE LUMINARIA TIPO REFLECTOR MARCA PHILIPS, MODELO TANGO LEDG3, DE 200 WATTS DE POTENCIA A 220 VOLTS Y 60 HZ., LED´S DE LUZ COLOR BLANCO FRIO, BASE DE ORIENTACION DIRIGIBLE, SUPRESOR DE PICOS 10KV, IP67, INCLUYE: LED, HORQUILLA PARA USO PESADO, DRIVER, ESTRUCTURA DE MONTAJE A BASE DE TUBO DE ACERO,  7.5 M. DE CABLE ARMAFLEX 3x10 AWG, ANEXAR COPIA DE CERTIFICACION. CONSIDERAR: CARGO DIRECTO POR EL COSTO DE MANO DE OBRA Y MATERIALES REQUERIDOS, FLETE A OBRA, ACARREO, COLOCACION,  LIMPIEZA Y RETIRO DE SOBRANTES FUERA DE OBRA, EQUIPO DE SEGURIDAD, INSTALACIONES ESPECIFICAS, DEPRECIACION Y DEMAS CARGOS DERIVADOS DEL USO DE EQUIPO Y HERRAMIENTA EN CUALQUIER NIVEL.","PZA",4,0,0]
["54.-","SUMINISTRO Y COLOCACIÓN DE POSTE DE Fe. CIRCULAR CÓNICO DE 9 METROS DE ALTURA, CON ESMALTE ANTICORROSIVO Y PINTADO EN COLOR INDICADO POR EL SUPERVISOR,  Y CON PENDAÑOS EN LAS LATERALES DEL POSTE. SE INCLUYE, CIMENTACIÓN TRAPEZOIDAL DE CONCRETO DE 40x40 EN CORONA Y 100x100 EN BASE, CON ALTURA DE 1.20 M.., F´c=200 Kg/Cm2 ARMADA CON VARILLA N° 3 Y 4 SEGÚN SE INDICA EN PLANOS,  ANCLAJE ADECUADO, INCLUYE CARGO DIRECTO POR EL COSTO DE MANO DE OBRA Y MATERIALES REQUERIDOS, FLETE A OBRA, ACARREO, COPLE, TRAZO, CORTE, CIMBRA,  COLOCACIÓN, GUÍA DE ALAMBRE GALVANIZADO CALIBRE 14, FIJACIÓN, LIMPIEZA Y RETIRO DE SOBRANTES FUERA DE OBRA, EQUIPO DE SEGURIDAD, INSTALACIONES ESPECÍFICAS, DEPRECIACIÓN Y DEMÁS CARGOS DERIVADOS DEL USO DE EQUIPO Y HERRAMIENTA, EN CUALQUIER NIVEL.","PZA",4,0,0]
["56.-","SUMINISTRO Y COLOCACIÓN DE CONTACTOR DE ALUMBRADO MONOFÁSICO, 220 VOLTS., 70 AMPERES, BOBINA DE CONTROL 127 VOLTS., INCLUYE: GABINETE MULTIPROPÓSITO PARA SOBREPONER NEMA 3, FOTOCELDA CON CABLEADO DE CONTROL Y CONEXIÓN A CIRCUITO DE ALUMBRADO, INCLUYE CARGO DIRECTO POR EL COSTO DE MANO DE OBRA Y MATERIALES REQUERIDOS, FLETE A OBRA, ACARREO, COPLE, TRAZO, CORTE, COLOCACIÓN, GUÍA DE ALAMBRE GALVANIZADO CALIBRE 14, FIJACIÓN, LIMPIEZA Y RETIRO DE SOBRANTES FUERA DE OBRA, EQUIPO DE SEGURIDAD, INSTALACIONES ESPECÍFICAS, DEPRECIACIÓN Y DEMÁS CARGOS DERIVADOS DEL USO DE EQUIPO Y HERRAMIENTA, EN CUALQUIER NIVEL..","PZA",1,0,0]
["58.-","SUMINISTRO DE MATERIALES Y CONSTRUCCIÓN DE MURETE TIPO \"C\", DE 1.5 METROS INTERIOR POR 2 METROS DE ALTO Y 40 CM. DE PROFUNDIDAD, A BASE DE BLOQUE DE CEMENTO DE 15X20X40 CM. ASENTADO CON MORTERO CEMENTO - ARENA 1:3, APLANADO PULIDO FINO, PISO DE GRAVA, PINTADO A DOS MANOS EN COLOR INDICADO POR SUPERVISIÓN, PUERTAS METÁLICAS DE LÁMINA ESTRIADA POR AMBOS LADOS, MARCO Y CONTRAMARCO, PASADORES, BISAGRAS, CERROJO EN PISO, CANDADO, ACABADO ESMALTE ANTICORROSIVO A DOS MANOS EN COLOR INDICADO POR SUPERVISOR, POR UNIDAD DE OBRA TERMINADA.","PZA",1,0,0]
["59.-","BASE DE MEDICIÓN NORMA CFE MS-5, TRIFASICA 220/127 VOLTS  COMPLETA CABLEADA CON  CABLES CALIBRE 4/0 AWG PARA FASES Y 3/0 AWG NEUTRO, INTERRUPTOR TERMOMAGNÉTICO 3x200 AMPERES, MUFA Y TUBO DE 2-1/2\", BAJANTE DE TIERRA CON VARILLA COPPERWELD Y CABLE 2 AWG, CONECTORES MULTIPLES PARA ACOMETIDA SUBTERRANEA Y AISLADOR, MEDIDOR DE CFE. ","PZA.",1,0,0]
["60.-","PAGO DE UNIDAD DE VERIFICACION, CERTIFICADO POR LA SECRETARIA DE ENERGIA, AVALANDO LA INSTALACION ELECTRICA.  INCLUYE: CARTA DE VERIFICACION, DE INSTALACIONES EN ALTA Y BAJA TENSION Y SUBESTACION PARTICULAR, LOS PLANOS DE OBRATERMINADA FIRMADOS POR UN ING. ELECTRICO Y MEMORIA DE CALCULO, HACER LAS MODIFICACIONES A MEMORIA, CUADROS DE CARGA Y DIAGRAMAS UNIFILARES, EN CASO DE EXISTIR MODIFICACIONES.","PZA",1,0,0]
["61.-","TRAMITES DE REPRESENTACION ANTE LA COMISION FEDERAL DE ELECTRICIDAD Y PRIMER BIMESTRE DE SERVICIO,  INCLUYE: LOS TRAMITES DE SOLICITUD ESPECIAL PAGO DE TRANSICION ELECTRICA PARA CONEXIONES DE SUBESTACION Y ACOMETIDA, PAGO POR EL DEPOSITO EN GARANTIA  Y CONTRATACION DE SERVICIO, OBRA ELECTRICA POR PARTE DE LA COMPAÑIA SUMINISTRADORA, PAGO DE DEPOSITO EN GARANTIA.","PZA",1,0,0]
[null,"SUBTOTAL INSTALACIONES ELECTRICAS",null,null,0,{"$f":"SUM(F192:F274)","v":0}]
[null,"SUMA TOTAL SIN IV.A.",null,null,null,{"$f":"SUM(F275+F190+F180+F161+F108)","v":0}]

{"sheet":"RESUMEN","index":1,"n_rows":26,"n_cols":6,"rows_kept":26,"cut":false,"hidden":false,"merged":[[50,0,50,6],[2,1,2,5],[7,0,7,1],[8,0,8,1],[9,0,9,1],[1,0,1,6],[3,0,3,6],[4,0,4,6],[7,6,9,6],[49,0,49,6]]}
[]
["GOBIERNO DEL ESTADO DE BAJA CALIFORNIA SUR"]
[null,"SECRETARIA DE PLANEACIÓN URBANA, INFRAESTRUCTURA,                                                                                 MOVILIDAD, MEDIO AMBIENTE Y RECURSOS NATURALES"]
["DIRECCIÓN DE OBRAS PUBLICAS"]
["RESUMEN"]
[]
[]
[{"$f":"CATALOGO!A8","v":"OBRA:  COMISARIA DE LA POLOICIA ESTATAL PREVENTIVA VIZCAINO"},null,null,null,"LICITACIÓN PUBLICA No."]
[{"$f":"CATALOGO!A9","v":"UBICACIÓN: EL MARASAL, C.P. 23938, VILLA ALBERTO ANDRES ALVARADO ARAMBURO."},null,null,null,"CONCURSO No."]
[{"$f":"CATALOGO!A10","v":"MUNICIPIO:  MULEGE, B.C.S."}]
[]
[{"$f":"CATALOGO!A13","v":"A.-)"},{"$f":"CATALOGO!B13","v":"CONSTRUCCION  DE COMISARIA"},null,null,null,{"$f":"CATALOGO!F108","v":0}]
[{"$f":"CATALOGO!A109","v":"B.-)"},{"$f":"CATALOGO!B109","v":"CASETA DE VIGILANCIA"},null,null,null,{"$f":"CATALOGO!F161","v":0}]
[{"$f":"CATALOGO!A162","v":"C.-)"},{"$f":"CATALOGO!B162","v":"BARDA PERIMETRAL"},null,null,null,{"$f":"CATALOGO!F180","v":0}]
[{"$f":"CATALOGO!A181","v":"D.-)"},{"$f":"CATALOGO!B181","v":"OBRA EXTERIOR"},null,null,null,{"$f":"CATALOGO!F190","v":0}]
[{"$f":"CATALOGO!A191","v":"E.-)"},{"$f":"CATALOGO!B191","v":"INSTALACIONES ELECTRICAS"},null,null,null,{"$f":"CATALOGO!F275","v":0}]
[]
[]
[]
[]
[]
[]
[]
[null,null,null,"SUBTOTAL",null,{"$f":"SUM(F12:F18)","v":0}]
[null,null,null,"I.V.A. 16 %",null,{"$f":"ROUND(F24*0.16,2)","v":0}]
[null,null,null,"TOTAL",null,{"$f":"SUM(F24:F25)","v":0}]